{"text_format":"1","workbook":"xlsx","n_sheets":8,"sheets":["Navodila","Podatki o računu","Račun HR","Račun","Kupci","Izdajatelji","Artikli","Šifranti"],"not_rendered":{"charts":0,"images":3,"macros":1,"external_links":0,"defined_names":5,"comments":0,"pivot_tables":0},"unopened":[],"bounds":{"document_bytes":16777216,"sheet_cells":100000,"rows_first":2000,"rows_last":500,"rows_between":2000,"halvings":0,"cell_chars":16384,"cell_head_chars":4096},"cells_cut":0,"cells_raw":0,"read":"whole","date_system":"1900"}

{"sheet":"Navodila","index":0,"n_rows":78,"n_cols":3,"rows_kept":78,"cut":false,"hidden":false,"merged":[]}
[]
[]
[]
[null,null,"Excel eRačun"]
[]
[]
[null,null,"Enostavna rešitev za pripravo eRačunov po standardu e-SLOG skupaj s pripadajočo vizualizacijo."]
[]
[null,null,"ZZI je na predlog uporabnikov razvil brezplačen pripomoček za pripravo in izdajo e-SLOG računa v programu Microsoft Excel. Pripomoček omogoča enostaven vnos podatkov računa, partnerjev, artiklov ter avtomatsko izdelavo e-SLOG računa s PDF vizualizacijo."]
[]
[null,null,"Ko je eRačun izdelan, ga morate še digitalno podpisati in poslati prejemniku, saj se ta dva koraka v trenutni verziji pripomočka bizBox Excel eRačun ne izvedeta samodejno. Za to uporabite storitev bizBox eIzmenjava. Vse kar potrebujete je aktiven bizBox račun ali namestitev brezplačnega ZZInet odjemalca, ki poskrbita, da bodo vaši izdani računi varno in zanesljivo prišli do prejemnika, stroški pošiljanja pa so nižji od stroška klasične pošte."]
[]
[null,null,"Neodvisno od uporabe storitve eIzmenjava vam priporočamo, da se registrirate na spletnem portalu www.bizbox.eu, ki vam omogoča brezplačen pregled prejetih dokumentov v eNabiralniku."]
[]
[null,null,"Po ZDDV-1 je potrebno eRačune hraniti najmanj 10 let v izvorni (elektronski) obliki. V ta namen lahko najamete zakonsko skladno in certificirano storitev eHramba.si."]
[]
[null,null,"Za naročila in informacije smo na voljo na prodaja@zzi.si ali 01/5303-300. Veseli bomo pripomb in predlogov na info@zzi.si ali www.bizbox.eu!"]
[]
[null,null,"Opozorilo: Ob zagonu bizBox Excel eRačun je potrebno obvezno omogočiti makroje v dokumentu, sicer izdelava eSLOG računa ne deluje! Makroje omogočite z izbiro gumba Omogoči vsebino, kot je prikazano na spodnji sliki:"]
[]
[]
[]
[null,null,"NAVODILA ZA PRIPRAVO ERAČUNOV V FORMATU E-SLOG 2.0"]
[null,null,"eSlog eRačun izdelate v 7 korakih:"]
[null,null,"1. Na listu Izdajatelji vpišete svoje podatke. Lahko vnesete do tri različne izdajatelje."]
[null,null,"2. Na listu Kupci vnesete podatke o vaših strankah. "]
[null,null,"3. Na listu Artikli lahko vnesete podatke o vaših izdelkih ali storitvah. "]
[null,null,"4. Na listu Podatki o računu iz seznama izberete izdajatelja, kupca in prejemnika blaga ter izberete artikle in vnesete podatke o računu."]
[null,null,"5. Na listu Račun si lahko ogledate vizualizacijo računa. Lahko dodate sliko s svojim logotipom. Za zamenjavo slike s svojim logotipom, kliknete na sliko z desnim miškinim gumbom in izberete ukaz \"Zamenjaj sliko\"."]
[null,null,"6. Na listu Podatki o računu izberete gumb Izdelaj e-SLOG 2.0 račun in PDF vizualizacijo in datoteki shranite na disk."]
[null,null,"7. Za podpisovanje eRačuna, pripravo paketa in pošiljanje paketa prejemniku premaknite/kopirajte izdelani datoteki na izhodno mapo (npr. OUT) programa ZZInet. Za pošiljanje morata imeti obe datoteki enako ime (npr. račun.xml in račun.pdf)."]
[]
[]
[null,null,"NAVODILA ZA IZPOLNJEVANJE"]
[null,null,"Na računu izpolnite le polja, za katera imate podatke. Ne vpisujte začasnih podatkov."]
[null,null,"Pri prilepljanju iz drugih virov izbrano celico dvokliknite ali pa besedilo prilepite v vnosno vrstico zgoraj."]
[null,null,"Na listih izdajatelji in kupci so obvezni podatki naziv, naslov, država, davčna številka, ID za DDV, IBAN in BIC. Pri izdajatelju so obvezni tudi podatki podjetja vezani na ZGD."]
[null,null,"V polju država izberite kodo države (Slovenija = SI, Hrvaška = HR)."]
[null,null,"V polju Zavezanec za DDV izberite ali je kupec zavezanec za DDV. Vnos tega podatka je obvezen. Če gre za hrvaško podjetje vedno izberite možnost DA."]
[]
[null,null,"Na listu Artikli lahko dodajate in posodabljate naziv, vašo šifro, enoto, ceno vaših produktov ali storitev. Priporočljivo je, da artikle vnašate sproti, ko jih potrebujete, saj s tem prihranite čas. Nato izbrane artikle vključite na račun. Pri izboru artiklov bodite pozorni na valuto, v kateri zapisujete ceno. Če želite na računu uporabiti drugo valuto lahko to spremenite na listu Podatki o računu. "]
[]
[null,null,"Datume vpisujte v formatu DD-MM-LLLL ali DD.MM.LLLL."]
[null,null,"V polju poslovni proces lahko iz spustnega menija izberete za kateri proces gre. Vnos je priporočljiv v vsakem primeru, pri pošiljanju na Hrvaško pa je obvezen. Razlaga procesov:"]
[null,null,"P1 - Invoicing of deliveries of goods and services against purchase orders, based on a contract"]
[null,null,"P2 - Invoicing deliveries of goods and services based on a contract"]
[null,null,"P3 - Invoicing the delivery of an incidental purchase order"]
[null,null,"P4 - Pre-payment"]
[null,null,"P5 - Spot payment"]
[null,null,"P6 - Payment in advance of delivery"]
[null,null,"P7 - Invoices with references to a despatch advice"]
[null,null,"P8 - Invoices with references to a despatch advice and a receiving advice"]
[null,null,"P9 - Credit notes or invoices with negative amounts, issued for a variety of reasons including the return of empty packaging"]
[null,null,"P10 - Corrective invoicing (cancellation/correction of an invoice)"]
[null,null,"P11 - Partial and final invoicing"]
[null,null,"P12 - Self billing"]
[]
[null,null,"V polje Referenčni dokument lahko s spustnega seznama izberete tip dokumenta, na katerega se nanaša izdani račun. Če račun, ki ga želite izdati, nima referenčnega dokumenta, polje pustite prazno."]
[null,null,"Na računu lahko vnesete tudi stroškovno mesto, in sicer na nivoju celotnega računa (to vnesete v sklopu Podatki o računu) ali na nivoju posamezne postavke."]
[null,null,"Če se na vašem računu davek ne obračuna po standardnih davčnih stopnjah (v primeru obrnjene davčne obveznosti, oprostitve davka, …), v polje Dodatno davčno besedilo vnesite razlog drugačnega obračuna DDV. Polje je zaradi boljše postavitve omejeno z dolžino, vendar se bo v račun zapisalo celotno besedilo."]
[null,null,"V vsaki vrstici artiklov so obvezni podatki: naziv, količina, enota, cena in stopnja DDV."]
[null,null,"V polje Dobaviteljeva šifra izdelka vpišete vašo šifro izdelka. V polju Popust/Pribitek iz seznama izberete ali želite na določeno postavko dati popust ali zaračunati kazen. V naslednjem polju izberete odstotek popusta ali pribitka in nato v naslednjem vpišete še razlog. Če želite na postavki dati popust ali pribitek so vsa tri polja obvezna."]
[null,null,"V polju stroškovno mesto lahko določite stroškovno mesto za posamezno postavko. To uporabite v primeru, ko postavke na računu nimajo enakih stroškovnih mest. V primeru, da za cel račun velja eno stroškovno mesto, ga vpišite v sklopu Podatki o računu."]
[null,null,"Račun lahko vsebuje samo eno davčno kategorijo. Podprte davčne kategorije s pripadajočimi kodami so:"]
[null,null,"S – Standard rate (davčni stopnji 22% in 9,5%)"]
[null,null,"Z – Zero rated goods"]
[null,null,"E – Exempt from tax"]
[null,null,"AE – VAT Reverse Charge (sem spadata tudi davčni stopnji 22% in 9,5% po 76.a členu)"]
[null,null,"K – VAT exempt for EEA intra-community supply of goods and services"]
[null,null,"G – Free export item, tax not charged"]
[null,null,"O – Services outside scope of tax"]
[]
[null,null,"Če izberete davčno stopnjo 0 morate ročno vpisati kodo davčne kategorije in izpolniti polje Dodatno davčno besedilo."]
[null,null,"Če želite izdati račun, kjer imajo postavke različne kode davčnih kategorij, morate izdati več računov in jih razporediti skupaj glede na kodo davčne kategorije."]
[]
[null,null,"Orodje izvozi PDF vizualizacijo glede na državo prejemnika računa. Če je prejemnik iz Slovenije, bodo besedila v slovenščini, za hrvaška podjetja pa bodo besedila v hrvaščini. Na PDF vizualizacijo se pravilen povzetek davkov vpiše ko na listu Podatki o računu pritisnete gumb za izdelavo e-računa."]
[]
[null,null,"BizBox Excel eRačun ni mišljen kot napredna aplikacija za izdajo in vodenje eRačunov temveč enostavno orodje za pomoč tistim, ki nimajo potrebe po bolj naprednih rešitvah in avtomatizaciji. Deluje na verzijah Excel 2007 in novejših."]

{"sheet":"Podatki o računu","index":1,"n_rows":50,"n_cols":24,"rows_kept":50,"cut":false,"hidden":false,"merged":[[3,5,4,8],[3,1,4,1],[3,2,4,2],[22,6,22,8],[14,6,14,8],[15,6,15,8],[16,6,16,8],[17,6,17,8],[18,6,18,8],[6,6,6,8],[7,6,7,8],[10,6,10,8],[11,6,11,8],[13,6,13,8],[8,6,8,8],[9,6,9,8],[24,16,25,16],[33,1,34,1],[33,2,34,2],[24,4,25,4],[24,5,25,5],[24,6,25,6],[24,7,25,7],[24,8,25,8],[24,9,25,9],[24,10,25,10],[24,11,25,11],[24,12,25,12],[24,13,25,13],[24,14,25,14],[24,15,25,15],[19,1,20,1],[19,2,20,2],[19,6,19,8],[20,6,20,8],[21,6,21,8]]}
[]
[null,"bizBox Excel eRačun za eSLOG 2.0",null,null,null,null,null,null,null,null,null,null,null,null,null,null,null,null,null,null,"prikaz iz šifranta"]
[null,null,null,null,null,null,null,null,null,null,null,null,null,null,null,null,null,null,null,null,"izdajatelj",{"$f":"MATCH(C4,Izdajatelji!C3:E3,0)","v":1}]
[null,"Izdajatelj","Podjetje 1",null,null,"Podatki o računu",null,null,null,null,null,null,null,null,null,null,null,null,null,null,"plačnik",{"$f":"MATCH(C20,Kupci!P3:P1000,0)","v":1}]
[null,null,null,null,null,null,null,null,null,null,null,null,null,null,null,null,null,null,null,null,"prejemnik",{"$f":"MATCH(C34,Kupci!P3:P1000,0)","v":1}]
[null,"Naziv podjetja",{"$f":"IF(INDEX(Izdajatelji!$C$3:$E$18,ROW(B2),$V$3)=0,\"\",INDEX(Izdajatelji!$C$3:$E$18,ROW(B2),$V$3))","v":"BIROKRAT d.o.o."},null,null,"Vrsta računa","Račun","Poslovni proces","P1"]
[null,"Naslov podjetja",{"$f":"IF(INDEX(Izdajatelji!$C$3:$E$18,ROW(B3),$V$3)=0,\"\",INDEX(Izdajatelji!$C$3:$E$18,ROW(B3),$V$3))","v":"Dunajska 191"},null,null,"Številka računa","2021-9512"]
[null,"Poštna številka",{"$f":"IF(INDEX(Izdajatelji!$C$3:$E$18,ROW(B4),$V$3)=0,\"\",INDEX(Izdajatelji!$C$3:$E$18,ROW(B4),$V$3))","v":1000},null,null,"Sklic (referenca)",9512]
[null,"Mesto",{"$f":"IF(INDEX(Izdajatelji!$C$3:$E$18,ROW(B5),$V$3)=0,\"\",INDEX(Izdajatelji!$C$3:$E$18,ROW(B5),$V$3))","v":"Ljubljana"},null,null,"Valuta računa","EUR",null,null,null,null,null,null,null,null,"www.bizbox.eu "]
[null,"Država",{"$f":"IF(INDEX(Izdajatelji!$C$3:$E$18,ROW(B6),$V$3)=0,\"\",INDEX(Izdajatelji!$C$3:$E$18,ROW(B6),$V$3))","v":"SI"},null,null,"Datum izdaje računa","2021-04-19",null,null,null,null,"Avtor ZZI d.o.o.",null,null,null,"www.zzi.si "]
[null,"Kontaktna oseba",{"$f":"IF(INDEX(Izdajatelji!$C$3:$E$18,ROW(B7),$V$3)=0,\"\",INDEX(Izdajatelji!$C$3:$E$18,ROW(B7),$V$3))","v":"Bojan Mirčeta"},null,null,"Datum zapadlosti","2021-04-30"]
[null,"E-pošta",{"$f":"IF(INDEX(Izdajatelji!$C$3:$E$18,ROW(B8),$V$3)=0,\"\",INDEX(Izdajatelji!$C$3:$E$18,ROW(B8),$V$3))","v":"bojanm@andersen.si"},null,null,"Datum opravljene storitve / dobave blaga","2021-03-31"]
[null,"Telefon",{"$f":"IF(INDEX(Izdajatelji!$C$3:$E$18,ROW(B9),$V$3)=0,\"\",INDEX(Izdajatelji!$C$3:$E$18,ROW(B9),$V$3))","v":"030 611 000"},null,null,"Obdobje storitve OD",null,"DO",null,null,"bizBox Excel eRačun je brezplačen pripomoček za izdelavo eRačuna v formatu e-Slog 2.0 s pripadajočo "]
[null,"Matična številka",{"$f":"IF(INDEX(Izdajatelji!$C$3:$E$18,ROW(B10),$V$3)=0,\"\",INDEX(Izdajatelji!$C$3:$E$18,ROW(B10),$V$3))","v":"3539482000"},null,null,"Referenčni dokument","Naročilo",null,null,null,"vizualizacijo."]
[null,"Davčna številka",{"$f":"IF(INDEX(Izdajatelji!$C$3:$E$18,ROW(B11),$V$3)=0,\"\",INDEX(Izdajatelji!$C$3:$E$18,ROW(B11),$V$3))","v":"24893099"},null,null,"Številka referenčnega dokumenta","1",null,null,null,"Podrobna navodila za uporabo pripomočka najdete na listu Navodila."]
[null,"Zavezanec za DDV",{"$f":"IF(INDEX(Izdajatelji!$C$3:$E$18,ROW(B12),$V$3)=0,\"\",INDEX(Izdajatelji!$C$3:$E$18,ROW(B12),$V$3))","v":"DA"},null,null,"Način plačila","Račun je potrebno plačati",null,null,null,"Opozorilo: Za  uporabo orodja morate ob zagonu obvezno vključiti makroje v dokumentu, sicer izdelava"]
[null,"IBAN",{"$f":"IF(INDEX(Izdajatelji!$C$3:$E$18,ROW(B13),$V$3)=0,\"\",INDEX(Izdajatelji!$C$3:$E$18,ROW(B13),$V$3))","v":"SI56 1010 0005 7117 281"},null,null,"Koda namena","COST",null,null,null,"e-Slog računa ne deluje. Makroje omogočite z izbiro gumba Omogoči vsebino, ki se prikaže ob zagonu."]
[null,"BIC",{"$f":"IF(INDEX(Izdajatelji!$C$3:$E$18,ROW(B14),$V$3)=0,\"\",INDEX(Izdajatelji!$C$3:$E$18,ROW(B14),$V$3))","v":"LJBASI2X"},null,null,"Številka predhodnega računa"]
[null,null,null,null,null,"Datum izdaje predhodnega računa"]
[null,"Kupec","1 - BIROKRAT IT d.o.o. - Boštjan Juvančič",null,null,"Stroškovno mesto"]
[null,null,null,null,null,"Začetno besedilo nad postavkami","Zaračunavamo vam:\n\nZaradi poenostavitve poslovanja in avtomatizacije postopkov, vam bomo namesto ponudb za podaljšanje letnih posodobitev, odslej pošiljali račune. Za vsa vprašanja, nas lahko pokličete ali nam pošljete elektronsko pošto na info@birokrat.si. \n"]
[null,"Naziv podjetja",{"$f":"IF(INDEX(Kupci!$C$3:$M$1000,$V$4,ROW(B1))=0,\"\",INDEX(Kupci!$C$3:$M$1000,$V$4,ROW(B1)))","v":"BIROKRAT IT d.o.o."},null,null,"Dodatni komentar glede plačila","Pri plačilu se sklicujte na številko 9512 ! Prosimo plačajte račun pravočasno."]
[null,"Kontaktna oseba",{"$f":"IF(INDEX(Kupci!$C$3:$M$1000,$V$4,ROW(B2))=0,\"\",INDEX(Kupci!$C$3:$M$1000,$V$4,ROW(B2)))","v":"Boštjan Juvančič"},null,null,"Dodatno davčno besedilo"]
[null,"Naslov podjetja",{"$f":"IF(INDEX(Kupci!$C$3:$M$1000,$V$4,ROW(B3))=0,\"\",INDEX(Kupci!$C$3:$M$1000,$V$4,ROW(B3)))","v":"Dunajska 191"}]
[null,"Poštna številka",{"$f":"IF(INDEX(Kupci!$C$3:$M$1000,$V$4,ROW(B4))=0,\"\",INDEX(Kupci!$C$3:$M$1000,$V$4,ROW(B4)))","v":1000},null,"#","Naziv","Dobavitelj.\nšifra izdelka","Količina","Enota","Cena","Popust / \nPribitek","Pop. / \nPrib. %","Razlog Pop. / Prib.","Stroškovno\nmesto","DDV %","Znesek","Znesek z DDV"]
[null,"Mesto",{"$f":"IF(INDEX(Kupci!$C$3:$M$1000,$V$4,ROW(B5))=0,\"\",INDEX(Kupci!$C$3:$M$1000,$V$4,ROW(B5)))","v":"Ljubljana"},null,null,null,null,null,null,null,null,null,null,null,null,null,null,null,null,"popust","pribitek","vred. brez p/p","osn. DDV","znes. DDV"]
[null,"Država",{"$f":"IF(INDEX(Kupci!$C$3:$M$1000,$V$4,ROW(B6))=0,\"\",INDEX(Kupci!$C$3:$M$1000,$V$4,ROW(B6)))","v":"SI"},null,null,"Predplačana podpora tehnika/svetovalca preko navadne telefonske linije oz. Povezave",112901811265,5,"ura",58,null,null,null,null,22,{"$f":"IF(H27=\"\",\"\",IF(I27=\"%\",IF(K27=\"Popust\",ROUND(H27/100*J27*(1-L27/100),5),IF(K27=\"Pribitek\",ROUND(H27/100*J27*(1+L27/100),5),H27/100*J27)),IF(K27=\"Popust\",ROUND(H27*J27*(1-L27/100),5),IF(K27=\"Pribitek\",ROUND(H27*J27*(1+L27/100),5),H27*J27))))","v":290},{"$f":"IF(P27=\"\",\"\",ROUND(P27*(1+VLOOKUP(O27,Šifranti!$AG$3:$AH$10,2,FALSE)/100),5))","v":353.8},null,{"$f":"IF(ISNA(VLOOKUP(F27,Artikli!$C$4:$H$1005,6,FALSE)),0,VLOOKUP(F27,Artikli!$C$4:$H$1005,6,FALSE))","v":1},{"$f":"IF(K27=\"Popust\",ROUND(V27*(L27/100), 2), 0)","v":0},{"$f":"IF(K27=\"Pribitek\",ROUND(V27*(L27/100),2),0)","v":0},{"$f":"IF(I27=\"%\",H27/100*J27,H27*J27)","v":290},{"$f":"V27-T27+U27","v":290},{"$f":"W27*IF(O27=\"9,5\",0.095,IF(ISNUMBER(O27),O27/100,0))","v":63.8}]
[null,"Matična številka",{"$f":"IF(INDEX(Kupci!$C$3:$M$1000,$V$4,ROW(B7))=0,\"\",INDEX(Kupci!$C$3:$M$1000,$V$4,ROW(B7)))","v":6538886000},null,null,"Tretji izdelek",null,2,"kos",19.989999999999998,null,null,null,null,22,39.979999999999997,{"$f":"IF(P28=\"\",\"\",ROUND(P28*(1+VLOOKUP(O28,Šifranti!$AG$3:$AH$10,2,FALSE)/100),5))","v":48.775599999999997},null,{"$f":"IF(ISNA(VLOOKUP(F28,Artikli!$C$4:$H$1005,6,FALSE)),0,VLOOKUP(F28,Artikli!$C$4:$H$1005,6,FALSE))","v":0},0,0,39.979999999999997,{"$f":"V28-T28+U28","v":39.979999999999997},8.7955999999999985]
[null,"Davčna številka",{"$f":"IF(INDEX(Kupci!$C$3:$M$1000,$V$4,ROW(B8))=0,\"\",INDEX(Kupci!$C$3:$M$1000,$V$4,ROW(B8)))","v":"84046597"},null,null,null,null,null,null,null,null,null,null,null,null,"",{"$f":"IF(P29=\"\",\"\",ROUND(P29*(1+VLOOKUP(O29,Šifranti!$AG$3:$AH$10,2,FALSE)/100),5))","v":""},null,{"$f":"IF(ISNA(VLOOKUP(F29,Artikli!$C$4:$H$1005,6,FALSE)),0,VLOOKUP(F29,Artikli!$C$4:$H$1005,6,FALSE))","v":0},0,0,0,0,0]
[null,"Zavezanec za DDV",{"$f":"IF(INDEX(Kupci!$C$3:$M$1000,$V$4,ROW(B9))=0,\"\",INDEX(Kupci!$C$3:$M$1000,$V$4,ROW(B9)))","v":"DA"},null,null,null,null,null,null,null,null,null,null,null,null,"",{"$f":"IF(P30=\"\",\"\",ROUND(P30*(1+VLOOKUP(O30,Šifranti!$AG$3:$AH$10,2,FALSE)/100),5))","v":""},null,{"$f":"IF(ISNA(VLOOKUP(F30,Artikli!$C$4:$H$1005,6,FALSE)),0,VLOOKUP(F30,Artikli!$C$4:$H$1005,6,FALSE))","v":0},0,0,0,0,0]
[null,"IBAN",{"$f":"IF(INDEX(Kupci!$C$3:$M$1000,$V$4,ROW(B10))=0,\"\",INDEX(Kupci!$C$3:$M$1000,$V$4,ROW(B10)))","v":"SI56 1010 0005 7229 122"},null,null,null,null,null,null,null,null,null,null,null,null,"",{"$f":"IF(P31=\"\",\"\",ROUND(P31*(1+VLOOKUP(O31,Šifranti!$AG$3:$AH$10,2,FALSE)/100),5))","v":""},null,{"$f":"IF(ISNA(VLOOKUP(F31,Artikli!$C$4:$H$1005,6,FALSE)),0,VLOOKUP(F31,Artikli!$C$4:$H$1005,6,FALSE))","v":0},0,0,0,0,0]
[null,"BIC",{"$f":"IF(INDEX(Kupci!$C$3:$M$1000,$V$4,ROW(B11))=0,\"\",INDEX(Kupci!$C$3:$M$1000,$V$4,ROW(B11)))","v":"BAKOSI2X"},null,null,null,null,null,null,null,null,null,null,null,null,"",{"$f":"IF(P32=\"\",\"\",ROUND(P32*(1+VLOOKUP(O32,Šifranti!$AG$3:$AH$10,2,FALSE)/100),5))","v":""},null,{"$f":"IF(ISNA(VLOOKUP(F32,Artikli!$C$4:$H$1005,6,FALSE)),0,VLOOKUP(F32,Artikli!$C$4:$H$1005,6,FALSE))","v":0},0,0,0,0,0]
[null,null,null,null,null,null,null,null,null,null,null,null,null,null,null,"",{"$f":"IF(P33=\"\",\"\",ROUND(P33*(1+VLOOKUP(O33,Šifranti!$AG$3:$AH$10,2,FALSE)/100),5))","v":""},null,{"$f":"IF(ISNA(VLOOKUP(F33,Artikli!$C$4:$H$1005,6,FALSE)),0,VLOOKUP(F33,Artikli!$C$4:$H$1005,6,FALSE))","v":0},0,0,0,0,0]
[null,"Prejemnik blaga","1 - BIROKRAT IT d.o.o. - Boštjan Juvančič",null,null,null,null,null,null,null,null,null,null,null,null,"",{"$f":"IF(P34=\"\",\"\",ROUND(P34*(1+VLOOKUP(O34,Šifranti!$AG$3:$AH$10,2,FALSE)/100),5))","v":""},null,{"$f":"IF(ISNA(VLOOKUP(F34,Artikli!$C$4:$H$1005,6,FALSE)),0,VLOOKUP(F34,Artikli!$C$4:$H$1005,6,FALSE))","v":0},0,0,0,0,0]
[null,null,null,null,null,null,null,null,null,null,null,null,null,null,null,"",{"$f":"IF(P35=\"\",\"\",ROUND(P35*(1+VLOOKUP(O35,Šifranti!$AG$3:$AH$10,2,FALSE)/100),5))","v":""},null,{"$f":"IF(ISNA(VLOOKUP(F35,Artikli!$C$4:$H$1005,6,FALSE)),0,VLOOKUP(F35,Artikli!$C$4:$H$1005,6,FALSE))","v":0},0,0,0,0,0]
[null,"Naziv podjetja",{"$f":"IF(INDEX(Kupci!$C$3:$M$1000,$V$5,ROW(B1))=0,\"\",INDEX(Kupci!$C$3:$M$1000,$V$5,ROW(B1)))","v":"BIROKRAT IT d.o.o."},null,null,null,null,null,null,null,null,null,null,null,null,"",{"$f":"IF(P36=\"\",\"\",ROUND(P36*(1+VLOOKUP(O36,Šifranti!$AG$3:$AH$10,2,FALSE)/100),5))","v":""},null,{"$f":"IF(ISNA(VLOOKUP(F36,Artikli!$C$4:$H$1005,6,FALSE)),0,VLOOKUP(F36,Artikli!$C$4:$H$1005,6,FALSE))","v":0},0,0,0,0,0]
[null,"Kontaktna oseba",{"$f":"IF(INDEX(Kupci!$C$3:$M$1000,$V$5,ROW(B2))=0,\"\",INDEX(Kupci!$C$3:$M$1000,$V$5,ROW(B2)))","v":"Boštjan Juvančič"},null,null,null,null,null,null,null,null,null,null,null,null,"",{"$f":"IF(P37=\"\",\"\",ROUND(P37*(1+VLOOKUP(O37,Šifranti!$AG$3:$AH$10,2,FALSE)/100),5))","v":""},null,{"$f":"IF(ISNA(VLOOKUP(F37,Artikli!$C$4:$H$1005,6,FALSE)),0,VLOOKUP(F37,Artikli!$C$4:$H$1005,6,FALSE))","v":0},0,0,0,0,0]
[null,"Naslov podjetja",{"$f":"IF(INDEX(Kupci!$C$3:$M$1000,$V$5,ROW(B3))=0,\"\",INDEX(Kupci!$C$3:$M$1000,$V$5,ROW(B3)))","v":"Dunajska 191"},null,null,null,null,null,null,null,null,null,null,null,null,"",{"$f":"IF(P38=\"\",\"\",ROUND(P38*(1+VLOOKUP(O38,Šifranti!$AG$3:$AH$10,2,FALSE)/100),5))","v":""},null,{"$f":"IF(ISNA(VLOOKUP(F38,Artikli!$C$4:$H$1005,6,FALSE)),0,VLOOKUP(F38,Artikli!$C$4:$H$1005,6,FALSE))","v":0},0,0,0,0,0]
[null,"Poštna številka",{"$f":"IF(INDEX(Kupci!$C$3:$M$1000,$V$5,ROW(B4))=0,\"\",INDEX(Kupci!$C$3:$M$1000,$V$5,ROW(B4)))","v":1000},null,null,null,null,null,null,null,null,null,null,null,null,"",{"$f":"IF(P39=\"\",\"\",ROUND(P39*(1+VLOOKUP(O39,Šifranti!$AG$3:$AH$10,2,FALSE)/100),5))","v":""},null,{"$f":"IF(ISNA(VLOOKUP(F39,Artikli!$C$4:$H$1005,6,FALSE)),0,VLOOKUP(F39,Artikli!$C$4:$H$1005,6,FALSE))","v":0},0,0,0,0,0]
[null,"Mesto",{"$f":"IF(INDEX(Kupci!$C$3:$M$1000,$V$5,ROW(B5))=0,\"\",INDEX(Kupci!$C$3:$M$1000,$V$5,ROW(B5)))","v":"Ljubljana"},null,null,null,null,null,null,null,null,null,null,null,null,"",{"$f":"IF(P40=\"\",\"\",ROUND(P40*(1+VLOOKUP(O40,Šifranti!$AG$3:$AH$10,2,FALSE)/100),5))","v":""},null,{"$f":"IF(ISNA(VLOOKUP(F40,Artikli!$C$4:$H$1005,6,FALSE)),0,VLOOKUP(F40,Artikli!$C$4:$H$1005,6,FALSE))","v":0},0,0,0,0,0]
[null,"Država",{"$f":"IF(INDEX(Kupci!$C$3:$M$1000,$V$5,ROW(B6))=0,\"\",INDEX(Kupci!$C$3:$M$1000,$V$5,ROW(B6)))","v":"SI"},null,null,null,null,null,null,null,null,null,null,null,null,"",{"$f":"IF(P41=\"\",\"\",ROUND(P41*(1+VLOOKUP(O41,Šifranti!$AG$3:$AH$10,2,FALSE)/100),5))","v":""},null,{"$f":"IF(ISNA(VLOOKUP(F41,Artikli!$C$4:$H$1005,6,FALSE)),0,VLOOKUP(F41,Artikli!$C$4:$H$1005,6,FALSE))","v":0},0,0,0,0,0]
[null,null,null,null,null,null,null,null,null,null,null,null,null,null,null,"",{"$f":"IF(P42=\"\",\"\",ROUND(P42*(1+VLOOKUP(O42,Šifranti!$AG$3:$AH$10,2,FALSE)/100),5))","v":""},null,{"$f":"IF(ISNA(VLOOKUP(F42,Artikli!$C$4:$H$1005,6,FALSE)),0,VLOOKUP(F42,Artikli!$C$4:$H$1005,6,FALSE))","v":0},0,0,0,0,0]
[null,"Račun izdal/-a","Nastja Mikluš",null,null,null,null,null,null,null,null,null,null,null,null,"",{"$f":"IF(P43=\"\",\"\",ROUND(P43*(1+VLOOKUP(O43,Šifranti!$AG$3:$AH$10,2,FALSE)/100),5))","v":""},null,{"$f":"IF(ISNA(VLOOKUP(F43,Artikli!$C$4:$H$1005,6,FALSE)),0,VLOOKUP(F43,Artikli!$C$4:$H$1005,6,FALSE))","v":0},0,0,0,0,0]
[null,"Koda kategorije DDV","S",null,null,null,null,null,null,null,null,null,null,null,null,"",{"$f":"IF(P44=\"\",\"\",ROUND(P44*(1+VLOOKUP(O44,Šifranti!$AG$3:$AH$10,2,FALSE)/100),5))","v":""},null,{"$f":"IF(ISNA(VLOOKUP(F44,Artikli!$C$4:$H$1005,6,FALSE)),0,VLOOKUP(F44,Artikli!$C$4:$H$1005,6,FALSE))","v":0},0,0,0,0,0]
[null,null,null,null,null,null,null,null,null,null,null,null,null,null,null,"",{"$f":"IF(P45=\"\",\"\",ROUND(P45*(1+VLOOKUP(O45,Šifranti!$AG$3:$AH$10,2,FALSE)/100),5))","v":""},null,{"$f":"IF(ISNA(VLOOKUP(F45,Artikli!$C$4:$H$1005,6,FALSE)),0,VLOOKUP(F45,Artikli!$C$4:$H$1005,6,FALSE))","v":0},0,0,0,0,0]
[null,"verzija 2.09",null,null,null,null,null,null,null,null,null,null,null,null,null,"",{"$f":"IF(P46=\"\",\"\",ROUND(P46*(1+VLOOKUP(O46,Šifranti!$AG$3:$AH$10,2,FALSE)/100),5))","v":""},null,{"$f":"IF(ISNA(VLOOKUP(F46,Artikli!$C$4:$H$1005,6,FALSE)),0,VLOOKUP(F46,Artikli!$C$4:$H$1005,6,FALSE))","v":0},0,0,0,0,0]
[]
[]
[]
[null,null,null,null,null,"HR"]

{"sheet":"Račun HR","index":2,"n_rows":56,"n_cols":15,"rows_kept":56,"cut":false,"hidden":false,"merged":[[54,1,54,12],[41,11,41,12],[42,11,42,12],[43,11,43,12],[44,11,44,12],[50,1,51,12],[52,1,53,12],[40,11,40,12],[28,1,28,3],[29,1,29,3],[30,1,30,3],[31,1,31,3],[32,1,32,3],[33,1,33,3],[34,1,34,3],[35,1,35,3],[36,1,36,3],[37,1,37,3],[39,11,39,12],[27,1,27,3],[15,1,15,12],[17,1,17,3],[18,1,18,3],[19,1,19,3],[20,1,20,3],[21,1,21,3],[22,1,22,3],[23,1,23,3],[24,1,24,3],[25,1,25,3],[26,1,26,3]]}
[null,{"$f":"'Podatki o računu'!C6&\", \"&'Podatki o računu'!C7&\", \"&'Podatki o računu'!C8&\" \"&'Podatki o računu'!C9&\", \"&'Podatki o računu'!C10","v":"BIROKRAT d.o.o., Dunajska 191, 1000 Ljubljana, SI"}]
[null,{"$f":"IF('Podatki o računu'!C11<>\"\",\"\"&'Podatki o računu'!C11&\", E: \"&'Podatki o računu'!C12&\", T: \"&'Podatki o računu'!C13,\"\"&\"E: \"&'Podatki o računu'!C12&\", T: \"&'Podatki o računu'!C13)","v":"Bojan Mirčeta, E: bojanm@andersen.si, T: 030 611 000"}]
[null,{"$f":"IF('Podatki o računu'!C16=\"DA\",\"PDV ID: \"&'Podatki o računu'!C10&'Podatki o računu'!C15,\"Porezni broj: \"&'Podatki o računu'!C15)","v":"PDV ID: SI24893099"}]
[null,{"$f":"\"IBAN: \"&'Podatki o računu'!C17&\", BIC: \"&'Podatki o računu'!C18","v":"IBAN: SI56 1010 0005 7117 281, BIC: LJBASI2X"}]
[]
[null,"KUPAC",null,null,null,"PRIMATELJ",null,null,null,{"$f":"'Podatki o računu'!G6&\" br. \"&'Podatki o računu'!G7","v":"Račun br. 2021-9512"}]
[null,{"$f":"'Podatki o računu'!C22","v":"BIROKRAT IT d.o.o."},null,null,null,{"$f":"'Podatki o računu'!C36","v":"BIROKRAT IT d.o.o."},null,null,null,"Datum izdavanja",null,null,{"$f":"TEXT('Podatki o računu'!G10,\"dd. mm. yyyy\")","v":"19. 04. 2021"}]
[null,{"$f":"'Podatki o računu'!C23","v":"Boštjan Juvančič"},null,null,null,{"$f":"'Podatki o računu'!C37","v":"Boštjan Juvančič"},null,null,null,"Datum usluge/isporuke robe",null,null,{"$f":"IF('Podatki o računu'!G12=\"\",\"-\",\"\"&TEXT('Podatki o računu'!G12,\"dd.mm.yyyy\"))","v":"31.03.2021"}]
[null,{"$f":"'Podatki o računu'!C24","v":"Dunajska 191"},null,null,null,{"$f":"'Podatki o računu'!C38","v":"Dunajska 191"},null,null,null,"Razdoblje usluge",null,null,{"$f":"IF(OR('Podatki o računu'!G13=\"\",'Podatki o računu'!I13=\"\"),\"-\",\"\"&TEXT('Podatki o računu'!G13,\"dd.mm.yyyy\")&\" do \"&TEXT('Podatki o računu'!I13,\"dd.mm.yyyy\"))","v":"-"}]
[null,{"$f":"'Podatki o računu'!C25&\" \"&'Podatki o računu'!C26","v":"1000 Ljubljana"},null,null,null,{"$f":"'Podatki o računu'!C39&\" \"&'Podatki o računu'!C40","v":"1000 Ljubljana"},null,null,null,"Datum dospijeća",null,null,{"$f":"TEXT('Podatki o računu'!G11,\"dd. mm. yyyy\")","v":"30. 04. 2021"}]
[null,{"$f":"'Podatki o računu'!C27","v":"SI"},null,null,null,{"$f":"'Podatki o računu'!C41","v":"SI"},null,null,null,"Referentni dokument",null,null,{"$f":"'Podatki o računu'!G14&\" \"&'Podatki o računu'!G15","v":"Naročilo 1"}]
[null,{"$f":"IF('Podatki o računu'!C30=\"DA\",\"PDV ID: \"&'Podatki o računu'!C27&'Podatki o računu'!C29,\"Porezni broj: \"&'Podatki o računu'!C29)","v":"PDV ID: SI84046597"},null,null,null,null,null,null,null,"Poziv na broj",null,null,{"$f":"IF('Podatki o računu'!G8=\"\",\"\",'Podatki o računu'!G8)","v":9512}]
[null,{"$f":"'Podatki o računu'!C31&IF(AND('Podatki o računu'!C31<>\"\",'Podatki o računu'!C32<>\"\"),\", \",\"\")&'Podatki o računu'!C32","v":"SI56 1010 0005 7229 122, BAKOSI2X"},null,null,null,null,null,null,null,"Šifra namjene",null,null,{"$f":"'Podatki o računu'!G17","v":"COST"}]
[null,null,null,null,null,null,null,null,null,"Troškovno mjesto",null,null,{"$f":"IF('Podatki o računu'!G20=\"\",\"\",'Podatki o računu'!G20)","v":""}]
[]
[null,{"$f":"IF('Podatki o računu'!G21=\"\",\"\",'Podatki o računu'!G21)","v":"Zaračunavamo vam:\n\nZaradi poenostavitve poslovanja in avtomatizacije postopkov, vam bomo namesto ponudb za podaljšanje letnih posodobitev, odslej pošiljali račune. Za vsa vprašanja, nas lahko pokličete ali nam pošljete elektronsko pošto na info@birokrat.si. \n"}]
[]
[null,"Naziv",null,null,"Količina","JM","Cijena","Popust/\nKazna","Razlog","Troškovno mjesto","PDV %","Iznos","Iznos sa PDV-om"]
[null,{"$f":"IF('Podatki o računu'!F27=\"\",\"\",'Podatki o računu'!F27)","v":"Predplačana podpora tehnika/svetovalca preko navadne telefonske linije oz. Povezave"},null,null,{"$f":"IF('Podatki o računu'!H27=\"\",\"\",'Podatki o računu'!H27)","v":5},{"$f":"IF('Podatki o računu'!I27=\"\",\"\",IF('Podatki o računu'!I27=\"kos\",\"komad\",'Podatki o računu'!I27))","v":"ura"},{"$f":"IF('Podatki o računu'!J27=\"\",\"\",'Podatki o računu'!J27)","v":58},{"$f":"IF('Podatki o računu'!K27=\"Popust\",\"Popust \"&'Podatki o računu'!L27&\"%\",IF('Podatki o računu'!K27=\"Pribitek\",\"Pribitek \"&'Podatki o računu'!L27&\"%\",\"\"))","v":""},{"$f":"IF('Podatki o računu'!M27=\"\",\"\",'Podatki o računu'!M27)","v":""},{"$f":"IF('Podatki o računu'!N27=\"\",\"\",'Podatki o računu'!N27)","v":""},{"$f":"IF('Podatki o računu'!O27=\"\",\"\",'Podatki o računu'!O27)","v":22},{"$f":"IF('Podatki o računu'!P27=\"\",\"\",'Podatki o računu'!P27)","v":290},{"$f":"IF('Podatki o računu'!Q27=\"\",\"\",'Podatki o računu'!Q27)","v":353.8}]
[null,{"$f":"IF('Podatki o računu'!F28=\"\",\"\",'Podatki o računu'!F28)","v":"Tretji izdelek"},null,null,{"$f":"IF('Podatki o računu'!H28=\"\",\"\",'Podatki o računu'!H28)","v":2},{"$f":"IF('Podatki o računu'!I28=\"\",\"\",IF('Podatki o računu'!I28=\"kos\",\"komad\",'Podatki o računu'!I28))","v":"komad"},{"$f":"IF('Podatki o računu'!J28=\"\",\"\",'Podatki o računu'!J28)","v":19.989999999999998},{"$f":"IF('Podatki o računu'!K28=\"Popust\",\"Popust \"&'Podatki o računu'!L28&\"%\",IF('Podatki o računu'!K28=\"Pribitek\",\"Pribitek \"&'Podatki o računu'!L28&\"%\",\"\"))","v":""},{"$f":"IF('Podatki o računu'!M28=\"\",\"\",'Podatki o računu'!M28)","v":""},{"$f":"IF('Podatki o računu'!N28=\"\",\"\",'Podatki o računu'!N28)","v":""},{"$f":"IF('Podatki o računu'!O28=\"\",\"\",'Podatki o računu'!O28)","v":22},{"$f":"IF('Podatki o računu'!P28=\"\",\"\",'Podatki o računu'!P28)","v":39.979999999999997},{"$f":"IF('Podatki o računu'!Q28=\"\",\"\",'Podatki o računu'!Q28)","v":48.775599999999997}]
[null,{"$f":"IF('Podatki o računu'!F29=\"\",\"\",'Podatki o računu'!F29)","v":""},null,null,{"$f":"IF('Podatki o računu'!H29=\"\",\"\",'Podatki o računu'!H29)","v":""},{"$f":"IF('Podatki o računu'!I29=\"\",\"\",IF('Podatki o računu'!I29=\"kos\",\"komad\",'Podatki o računu'!I29))","v":""},{"$f":"IF('Podatki o računu'!J29=\"\",\"\",'Podatki o računu'!J29)","v":""},{"$f":"IF('Podatki o računu'!K29=\"Popust\",\"Popust \"&'Podatki o računu'!L29&\"%\",IF('Podatki o računu'!K29=\"Pribitek\",\"Pribitek \"&'Podatki o računu'!L29&\"%\",\"\"))","v":""},{"$f":"IF('Podatki o računu'!M29=\"\",\"\",'Podatki o računu'!M29)","v":""},{"$f":"IF('Podatki o računu'!N29=\"\",\"\",'Podatki o računu'!N29)","v":""},{"$f":"IF('Podatki o računu'!O29=\"\",\"\",'Podatki o računu'!O29)","v":""},{"$f":"IF('Podatki o računu'!P29=\"\",\"\",'Podatki o računu'!P29)","v":""},{"$f":"IF('Podatki o računu'!Q29=\"\",\"\",'Podatki o računu'!Q29)","v":""}]
[null,{"$f":"IF('Podatki o računu'!F30=\"\",\"\",'Podatki o računu'!F30)","v":""},null,null,{"$f":"IF('Podatki o računu'!H30=\"\",\"\",'Podatki o računu'!H30)","v":""},{"$f":"IF('Podatki o računu'!I30=\"\",\"\",IF('Podatki o računu'!I30=\"kos\",\"komad\",'Podatki o računu'!I30))","v":""},{"$f":"IF('Podatki o računu'!J30=\"\",\"\",'Podatki o računu'!J30)","v":""},{"$f":"IF('Podatki o računu'!K30=\"Popust\",\"Popust \"&'Podatki o računu'!L30&\"%\",IF('Podatki o računu'!K30=\"Pribitek\",\"Pribitek \"&'Podatki o računu'!L30&\"%\",\"\"))","v":""},{"$f":"IF('Podatki o računu'!M30=\"\",\"\",'Podatki o računu'!M30)","v":""},{"$f":"IF('Podatki o računu'!N30=\"\",\"\",'Podatki o računu'!N30)","v":""},{"$f":"IF('Podatki o računu'!O30=\"\",\"\",'Podatki o računu'!O30)","v":""},{"$f":"IF('Podatki o računu'!P30=\"\",\"\",'Podatki o računu'!P30)","v":""},{"$f":"IF('Podatki o računu'!Q30=\"\",\"\",'Podatki o računu'!Q30)","v":""}]
[null,{"$f":"IF('Podatki o računu'!F31=\"\",\"\",'Podatki o računu'!F31)","v":""},null,null,{"$f":"IF('Podatki o računu'!H31=\"\",\"\",'Podatki o računu'!H31)","v":""},{"$f":"IF('Podatki o računu'!I31=\"\",\"\",IF('Podatki o računu'!I31=\"kos\",\"komad\",'Podatki o računu'!I31))","v":""},{"$f":"IF('Podatki o računu'!J31=\"\",\"\",'Podatki o računu'!J31)","v":""},{"$f":"IF('Podatki o računu'!K31=\"Popust\",\"Popust \"&'Podatki o računu'!L31&\"%\",IF('Podatki o računu'!K31=\"Pribitek\",\"Pribitek \"&'Podatki o računu'!L31&\"%\",\"\"))","v":""},{"$f":"IF('Podatki o računu'!M31=\"\",\"\",'Podatki o računu'!M31)","v":""},{"$f":"IF('Podatki o računu'!N31=\"\",\"\",'Podatki o računu'!N31)","v":""},{"$f":"IF('Podatki o računu'!O31=\"\",\"\",'Podatki o računu'!O31)","v":""},{"$f":"IF('Podatki o računu'!P31=\"\",\"\",'Podatki o računu'!P31)","v":""},{"$f":"IF('Podatki o računu'!Q31=\"\",\"\",'Podatki o računu'!Q31)","v":""}]
[null,{"$f":"IF('Podatki o računu'!F32=\"\",\"\",'Podatki o računu'!F32)","v":""},null,null,{"$f":"IF('Podatki o računu'!H32=\"\",\"\",'Podatki o računu'!H32)","v":""},{"$f":"IF('Podatki o računu'!I32=\"\",\"\",IF('Podatki o računu'!I32=\"kos\",\"komad\",'Podatki o računu'!I32))","v":""},{"$f":"IF('Podatki o računu'!J32=\"\",\"\",'Podatki o računu'!J32)","v":""},{"$f":"IF('Podatki o računu'!K32=\"Popust\",\"Popust \"&'Podatki o računu'!L32&\"%\",IF('Podatki o računu'!K32=\"Pribitek\",\"Pribitek \"&'Podatki o računu'!L32&\"%\",\"\"))","v":""},{"$f":"IF('Podatki o računu'!M32=\"\",\"\",'Podatki o računu'!M32)","v":""},{"$f":"IF('Podatki o računu'!N32=\"\",\"\",'Podatki o računu'!N32)","v":""},{"$f":"IF('Podatki o računu'!O32=\"\",\"\",'Podatki o računu'!O32)","v":""},{"$f":"IF('Podatki o računu'!P32=\"\",\"\",'Podatki o računu'!P32)","v":""},{"$f":"IF('Podatki o računu'!Q32=\"\",\"\",'Podatki o računu'!Q32)","v":""}]
[null,{"$f":"IF('Podatki o računu'!F33=\"\",\"\",'Podatki o računu'!F33)","v":""},null,null,{"$f":"IF('Podatki o računu'!H33=\"\",\"\",'Podatki o računu'!H33)","v":""},{"$f":"IF('Podatki o računu'!I33=\"\",\"\",IF('Podatki o računu'!I33=\"kos\",\"komad\",'Podatki o računu'!I33))","v":""},{"$f":"IF('Podatki o računu'!J33=\"\",\"\",'Podatki o računu'!J33)","v":""},{"$f":"IF('Podatki o računu'!K33=\"Popust\",\"Popust \"&'Podatki o računu'!L33&\"%\",IF('Podatki o računu'!K33=\"Pribitek\",\"Pribitek \"&'Podatki o računu'!L33&\"%\",\"\"))","v":""},{"$f":"IF('Podatki o računu'!M33=\"\",\"\",'Podatki o računu'!M33)","v":""},{"$f":"IF('Podatki o računu'!N33=\"\",\"\",'Podatki o računu'!N33)","v":""},{"$f":"IF('Podatki o računu'!O33=\"\",\"\",'Podatki o računu'!O33)","v":""},{"$f":"IF('Podatki o računu'!P33=\"\",\"\",'Podatki o računu'!P33)","v":""},{"$f":"IF('Podatki o računu'!Q33=\"\",\"\",'Podatki o računu'!Q33)","v":""}]
[null,{"$f":"IF('Podatki o računu'!F34=\"\",\"\",'Podatki o računu'!F34)","v":""},null,null,{"$f":"IF('Podatki o računu'!H34=\"\",\"\",'Podatki o računu'!H34)","v":""},{"$f":"IF('Podatki o računu'!I34=\"\",\"\",IF('Podatki o računu'!I34=\"kos\",\"komad\",'Podatki o računu'!I34))","v":""},{"$f":"IF('Podatki o računu'!J34=\"\",\"\",'Podatki o računu'!J34)","v":""},{"$f":"IF('Podatki o računu'!K34=\"Popust\",\"Popust \"&'Podatki o računu'!L34&\"%\",IF('Podatki o računu'!K34=\"Pribitek\",\"Pribitek \"&'Podatki o računu'!L34&\"%\",\"\"))","v":""},{"$f":"IF('Podatki o računu'!M34=\"\",\"\",'Podatki o računu'!M34)","v":""},{"$f":"IF('Podatki o računu'!N34=\"\",\"\",'Podatki o računu'!N34)","v":""},{"$f":"IF('Podatki o računu'!O34=\"\",\"\",'Podatki o računu'!O34)","v":""},{"$f":"IF('Podatki o računu'!P34=\"\",\"\",'Podatki o računu'!P34)","v":""},{"$f":"IF('Podatki o računu'!Q34=\"\",\"\",'Podatki o računu'!Q34)","v":""}]
[null,{"$f":"IF('Podatki o računu'!F35=\"\",\"\",'Podatki o računu'!F35)","v":""},null,null,{"$f":"IF('Podatki o računu'!H35=\"\",\"\",'Podatki o računu'!H35)","v":""},{"$f":"IF('Podatki o računu'!I35=\"\",\"\",IF('Podatki o računu'!I35=\"kos\",\"komad\",'Podatki o računu'!I35))","v":""},{"$f":"IF('Podatki o računu'!J35=\"\",\"\",'Podatki o računu'!J35)","v":""},{"$f":"IF('Podatki o računu'!K35=\"Popust\",\"Popust \"&'Podatki o računu'!L35&\"%\",IF('Podatki o računu'!K35=\"Pribitek\",\"Pribitek \"&'Podatki o računu'!L35&\"%\",\"\"))","v":""},{"$f":"IF('Podatki o računu'!M35=\"\",\"\",'Podatki o računu'!M35)","v":""},{"$f":"IF('Podatki o računu'!N35=\"\",\"\",'Podatki o računu'!N35)","v":""},{"$f":"IF('Podatki o računu'!O35=\"\",\"\",'Podatki o računu'!O35)","v":""},{"$f":"IF('Podatki o računu'!P35=\"\",\"\",'Podatki o računu'!P35)","v":""},{"$f":"IF('Podatki o računu'!Q35=\"\",\"\",'Podatki o računu'!Q35)","v":""}]
[null,{"$f":"IF('Podatki o računu'!F36=\"\",\"\",'Podatki o računu'!F36)","v":""},null,null,{"$f":"IF('Podatki o računu'!H36=\"\",\"\",'Podatki o računu'!H36)","v":""},{"$f":"IF('Podatki o računu'!I36=\"\",\"\",IF('Podatki o računu'!I36=\"kos\",\"komad\",'Podatki o računu'!I36))","v":""},{"$f":"IF('Podatki o računu'!J36=\"\",\"\",'Podatki o računu'!J36)","v":""},{"$f":"IF('Podatki o računu'!K36=\"Popust\",\"Popust \"&'Podatki o računu'!L36&\"%\",IF('Podatki o računu'!K36=\"Pribitek\",\"Pribitek \"&'Podatki o računu'!L36&\"%\",\"\"))","v":""},{"$f":"IF('Podatki o računu'!M36=\"\",\"\",'Podatki o računu'!M36)","v":""},{"$f":"IF('Podatki o računu'!N36=\"\",\"\",'Podatki o računu'!N36)","v":""},{"$f":"IF('Podatki o računu'!O36=\"\",\"\",'Podatki o računu'!O36)","v":""},{"$f":"IF('Podatki o računu'!P36=\"\",\"\",'Podatki o računu'!P36)","v":""},{"$f":"IF('Podatki o računu'!Q36=\"\",\"\",'Podatki o računu'!Q36)","v":""}]
[null,{"$f":"IF('Podatki o računu'!F37=\"\",\"\",'Podatki o računu'!F37)","v":""},null,null,{"$f":"IF('Podatki o računu'!H37=\"\",\"\",'Podatki o računu'!H37)","v":""},{"$f":"IF('Podatki o računu'!I37=\"\",\"\",IF('Podatki o računu'!I37=\"kos\",\"komad\",'Podatki o računu'!I37))","v":""},{"$f":"IF('Podatki o računu'!J37=\"\",\"\",'Podatki o računu'!J37)","v":""},{"$f":"IF('Podatki o računu'!K37=\"Popust\",\"Popust \"&'Podatki o računu'!L37&\"%\",IF('Podatki o računu'!K37=\"Pribitek\",\"Pribitek \"&'Podatki o računu'!L37&\"%\",\"\"))","v":""},{"$f":"IF('Podatki o računu'!M37=\"\",\"\",'Podatki o računu'!M37)","v":""},{"$f":"IF('Podatki o računu'!N37=\"\",\"\",'Podatki o računu'!N37)","v":""},{"$f":"IF('Podatki o računu'!O37=\"\",\"\",'Podatki o računu'!O37)","v":""},{"$f":"IF('Podatki o računu'!P37=\"\",\"\",'Podatki o računu'!P37)","v":""},{"$f":"IF('Podatki o računu'!Q37=\"\",\"\",'Podatki o računu'!Q37)","v":""}]
[null,{"$f":"IF('Podatki o računu'!F38=\"\",\"\",'Podatki o računu'!F38)","v":""},null,null,{"$f":"IF('Podatki o računu'!H38=\"\",\"\",'Podatki o računu'!H38)","v":""},{"$f":"IF('Podatki o računu'!I38=\"\",\"\",IF('Podatki o računu'!I38=\"kos\",\"komad\",'Podatki o računu'!I38))","v":""},{"$f":"IF('Podatki o računu'!J38=\"\",\"\",'Podatki o računu'!J38)","v":""},{"$f":"IF('Podatki o računu'!K38=\"Popust\",\"Popust \"&'Podatki o računu'!L38&\"%\",IF('Podatki o računu'!K38=\"Pribitek\",\"Pribitek \"&'Podatki o računu'!L38&\"%\",\"\"))","v":""},{"$f":"IF('Podatki o računu'!M38=\"\",\"\",'Podatki o računu'!M38)","v":""},{"$f":"IF('Podatki o računu'!N38=\"\",\"\",'Podatki o računu'!N38)","v":""},{"$f":"IF('Podatki o računu'!O38=\"\",\"\",'Podatki o računu'!O38)","v":""},{"$f":"IF('Podatki o računu'!P38=\"\",\"\",'Podatki o računu'!P38)","v":""},{"$f":"IF('Podatki o računu'!Q38=\"\",\"\",'Podatki o računu'!Q38)","v":""}]
[null,{"$f":"IF('Podatki o računu'!F39=\"\",\"\",'Podatki o računu'!F39)","v":""},null,null,{"$f":"IF('Podatki o računu'!H39=\"\",\"\",'Podatki o računu'!H39)","v":""},{"$f":"IF('Podatki o računu'!I39=\"\",\"\",IF('Podatki o računu'!I39=\"kos\",\"komad\",'Podatki o računu'!I39))","v":""},{"$f":"IF('Podatki o računu'!J39=\"\",\"\",'Podatki o računu'!J39)","v":""},{"$f":"IF('Podatki o računu'!K39=\"Popust\",\"Popust \"&'Podatki o računu'!L39&\"%\",IF('Podatki o računu'!K39=\"Pribitek\",\"Pribitek \"&'Podatki o računu'!L39&\"%\",\"\"))","v":""},{"$f":"IF('Podatki o računu'!M39=\"\",\"\",'Podatki o računu'!M39)","v":""},{"$f":"IF('Podatki o računu'!N39=\"\",\"\",'Podatki o računu'!N39)","v":""},{"$f":"IF('Podatki o računu'!O39=\"\",\"\",'Podatki o računu'!O39)","v":""},{"$f":"IF('Podatki o računu'!P39=\"\",\"\",'Podatki o računu'!P39)","v":""},{"$f":"IF('Podatki o računu'!Q39=\"\",\"\",'Podatki o računu'!Q39)","v":""}]
[null,{"$f":"IF('Podatki o računu'!F40=\"\",\"\",'Podatki o računu'!F40)","v":""},null,null,{"$f":"IF('Podatki o računu'!H40=\"\",\"\",'Podatki o računu'!H40)","v":""},{"$f":"IF('Podatki o računu'!I40=\"\",\"\",IF('Podatki o računu'!I40=\"kos\",\"komad\",'Podatki o računu'!I40))","v":""},{"$f":"IF('Podatki o računu'!J40=\"\",\"\",'Podatki o računu'!J40)","v":""},{"$f":"IF('Podatki o računu'!K40=\"Popust\",\"Popust \"&'Podatki o računu'!L40&\"%\",IF('Podatki o računu'!K40=\"Pribitek\",\"Pribitek \"&'Podatki o računu'!L40&\"%\",\"\"))","v":""},{"$f":"IF('Podatki o računu'!M40=\"\",\"\",'Podatki o računu'!M40)","v":""},{"$f":"IF('Podatki o računu'!N40=\"\",\"\",'Podatki o računu'!N40)","v":""},{"$f":"IF('Podatki o računu'!O40=\"\",\"\",'Podatki o računu'!O40)","v":""},{"$f":"IF('Podatki o računu'!P40=\"\",\"\",'Podatki o računu'!P40)","v":""},{"$f":"IF('Podatki o računu'!Q40=\"\",\"\",'Podatki o računu'!Q40)","v":""}]
[null,{"$f":"IF('Podatki o računu'!F41=\"\",\"\",'Podatki o računu'!F41)","v":""},null,null,{"$f":"IF('Podatki o računu'!H41=\"\",\"\",'Podatki o računu'!H41)","v":""},{"$f":"IF('Podatki o računu'!I41=\"\",\"\",IF('Podatki o računu'!I41=\"kos\",\"komad\",'Podatki o računu'!I41))","v":""},{"$f":"IF('Podatki o računu'!J41=\"\",\"\",'Podatki o računu'!J41)","v":""},{"$f":"IF('Podatki o računu'!K41=\"Popust\",\"Popust \"&'Podatki o računu'!L41&\"%\",IF('Podatki o računu'!K41=\"Pribitek\",\"Pribitek \"&'Podatki o računu'!L41&\"%\",\"\"))","v":""},{"$f":"IF('Podatki o računu'!M41=\"\",\"\",'Podatki o računu'!M41)","v":""},{"$f":"IF('Podatki o računu'!N41=\"\",\"\",'Podatki o računu'!N41)","v":""},{"$f":"IF('Podatki o računu'!O41=\"\",\"\",'Podatki o računu'!O41)","v":""},{"$f":"IF('Podatki o računu'!P41=\"\",\"\",'Podatki o računu'!P41)","v":""},{"$f":"IF('Podatki o računu'!Q41=\"\",\"\",'Podatki o računu'!Q41)","v":""}]
[null,{"$f":"IF('Podatki o računu'!F42=\"\",\"\",'Podatki o računu'!F42)","v":""},null,null,{"$f":"IF('Podatki o računu'!H42=\"\",\"\",'Podatki o računu'!H42)","v":""},{"$f":"IF('Podatki o računu'!I42=\"\",\"\",IF('Podatki o računu'!I42=\"kos\",\"komad\",'Podatki o računu'!I42))","v":""},{"$f":"IF('Podatki o računu'!J42=\"\",\"\",'Podatki o računu'!J42)","v":""},{"$f":"IF('Podatki o računu'!K42=\"Popust\",\"Popust \"&'Podatki o računu'!L42&\"%\",IF('Podatki o računu'!K42=\"Pribitek\",\"Pribitek \"&'Podatki o računu'!L42&\"%\",\"\"))","v":""},{"$f":"IF('Podatki o računu'!M42=\"\",\"\",'Podatki o računu'!M42)","v":""},{"$f":"IF('Podatki o računu'!N42=\"\",\"\",'Podatki o računu'!N42)","v":""},{"$f":"IF('Podatki o računu'!O42=\"\",\"\",'Podatki o računu'!O42)","v":""},{"$f":"IF('Podatki o računu'!P42=\"\",\"\",'Podatki o računu'!P42)","v":""},{"$f":"IF('Podatki o računu'!Q42=\"\",\"\",'Podatki o računu'!Q42)","v":""}]
[null,{"$f":"IF('Podatki o računu'!F43=\"\",\"\",'Podatki o računu'!F43)","v":""},null,null,{"$f":"IF('Podatki o računu'!H43=\"\",\"\",'Podatki o računu'!H43)","v":""},{"$f":"IF('Podatki o računu'!I43=\"\",\"\",IF('Podatki o računu'!I43=\"kos\",\"komad\",'Podatki o računu'!I43))","v":""},{"$f":"IF('Podatki o računu'!J43=\"\",\"\",'Podatki o računu'!J43)","v":""},{"$f":"IF('Podatki o računu'!K43=\"Popust\",\"Popust \"&'Podatki o računu'!L43&\"%\",IF('Podatki o računu'!K43=\"Pribitek\",\"Pribitek \"&'Podatki o računu'!L43&\"%\",\"\"))","v":""},{"$f":"IF('Podatki o računu'!M43=\"\",\"\",'Podatki o računu'!M43)","v":""},{"$f":"IF('Podatki o računu'!N43=\"\",\"\",'Podatki o računu'!N43)","v":""},{"$f":"IF('Podatki o računu'!O43=\"\",\"\",'Podatki o računu'!O43)","v":""},{"$f":"IF('Podatki o računu'!P43=\"\",\"\",'Podatki o računu'!P43)","v":""},{"$f":"IF('Podatki o računu'!Q43=\"\",\"\",'Podatki o računu'!Q43)","v":""}]
[null,{"$f":"IF('Podatki o računu'!F44=\"\",\"\",'Podatki o računu'!F44)","v":""},null,null,{"$f":"IF('Podatki o računu'!H44=\"\",\"\",'Podatki o računu'!H44)","v":""},{"$f":"IF('Podatki o računu'!I44=\"\",\"\",IF('Podatki o računu'!I44=\"kos\",\"komad\",'Podatki o računu'!I44))","v":""},{"$f":"IF('Podatki o računu'!J44=\"\",\"\",'Podatki o računu'!J44)","v":""},{"$f":"IF('Podatki o računu'!K44=\"Popust\",\"Popust \"&'Podatki o računu'!L44&\"%\",IF('Podatki o računu'!K44=\"Pribitek\",\"Pribitek \"&'Podatki o računu'!L44&\"%\",\"\"))","v":""},{"$f":"IF('Podatki o računu'!M44=\"\",\"\",'Podatki o računu'!M44)","v":""},{"$f":"IF('Podatki o računu'!N44=\"\",\"\",'Podatki o računu'!N44)","v":""},{"$f":"IF('Podatki o računu'!O44=\"\",\"\",'Podatki o računu'!O44)","v":""},{"$f":"IF('Podatki o računu'!P44=\"\",\"\",'Podatki o računu'!P44)","v":""},{"$f":"IF('Podatki o računu'!Q44=\"\",\"\",'Podatki o računu'!Q44)","v":""}]
[null,{"$f":"IF('Podatki o računu'!F45=\"\",\"\",'Podatki o računu'!F45)","v":""},null,null,{"$f":"IF('Podatki o računu'!H45=\"\",\"\",'Podatki o računu'!H45)","v":""},{"$f":"IF('Podatki o računu'!I45=\"\",\"\",IF('Podatki o računu'!I45=\"kos\",\"komad\",'Podatki o računu'!I45))","v":""},{"$f":"IF('Podatki o računu'!J45=\"\",\"\",'Podatki o računu'!J45)","v":""},{"$f":"IF('Podatki o računu'!K45=\"Popust\",\"Popust \"&'Podatki o računu'!L45&\"%\",IF('Podatki o računu'!K45=\"Pribitek\",\"Pribitek \"&'Podatki o računu'!L45&\"%\",\"\"))","v":""},{"$f":"IF('Podatki o računu'!M45=\"\",\"\",'Podatki o računu'!M45)","v":""},{"$f":"IF('Podatki o računu'!N45=\"\",\"\",'Podatki o računu'!N45)","v":""},{"$f":"IF('Podatki o računu'!O45=\"\",\"\",'Podatki o računu'!O45)","v":""},{"$f":"IF('Podatki o računu'!P45=\"\",\"\",'Podatki o računu'!P45)","v":""},{"$f":"IF('Podatki o računu'!Q45=\"\",\"\",'Podatki o računu'!Q45)","v":""}]
[null,{"$f":"IF('Podatki o računu'!F46=\"\",\"\",'Podatki o računu'!F46)","v":""},null,null,{"$f":"IF('Podatki o računu'!H46=\"\",\"\",'Podatki o računu'!H46)","v":""},{"$f":"IF('Podatki o računu'!I46=\"\",\"\",IF('Podatki o računu'!I46=\"kos\",\"komad\",'Podatki o računu'!I46))","v":""},{"$f":"IF('Podatki o računu'!J46=\"\",\"\",'Podatki o računu'!J46)","v":""},{"$f":"IF('Podatki o računu'!K46=\"Popust\",\"Popust \"&'Podatki o računu'!L46&\"%\",IF('Podatki o računu'!K46=\"Pribitek\",\"Pribitek \"&'Podatki o računu'!L46&\"%\",\"\"))","v":""},{"$f":"IF('Podatki o računu'!M46=\"\",\"\",'Podatki o računu'!M46)","v":""},{"$f":"IF('Podatki o računu'!N46=\"\",\"\",'Podatki o računu'!N46)","v":""},{"$f":"IF('Podatki o računu'!O46=\"\",\"\",'Podatki o računu'!O46)","v":""},{"$f":"IF('Podatki o računu'!P46=\"\",\"\",'Podatki o računu'!P46)","v":""},{"$f":"IF('Podatki o računu'!Q46=\"\",\"\",'Podatki o računu'!Q46)","v":""}]
[]
[null,"Specifikacija iznosa PDV",null,null,null,null,null,null,null,"Vrijednost",null,{"$f":"ROUND(SUM('Podatki o računu'!V27:V46),2)","v":329.98},null,null,"dav. st."]
[null,"PDV %","Osnovica PDV","Iznos PDV",null,null,null,null,null,"Popusti",null,{"$f":"ROUND(SUM('Podatki o računu'!T27:T46),2)","v":0},null,null,22]
[null,22,329.98,72.599999999999994,null,null,null,null,null,"Kazne",null,{"$f":"ROUND(SUM('Podatki o računu'!U27:U46),2)","v":0},null,null,"9,5"]
[null,null,null,null,null,null,null,null,null,{"$f":"\"Vrijednost \"&'Podatki o računu'!G9&\" bez PDV\"","v":"Vrijednost EUR bez PDV"},null,{"$f":"L40-L41+L42","v":329.98},null,null,0]
[null,null,null,null,null,null,null,null,null,"Iznos PDV",null,{"$f":"ROUND(SUM('Podatki o računu'!X27:X46),2)","v":72.599999999999994},null,null,25]
[null,null,null,null,null,null,null,null,null,{"$f":"\"Za plaćanje \"&'Podatki o računu'!G9&\" sa PDV\"","v":"Za plaćanje EUR sa PDV"},null,{"$f":"L43+L44","v":402.58000000000004},null,null,13]
[null,null,null,null,null,null,null,null,null,null,null,null,null,null,5]
[]
[]
[]
[]
[null,{"$f":"IF('Podatki o računu'!G23=\"\",\"\",'Podatki o računu'!G23)","v":""}]
[]
[null,{"$f":"IF('Podatki o računu'!G22=\"\",\"\",'Podatki o računu'!G22)","v":"Pri plačilu se sklicujte na številko 9512 ! Prosimo plačajte račun pravočasno."}]
[]
[null,{"$f":"IF(HLOOKUP('Podatki o računu'!C6,Izdajatelji!C4:E17,14,FALSE)=0,\"\",HLOOKUP('Podatki o računu'!C6,Izdajatelji!C4:E17,14,FALSE))","v":"Reg. pri Okr. sod. v LJ, Srg 2009/11849, os. kap. 7.500 EUR, z dne 7.5.2009"}]
[null,null,null,null,null,null,null,null,null,null,null,null,"bizBox Excel eRačun powered by ZZI d.o.o. | www.zzi.si | www.bizbox.eu | info@zzi.si"]

{"sheet":"Račun","index":3,"n_rows":56,"n_cols":15,"rows_kept":56,"cut":false,"hidden":false,"merged":[[15,1,15,12],[17,1,17,3],[50,1,51,12],[52,1,53,12],[54,1,54,12],[18,1,18,3],[19,1,19,3],[20,1,20,3],[21,1,21,3],[22,1,22,3],[23,1,23,3],[24,1,24,3],[25,1,25,3],[26,1,26,3],[27,1,27,3],[28,1,28,3],[34,1,34,3],[35,1,35,3],[36,1,36,3],[37,1,37,3],[29,1,29,3],[30,1,30,3],[31,1,31,3],[32,1,32,3],[33,1,33,3],[39,11,39,12],[44,11,44,12],[43,11,43,12],[42,11,42,12],[41,11,41,12],[40,11,40,12]]}
[null,{"$f":"'Podatki o računu'!C6&\", \"&'Podatki o računu'!C7&\", \"&'Podatki o računu'!C8&\" \"&'Podatki o računu'!C9&\", \"&'Podatki o računu'!C10","v":"BIROKRAT d.o.o., Dunajska 191, 1000 Ljubljana, SI"}]
[null,{"$f":"IF('Podatki o računu'!C11<>\"\",\"\"&'Podatki o računu'!C11&\", E: \"&'Podatki o računu'!C12&\", T: \"&'Podatki o računu'!C13,\"\"&\"E: \"&'Podatki o računu'!C12&\", T: \"&'Podatki o računu'!C13)","v":"Bojan Mirčeta, E: bojanm@andersen.si, T: 030 611 000"}]
[null,{"$f":"IF('Podatki o računu'!C16=\"DA\",\"ID za DDV: \"&'Podatki o računu'!C10&'Podatki o računu'!C15,\"Davčna številka: \"&'Podatki o računu'!C15)","v":"ID za DDV: SI24893099"}]
[null,{"$f":"\"IBAN: \"&'Podatki o računu'!C17&\", BIC: \"&'Podatki o računu'!C18","v":"IBAN: SI56 1010 0005 7117 281, BIC: LJBASI2X"}]
[]
[null,"KUPEC",null,null,null,"PREJEMNIK BLAGA",null,null,null,{"$f":"'Podatki o računu'!G6&\" št. \"&'Podatki o računu'!G7","v":"Račun št. 2021-9512"}]
[null,{"$f":"'Podatki o računu'!C22","v":"BIROKRAT IT d.o.o."},null,null,null,{"$f":"'Podatki o računu'!C36","v":"BIROKRAT IT d.o.o."},null,null,null,"Datum izdaje računa",null,null,{"$f":"TEXT('Podatki o računu'!G10,\"dd. mm. yyyy\")","v":"19. 04. 2021"}]
[null,{"$f":"'Podatki o računu'!C23","v":"Boštjan Juvančič"},null,null,null,{"$f":"'Podatki o računu'!C37","v":"Boštjan Juvančič"},null,null,null,"Datum storitve/dobave blaga",null,null,{"$f":"IF('Podatki o računu'!G12=\"\",\"-\",\"\"&TEXT('Podatki o računu'!G12,\"dd.mm.yyyy\"))","v":"31.03.2021"}]
[null,{"$f":"'Podatki o računu'!C24","v":"Dunajska 191"},null,null,null,{"$f":"'Podatki o računu'!C38","v":"Dunajska 191"},null,null,null,"Obdobje storitve",null,null,{"$f":"IF(OR('Podatki o računu'!G13=\"\",'Podatki o računu'!I13=\"\"),\"-\",\"\"&TEXT('Podatki o računu'!G13,\"dd.mm.yyyy\")&\" do \"&TEXT('Podatki o računu'!I13,\"dd.mm.yyyy\"))","v":"-"}]
[null,{"$f":"'Podatki o računu'!C25&\" \"&'Podatki o računu'!C26","v":"1000 Ljubljana"},null,null,null,{"$f":"'Podatki o računu'!C39&\" \"&'Podatki o računu'!C40","v":"1000 Ljubljana"},null,null,null,"Datum zapadlosti",null,null,{"$f":"TEXT('Podatki o računu'!G11,\"dd. mm. yyyy\")","v":"30. 04. 2021"}]
[null,{"$f":"'Podatki o računu'!C27","v":"SI"},null,null,null,{"$f":"'Podatki o računu'!C41","v":"SI"},null,null,null,"Referenčni dokument",null,null,{"$f":"'Podatki o računu'!G14&\" \"&'Podatki o računu'!G15","v":"Naročilo 1"}]
[null,{"$f":"IF('Podatki o računu'!C30=\"DA\",\"ID za DDV: \"&'Podatki o računu'!C27&'Podatki o računu'!C29,\"Davčna številka: \"&'Podatki o računu'!C29)","v":"ID za DDV: SI84046597"},null,null,null,null,null,null,null,"Sklic nakazila",null,null,{"$f":"IF('Podatki o računu'!G8=\"\",\"\",'Podatki o računu'!G8)","v":9512}]
[null,{"$f":"'Podatki o računu'!C31&IF(AND('Podatki o računu'!C31<>\"\",'Podatki o računu'!C32<>\"\"),\", \",\"\")&'Podatki o računu'!C32","v":"SI56 1010 0005 7229 122, BAKOSI2X"},null,null,null,null,null,null,null,"Koda namena",null,null,{"$f":"'Podatki o računu'!G17","v":"COST"}]
[null,null,null,null,null,null,null,null,null,"Stroškovno mesto",null,null,{"$f":"IF('Podatki o računu'!G20=\"\",\"\",'Podatki o računu'!G20)","v":""}]
[]
[null,{"$f":"IF('Podatki o računu'!G21=\"\",\"\",'Podatki o računu'!G21)","v":"Zaračunavamo vam:\n\nZaradi poenostavitve poslovanja in avtomatizacije postopkov, vam bomo namesto ponudb za podaljšanje letnih posodobitev, odslej pošiljali račune. Za vsa vprašanja, nas lahko pokličete ali nam pošljete elektronsko pošto na info@birokrat.si. \n"}]
[]
[null,"Naziv",null,null,"Količina","Enota","Cena","Popust/\nPribitek","Razlog","Stroškovno \nmesto","DDV %","Znesek","Znesek z \nDDV"]
[null,{"$f":"IF('Podatki o računu'!F27=\"\",\"\",'Podatki o računu'!F27)","v":"Predplačana podpora tehnika/svetovalca preko navadne telefonske linije oz. Povezave"},null,null,{"$f":"IF('Podatki o računu'!H27=\"\",\"\",'Podatki o računu'!H27)","v":5},{"$f":"IF('Podatki o računu'!I27=\"\",\"\",'Podatki o računu'!I27)","v":"ura"},{"$f":"IF('Podatki o računu'!J27=\"\",\"\",'Podatki o računu'!J27)","v":58},{"$f":"IF('Podatki o računu'!K27=\"Popust\",\"Popust \"&'Podatki o računu'!L27&\"%\",IF('Podatki o računu'!K27=\"Pribitek\",\"Pribitek \"&'Podatki o računu'!L27&\"%\",\"\"))","v":""},{"$f":"IF('Podatki o računu'!M27=\"\",\"\",'Podatki o računu'!M27)","v":""},{"$f":"IF('Podatki o računu'!N27=\"\",\"\",'Podatki o računu'!N27)","v":""},{"$f":"IF('Podatki o računu'!O27=\"\",\"\",'Podatki o računu'!O27)","v":22},{"$f":"IF('Podatki o računu'!P27=\"\",\"\",'Podatki o računu'!P27)","v":290},{"$f":"IF('Podatki o računu'!Q27=\"\",\"\",'Podatki o računu'!Q27)","v":353.8}]
[null,{"$f":"IF('Podatki o računu'!F28=\"\",\"\",'Podatki o računu'!F28)","v":"Tretji izdelek"},null,null,{"$f":"IF('Podatki o računu'!H28=\"\",\"\",'Podatki o računu'!H28)","v":2},{"$f":"IF('Podatki o računu'!I28=\"\",\"\",'Podatki o računu'!I28)","v":"kos"},{"$f":"IF('Podatki o računu'!J28=\"\",\"\",'Podatki o računu'!J28)","v":19.989999999999998},{"$f":"IF('Podatki o računu'!K28=\"Popust\",\"Popust \"&'Podatki o računu'!L28&\"%\",IF('Podatki o računu'!K28=\"Pribitek\",\"Pribitek \"&'Podatki o računu'!L28&\"%\",\"\"))","v":""},{"$f":"IF('Podatki o računu'!M28=\"\",\"\",'Podatki o računu'!M28)","v":""},{"$f":"IF('Podatki o računu'!N28=\"\",\"\",'Podatki o računu'!N28)","v":""},{"$f":"IF('Podatki o računu'!O28=\"\",\"\",'Podatki o računu'!O28)","v":22},{"$f":"IF('Podatki o računu'!P28=\"\",\"\",'Podatki o računu'!P28)","v":39.979999999999997},{"$f":"IF('Podatki o računu'!Q28=\"\",\"\",'Podatki o računu'!Q28)","v":48.775599999999997}]
[null,{"$f":"IF('Podatki o računu'!F29=\"\",\"\",'Podatki o računu'!F29)","v":""},null,null,{"$f":"IF('Podatki o računu'!H29=\"\",\"\",'Podatki o računu'!H29)","v":""},{"$f":"IF('Podatki o računu'!I29=\"\",\"\",'Podatki o računu'!I29)","v":""},{"$f":"IF('Podatki o računu'!J29=\"\",\"\",'Podatki o računu'!J29)","v":""},{"$f":"IF('Podatki o računu'!K29=\"Popust\",\"Popust \"&'Podatki o računu'!L29&\"%\",IF('Podatki o računu'!K29=\"Pribitek\",\"Pribitek \"&'Podatki o računu'!L29&\"%\",\"\"))","v":""},{"$f":"IF('Podatki o računu'!M29=\"\",\"\",'Podatki o računu'!M29)","v":""},{"$f":"IF('Podatki o računu'!N29=\"\",\"\",'Podatki o računu'!N29)","v":""},{"$f":"IF('Podatki o računu'!O29=\"\",\"\",'Podatki o računu'!O29)","v":""},{"$f":"IF('Podatki o računu'!P29=\"\",\"\",'Podatki o računu'!P29)","v":""},{"$f":"IF('Podatki o računu'!Q29=\"\",\"\",'Podatki o računu'!Q29)","v":""}]
[null,{"$f":"IF('Podatki o računu'!F30=\"\",\"\",'Podatki o računu'!F30)","v":""},null,null,{"$f":"IF('Podatki o računu'!H30=\"\",\"\",'Podatki o računu'!H30)","v":""},{"$f":"IF('Podatki o računu'!I30=\"\",\"\",'Podatki o računu'!I30)","v":""},{"$f":"IF('Podatki o računu'!J30=\"\",\"\",'Podatki o računu'!J30)","v":""},{"$f":"IF('Podatki o računu'!K30=\"Popust\",\"Popust \"&'Podatki o računu'!L30&\"%\",IF('Podatki o računu'!K30=\"Pribitek\",\"Pribitek \"&'Podatki o računu'!L30&\"%\",\"\"))","v":""},{"$f":"IF('Podatki o računu'!M30=\"\",\"\",'Podatki o računu'!M30)","v":""},{"$f":"IF('Podatki o računu'!N30=\"\",\"\",'Podatki o računu'!N30)","v":""},{"$f":"IF('Podatki o računu'!O30=\"\",\"\",'Podatki o računu'!O30)","v":""},{"$f":"IF('Podatki o računu'!P30=\"\",\"\",'Podatki o računu'!P30)","v":""},{"$f":"IF('Podatki o računu'!Q30=\"\",\"\",'Podatki o računu'!Q30)","v":""}]
[null,{"$f":"IF('Podatki o računu'!F31=\"\",\"\",'Podatki o računu'!F31)","v":""},null,null,{"$f":"IF('Podatki o računu'!H31=\"\",\"\",'Podatki o računu'!H31)","v":""},{"$f":"IF('Podatki o računu'!I31=\"\",\"\",'Podatki o računu'!I31)","v":""},{"$f":"IF('Podatki o računu'!J31=\"\",\"\",'Podatki o računu'!J31)","v":""},{"$f":"IF('Podatki o računu'!K31=\"Popust\",\"Popust \"&'Podatki o računu'!L31&\"%\",IF('Podatki o računu'!K31=\"Pribitek\",\"Pribitek \"&'Podatki o računu'!L31&\"%\",\"\"))","v":""},{"$f":"IF('Podatki o računu'!M31=\"\",\"\",'Podatki o računu'!M31)","v":""},{"$f":"IF('Podatki o računu'!N31=\"\",\"\",'Podatki o računu'!N31)","v":""},{"$f":"IF('Podatki o računu'!O31=\"\",\"\",'Podatki o računu'!O31)","v":""},{"$f":"IF('Podatki o računu'!P31=\"\",\"\",'Podatki o računu'!P31)","v":""},{"$f":"IF('Podatki o računu'!Q31=\"\",\"\",'Podatki o računu'!Q31)","v":""}]
[null,{"$f":"IF('Podatki o računu'!F32=\"\",\"\",'Podatki o računu'!F32)","v":""},null,null,{"$f":"IF('Podatki o računu'!H32=\"\",\"\",'Podatki o računu'!H32)","v":""},{"$f":"IF('Podatki o računu'!I32=\"\",\"\",'Podatki o računu'!I32)","v":""},{"$f":"IF('Podatki o računu'!J32=\"\",\"\",'Podatki o računu'!J32)","v":""},{"$f":"IF('Podatki o računu'!K32=\"Popust\",\"Popust \"&'Podatki o računu'!L32&\"%\",IF('Podatki o računu'!K32=\"Pribitek\",\"Pribitek \"&'Podatki o računu'!L32&\"%\",\"\"))","v":""},{"$f":"IF('Podatki o računu'!M32=\"\",\"\",'Podatki o računu'!M32)","v":""},{"$f":"IF('Podatki o računu'!N32=\"\",\"\",'Podatki o računu'!N32)","v":""},{"$f":"IF('Podatki o računu'!O32=\"\",\"\",'Podatki o računu'!O32)","v":""},{"$f":"IF('Podatki o računu'!P32=\"\",\"\",'Podatki o računu'!P32)","v":""},{"$f":"IF('Podatki o računu'!Q32=\"\",\"\",'Podatki o računu'!Q32)","v":""}]
[null,{"$f":"IF('Podatki o računu'!F33=\"\",\"\",'Podatki o računu'!F33)","v":""},null,null,{"$f":"IF('Podatki o računu'!H33=\"\",\"\",'Podatki o računu'!H33)","v":""},{"$f":"IF('Podatki o računu'!I33=\"\",\"\",'Podatki o računu'!I33)","v":""},{"$f":"IF('Podatki o računu'!J33=\"\",\"\",'Podatki o računu'!J33)","v":""},{"$f":"IF('Podatki o računu'!K33=\"Popust\",\"Popust \"&'Podatki o računu'!L33&\"%\",IF('Podatki o računu'!K33=\"Pribitek\",\"Pribitek \"&'Podatki o računu'!L33&\"%\",\"\"))","v":""},{"$f":"IF('Podatki o računu'!M33=\"\",\"\",'Podatki o računu'!M33)","v":""},{"$f":"IF('Podatki o računu'!N33=\"\",\"\",'Podatki o računu'!N33)","v":""},{"$f":"IF('Podatki o računu'!O33=\"\",\"\",'Podatki o računu'!O33)","v":""},{"$f":"IF('Podatki o računu'!P33=\"\",\"\",'Podatki o računu'!P33)","v":""},{"$f":"IF('Podatki o računu'!Q33=\"\",\"\",'Podatki o računu'!Q33)","v":""}]
[null,{"$f":"IF('Podatki o računu'!F34=\"\",\"\",'Podatki o računu'!F34)","v":""},null,null,{"$f":"IF('Podatki o računu'!H34=\"\",\"\",'Podatki o računu'!H34)","v":""},{"$f":"IF('Podatki o računu'!I34=\"\",\"\",'Podatki o računu'!I34)","v":""},{"$f":"IF('Podatki o računu'!J34=\"\",\"\",'Podatki o računu'!J34)","v":""},{"$f":"IF('Podatki o računu'!K34=\"Popust\",\"Popust \"&'Podatki o računu'!L34&\"%\",IF('Podatki o računu'!K34=\"Pribitek\",\"Pribitek \"&'Podatki o računu'!L34&\"%\",\"\"))","v":""},{"$f":"IF('Podatki o računu'!M34=\"\",\"\",'Podatki o računu'!M34)","v":""},{"$f":"IF('Podatki o računu'!N34=\"\",\"\",'Podatki o računu'!N34)","v":""},{"$f":"IF('Podatki o računu'!O34=\"\",\"\",'Podatki o računu'!O34)","v":""},{"$f":"IF('Podatki o računu'!P34=\"\",\"\",'Podatki o računu'!P34)","v":""},{"$f":"IF('Podatki o računu'!Q34=\"\",\"\",'Podatki o računu'!Q34)","v":""}]
[null,{"$f":"IF('Podatki o računu'!F35=\"\",\"\",'Podatki o računu'!F35)","v":""},null,null,{"$f":"IF('Podatki o računu'!H35=\"\",\"\",'Podatki o računu'!H35)","v":""},{"$f":"IF('Podatki o računu'!I35=\"\",\"\",'Podatki o računu'!I35)","v":""},{"$f":"IF('Podatki o računu'!J35=\"\",\"\",'Podatki o računu'!J35)","v":""},{"$f":"IF('Podatki o računu'!K35=\"Popust\",\"Popust \"&'Podatki o računu'!L35&\"%\",IF('Podatki o računu'!K35=\"Pribitek\",\"Pribitek \"&'Podatki o računu'!L35&\"%\",\"\"))","v":""},{"$f":"IF('Podatki o računu'!M35=\"\",\"\",'Podatki o računu'!M35)","v":""},{"$f":"IF('Podatki o računu'!N35=\"\",\"\",'Podatki o računu'!N35)","v":""},{"$f":"IF('Podatki o računu'!O35=\"\",\"\",'Podatki o računu'!O35)","v":""},{"$f":"IF('Podatki o računu'!P35=\"\",\"\",'Podatki o računu'!P35)","v":""},{"$f":"IF('Podatki o računu'!Q35=\"\",\"\",'Podatki o računu'!Q35)","v":""}]
[null,{"$f":"IF('Podatki o računu'!F36=\"\",\"\",'Podatki o računu'!F36)","v":""},null,null,{"$f":"IF('Podatki o računu'!H36=\"\",\"\",'Podatki o računu'!H36)","v":""},{"$f":"IF('Podatki o računu'!I36=\"\",\"\",'Podatki o računu'!I36)","v":""},{"$f":"IF('Podatki o računu'!J36=\"\",\"\",'Podatki o računu'!J36)","v":""},{"$f":"IF('Podatki o računu'!K36=\"Popust\",\"Popust \"&'Podatki o računu'!L36&\"%\",IF('Podatki o računu'!K36=\"Pribitek\",\"Pribitek \"&'Podatki o računu'!L36&\"%\",\"\"))","v":""},{"$f":"IF('Podatki o računu'!M36=\"\",\"\",'Podatki o računu'!M36)","v":""},{"$f":"IF('Podatki o računu'!N36=\"\",\"\",'Podatki o računu'!N36)","v":""},{"$f":"IF('Podatki o računu'!O36=\"\",\"\",'Podatki o računu'!O36)","v":""},{"$f":"IF('Podatki o računu'!P36=\"\",\"\",'Podatki o računu'!P36)","v":""},{"$f":"IF('Podatki o računu'!Q36=\"\",\"\",'Podatki o računu'!Q36)","v":""}]
[null,{"$f":"IF('Podatki o računu'!F37=\"\",\"\",'Podatki o računu'!F37)","v":""},null,null,{"$f":"IF('Podatki o računu'!H37=\"\",\"\",'Podatki o računu'!H37)","v":""},{"$f":"IF('Podatki o računu'!I37=\"\",\"\",'Podatki o računu'!I37)","v":""},{"$f":"IF('Podatki o računu'!J37=\"\",\"\",'Podatki o računu'!J37)","v":""},{"$f":"IF('Podatki o računu'!K37=\"Popust\",\"Popust \"&'Podatki o računu'!L37&\"%\",IF('Podatki o računu'!K37=\"Pribitek\",\"Pribitek \"&'Podatki o računu'!L37&\"%\",\"\"))","v":""},{"$f":"IF('Podatki o računu'!M37=\"\",\"\",'Podatki o računu'!M37)","v":""},{"$f":"IF('Podatki o računu'!N37=\"\",\"\",'Podatki o računu'!N37)","v":""},{"$f":"IF('Podatki o računu'!O37=\"\",\"\",'Podatki o računu'!O37)","v":""},{"$f":"IF('Podatki o računu'!P37=\"\",\"\",'Podatki o računu'!P37)","v":""},{"$f":"IF('Podatki o računu'!Q37=\"\",\"\",'Podatki o računu'!Q37)","v":""}]
[null,{"$f":"IF('Podatki o računu'!F38=\"\",\"\",'Podatki o računu'!F38)","v":""},null,null,{"$f":"IF('Podatki o računu'!H38=\"\",\"\",'Podatki o računu'!H38)","v":""},{"$f":"IF('Podatki o računu'!I38=\"\",\"\",'Podatki o računu'!I38)","v":""},{"$f":"IF('Podatki o računu'!J38=\"\",\"\",'Podatki o računu'!J38)","v":""},{"$f":"IF('Podatki o računu'!K38=\"Popust\",\"Popust \"&'Podatki o računu'!L38&\"%\",IF('Podatki o računu'!K38=\"Pribitek\",\"Pribitek \"&'Podatki o računu'!L38&\"%\",\"\"))","v":""},{"$f":"IF('Podatki o računu'!M38=\"\",\"\",'Podatki o računu'!M38)","v":""},{"$f":"IF('Podatki o računu'!N38=\"\",\"\",'Podatki o računu'!N38)","v":""},{"$f":"IF('Podatki o računu'!O38=\"\",\"\",'Podatki o računu'!O38)","v":""},{"$f":"IF('Podatki o računu'!P38=\"\",\"\",'Podatki o računu'!P38)","v":""},{"$f":"IF('Podatki o računu'!Q38=\"\",\"\",'Podatki o računu'!Q38)","v":""}]
[null,{"$f":"IF('Podatki o računu'!F39=\"\",\"\",'Podatki o računu'!F39)","v":""},null,null,{"$f":"IF('Podatki o računu'!H39=\"\",\"\",'Podatki o računu'!H39)","v":""},{"$f":"IF('Podatki o računu'!I39=\"\",\"\",'Podatki o računu'!I39)","v":""},{"$f":"IF('Podatki o računu'!J39=\"\",\"\",'Podatki o računu'!J39)","v":""},{"$f":"IF('Podatki o računu'!K39=\"Popust\",\"Popust \"&'Podatki o računu'!L39&\"%\",IF('Podatki o računu'!K39=\"Pribitek\",\"Pribitek \"&'Podatki o računu'!L39&\"%\",\"\"))","v":""},{"$f":"IF('Podatki o računu'!M39=\"\",\"\",'Podatki o računu'!M39)","v":""},{"$f":"IF('Podatki o računu'!N39=\"\",\"\",'Podatki o računu'!N39)","v":""},{"$f":"IF('Podatki o računu'!O39=\"\",\"\",'Podatki o računu'!O39)","v":""},{"$f":"IF('Podatki o računu'!P39=\"\",\"\",'Podatki o računu'!P39)","v":""},{"$f":"IF('Podatki o računu'!Q39=\"\",\"\",'Podatki o računu'!Q39)","v":""}]
[null,{"$f":"IF('Podatki o računu'!F40=\"\",\"\",'Podatki o računu'!F40)","v":""},null,null,{"$f":"IF('Podatki o računu'!H40=\"\",\"\",'Podatki o računu'!H40)","v":""},{"$f":"IF('Podatki o računu'!I40=\"\",\"\",'Podatki o računu'!I40)","v":""},{"$f":"IF('Podatki o računu'!J40=\"\",\"\",'Podatki o računu'!J40)","v":""},{"$f":"IF('Podatki o računu'!K40=\"Popust\",\"Popust \"&'Podatki o računu'!L40&\"%\",IF('Podatki o računu'!K40=\"Pribitek\",\"Pribitek \"&'Podatki o računu'!L40&\"%\",\"\"))","v":""},{"$f":"IF('Podatki o računu'!M40=\"\",\"\",'Podatki o računu'!M40)","v":""},{"$f":"IF('Podatki o računu'!N40=\"\",\"\",'Podatki o računu'!N40)","v":""},{"$f":"IF('Podatki o računu'!O40=\"\",\"\",'Podatki o računu'!O40)","v":""},{"$f":"IF('Podatki o računu'!P40=\"\",\"\",'Podatki o računu'!P40)","v":""},{"$f":"IF('Podatki o računu'!Q40=\"\",\"\",'Podatki o računu'!Q40)","v":""}]
[null,{"$f":"IF('Podatki o računu'!F41=\"\",\"\",'Podatki o računu'!F41)","v":""},null,null,{"$f":"IF('Podatki o računu'!H41=\"\",\"\",'Podatki o računu'!H41)","v":""},{"$f":"IF('Podatki o računu'!I41=\"\",\"\",'Podatki o računu'!I41)","v":""},{"$f":"IF('Podatki o računu'!J41=\"\",\"\",'Podatki o računu'!J41)","v":""},{"$f":"IF('Podatki o računu'!K41=\"Popust\",\"Popust \"&'Podatki o računu'!L41&\"%\",IF('Podatki o računu'!K41=\"Pribitek\",\"Pribitek \"&'Podatki o računu'!L41&\"%\",\"\"))","v":""},{"$f":"IF('Podatki o računu'!M41=\"\",\"\",'Podatki o računu'!M41)","v":""},{"$f":"IF('Podatki o računu'!N41=\"\",\"\",'Podatki o računu'!N41)","v":""},{"$f":"IF('Podatki o računu'!O41=\"\",\"\",'Podatki o računu'!O41)","v":""},{"$f":"IF('Podatki o računu'!P41=\"\",\"\",'Podatki o računu'!P41)","v":""},{"$f":"IF('Podatki o računu'!Q41=\"\",\"\",'Podatki o računu'!Q41)","v":""}]
[null,{"$f":"IF('Podatki o računu'!F42=\"\",\"\",'Podatki o računu'!F42)","v":""},null,null,{"$f":"IF('Podatki o računu'!H42=\"\",\"\",'Podatki o računu'!H42)","v":""},{"$f":"IF('Podatki o računu'!I42=\"\",\"\",'Podatki o računu'!I42)","v":""},{"$f":"IF('Podatki o računu'!J42=\"\",\"\",'Podatki o računu'!J42)","v":""},{"$f":"IF('Podatki o računu'!K42=\"Popust\",\"Popust \"&'Podatki o računu'!L42&\"%\",IF('Podatki o računu'!K42=\"Pribitek\",\"Pribitek \"&'Podatki o računu'!L42&\"%\",\"\"))","v":""},{"$f":"IF('Podatki o računu'!M42=\"\",\"\",'Podatki o računu'!M42)","v":""},{"$f":"IF('Podatki o računu'!N42=\"\",\"\",'Podatki o računu'!N42)","v":""},{"$f":"IF('Podatki o računu'!O42=\"\",\"\",'Podatki o računu'!O42)","v":""},{"$f":"IF('Podatki o računu'!P42=\"\",\"\",'Podatki o računu'!P42)","v":""},{"$f":"IF('Podatki o računu'!Q42=\"\",\"\",'Podatki o računu'!Q42)","v":""}]
[null,{"$f":"IF('Podatki o računu'!F43=\"\",\"\",'Podatki o računu'!F43)","v":""},null,null,{"$f":"IF('Podatki o računu'!H43=\"\",\"\",'Podatki o računu'!H43)","v":""},{"$f":"IF('Podatki o računu'!I43=\"\",\"\",'Podatki o računu'!I43)","v":""},{"$f":"IF('Podatki o računu'!J43=\"\",\"\",'Podatki o računu'!J43)","v":""},{"$f":"IF('Podatki o računu'!K43=\"Popust\",\"Popust \"&'Podatki o računu'!L43&\"%\",IF('Podatki o računu'!K43=\"Pribitek\",\"Pribitek \"&'Podatki o računu'!L43&\"%\",\"\"))","v":""},{"$f":"IF('Podatki o računu'!M43=\"\",\"\",'Podatki o računu'!M43)","v":""},{"$f":"IF('Podatki o računu'!N43=\"\",\"\",'Podatki o računu'!N43)","v":""},{"$f":"IF('Podatki o računu'!O43=\"\",\"\",'Podatki o računu'!O43)","v":""},{"$f":"IF('Podatki o računu'!P43=\"\",\"\",'Podatki o računu'!P43)","v":""},{"$f":"IF('Podatki o računu'!Q43=\"\",\"\",'Podatki o računu'!Q43)","v":""}]
[null,{"$f":"IF('Podatki o računu'!F44=\"\",\"\",'Podatki o računu'!F44)","v":""},null,null,{"$f":"IF('Podatki o računu'!H44=\"\",\"\",'Podatki o računu'!H44)","v":""},{"$f":"IF('Podatki o računu'!I44=\"\",\"\",'Podatki o računu'!I44)","v":""},{"$f":"IF('Podatki o računu'!J44=\"\",\"\",'Podatki o računu'!J44)","v":""},{"$f":"IF('Podatki o računu'!K44=\"Popust\",\"Popust \"&'Podatki o računu'!L44&\"%\",IF('Podatki o računu'!K44=\"Pribitek\",\"Pribitek \"&'Podatki o računu'!L44&\"%\",\"\"))","v":""},{"$f":"IF('Podatki o računu'!M44=\"\",\"\",'Podatki o računu'!M44)","v":""},{"$f":"IF('Podatki o računu'!N44=\"\",\"\",'Podatki o računu'!N44)","v":""},{"$f":"IF('Podatki o računu'!O44=\"\",\"\",'Podatki o računu'!O44)","v":""},{"$f":"IF('Podatki o računu'!P44=\"\",\"\",'Podatki o računu'!P44)","v":""},{"$f":"IF('Podatki o računu'!Q44=\"\",\"\",'Podatki o računu'!Q44)","v":""}]
[null,{"$f":"IF('Podatki o računu'!F45=\"\",\"\",'Podatki o računu'!F45)","v":""},null,null,{"$f":"IF('Podatki o računu'!H45=\"\",\"\",'Podatki o računu'!H45)","v":""},{"$f":"IF('Podatki o računu'!I45=\"\",\"\",'Podatki o računu'!I45)","v":""},{"$f":"IF('Podatki o računu'!J45=\"\",\"\",'Podatki o računu'!J45)","v":""},{"$f":"IF('Podatki o računu'!K45=\"Popust\",\"Popust \"&'Podatki o računu'!L45&\"%\",IF('Podatki o računu'!K45=\"Pribitek\",\"Pribitek \"&'Podatki o računu'!L45&\"%\",\"\"))","v":""},{"$f":"IF('Podatki o računu'!M45=\"\",\"\",'Podatki o računu'!M45)","v":""},{"$f":"IF('Podatki o računu'!N45=\"\",\"\",'Podatki o računu'!N45)","v":""},{"$f":"IF('Podatki o računu'!O45=\"\",\"\",'Podatki o računu'!O45)","v":""},{"$f":"IF('Podatki o računu'!P45=\"\",\"\",'Podatki o računu'!P45)","v":""},{"$f":"IF('Podatki o računu'!Q45=\"\",\"\",'Podatki o računu'!Q45)","v":""}]
[null,{"$f":"IF('Podatki o računu'!F46=\"\",\"\",'Podatki o računu'!F46)","v":""},null,null,{"$f":"IF('Podatki o računu'!H46=\"\",\"\",'Podatki o računu'!H46)","v":""},{"$f":"IF('Podatki o računu'!I46=\"\",\"\",'Podatki o računu'!I46)","v":""},{"$f":"IF('Podatki o računu'!J46=\"\",\"\",'Podatki o računu'!J46)","v":""},{"$f":"IF('Podatki o računu'!K46=\"Popust\",\"Popust \"&'Podatki o računu'!L46&\"%\",IF('Podatki o računu'!K46=\"Pribitek\",\"Pribitek \"&'Podatki o računu'!L46&\"%\",\"\"))","v":""},{"$f":"IF('Podatki o računu'!M46=\"\",\"\",'Podatki o računu'!M46)","v":""},{"$f":"IF('Podatki o računu'!N46=\"\",\"\",'Podatki o računu'!N46)","v":""},{"$f":"IF('Podatki o računu'!O46=\"\",\"\",'Podatki o računu'!O46)","v":""},{"$f":"IF('Podatki o računu'!P46=\"\",\"\",'Podatki o računu'!P46)","v":""},{"$f":"IF('Podatki o računu'!Q46=\"\",\"\",'Podatki o računu'!Q46)","v":""}]
[]
[null,"Specifikacija zneska DDV",null,null,null,null,null,null,null,"Vrednost",null,{"$f":"ROUND(SUM('Podatki o računu'!V27:V46),2)","v":329.98},null,null,"dav. st."]
[null,"DDV %","Osnova DDV","Znesek DDV",null,null,null,null,null,"Popusti",null,{"$f":"ROUND(SUM('Podatki o računu'!T27:T46),2)","v":0},null,null,22]
[null,22,329.98,72.599999999999994,null,null,null,null,null,"Pribitki",null,{"$f":"ROUND(SUM('Podatki o računu'!U27:U46),2)","v":0},null,null,"9.5"]
[null,null,null,null,null,null,null,null,null,{"$f":"\"Vrednost \"&'Podatki o računu'!G9&\" brez DDV\"","v":"Vrednost EUR brez DDV"},null,{"$f":"L40-L41+L42","v":329.98},null,null,0]
[null,null,null,null,null,null,null,null,null,"Znesek DDV",null,{"$f":"ROUND(SUM('Podatki o računu'!X27:X46),2)","v":72.599999999999994},null,null,25]
[null,null,null,null,null,null,null,null,null,{"$f":"\"Za plačilo \"&'Podatki o računu'!G9&\" z DDV\"","v":"Za plačilo EUR z DDV"},null,{"$f":"L43+L44","v":402.58000000000004},null,null,13]
[null,null,null,null,null,null,null,null,null,null,null,null,null,null,5]
[]
[]
[]
[]
[null,{"$f":"IF('Podatki o računu'!G23=\"\",\"\",'Podatki o računu'!G23)","v":""}]
[]
[null,{"$f":"IF('Podatki o računu'!G22=\"\",\"\",'Podatki o računu'!G22)","v":"Pri plačilu se sklicujte na številko 9512 ! Prosimo plačajte račun pravočasno."}]
[]
[null,{"$f":"IF(HLOOKUP('Podatki o računu'!C6,Izdajatelji!C4:E17,14,FALSE)=0,\"\",HLOOKUP('Podatki o računu'!C6,Izdajatelji!C4:E17,14,FALSE))","v":"Reg. pri Okr. sod. v LJ, Srg 2009/11849, os. kap. 7.500 EUR, z dne 7.5.2009"}]
[null,null,null,null,null,null,null,null,null,null,null,null,"bizBox Excel eRačun powered by ZZI d.o.o. | www.zzi.si | www.bizbox.eu | info@zzi.si"]

{"sheet":"Kupci","index":4,"n_rows":1003,"n_cols":16,"rows_kept":1003,"cut":false,"hidden":false,"merged":[]}
[null,"KUPCI",null,null,null,null,null,null,null,null,null,null,"bizBox Excel eRačun"]
[null,"ID","Naziv","Kontaktna oseba","Naslov","Poštna\nštevilka","Mesto","Država","Matična\nštevilka","Davčna\nštevilka","Zavezanec\nza DDV","IBAN","BIC","Šifra\nlokacije",null,"TEMP"]
[null,1,"BIROKRAT IT d.o.o.","Boštjan Juvančič","Dunajska 191",1000,"Ljubljana","SI",6538886000,"84046597","DA","SI56 1010 0005 7229 122","BAKOSI2X","1001",null,{"$f":"B3&IF(AND(C3=\"\",D3=\"\",E3=\"\"),\"\",\" - \")&C3&IF(OR(D3=\"\",C3=\"\"),\"\",\" - \")&D3","v":"1 - BIROKRAT IT d.o.o. - Boštjan Juvančič"}]
[null,null,null,null,null,null,null,null,null,null,null,null,null,null,null,{"$f":"B4&IF(AND(C4=\"\",D4=\"\",E4=\"\"),\"\",\" - \")&C4&IF(OR(D4=\"\",C4=\"\"),\"\",\" - \")&D4","v":""}]
[null,null,null,null,null,null,null,null,null,null,null,null,null,null,null,""]
[null,null,null,null,null,null,null,null,null,null,null,null,null,null,null,{"$f":"B6&IF(AND(C6=\"\",D6=\"\",E6=\"\"),\"\",\" - \")&C6&IF(OR(D6=\"\",C6=\"\"),\"\",\" - \")&D6","v":""}]
[null,null,null,null,null,null,null,null,null,null,null,null,null,null,null,""]
[null,null,null,null,null,null,null,null,null,null,null,null,null,null,null,""]
[null,null,null,null,null,null,null,null,null,null,null,null,null,null,null,""]
[null,null,null,null,null,null,null,null,null,null,null,null,null,null,null,""]
[null,null,null,null,null,null,null,null,null,null,null,null,null,null,null,""]
[null,null,null,null,null,null,null,null,null,null,null,null,null,null,null,""]
[null,null,null,null,null,null,null,null,null,null,null,null,null,null,null,""]
[null,null,null,null,null,null,null,null,null,null,null,null,null,null,null,""]
[null,null,null,null,null,null,null,null,null,null,null,null,null,null,null,""]
[null,null,null,null,null,null,null,null,null,null,null,null,null,null,null,""]
[null,null,null,null,null,null,null,null,null,null,null,null,null,null,null,""]
[null,null,null,null,null,null,null,null,null,null,null,null,null,null,null,""]
[null,null,null,null,null,null,null,null,null,null,null,null,null,null,null,""]
[null,null,null,null,null,null,null,null,null,null,null,null,null,null,null,""]
[null,null,null,null,null,null,null,null,null,null,null,null,null,null,null,""]
[null,null,null,null,null,null,null,null,null,null,null,null,null,null,null,""]
[null,null,null,null,null,null,null,null,null,null,null,null,null,null,null,""]
[null,null,null,null,null,null,null,null,null,null,null,null,null,null,null,""]
[null,null,null,null,null,null,null,null,null,null,null,null,null,null,null,""]
[null,null,null,null,null,null,null,null,null,null,null,null,null,null,null,""]
[null,null,null,null,null,null,null,null,null,null,null,null,null,null,null,""]
[null,null,null,null,null,null,null,null,null,null,null,null,null,null,null,""]
[null,null,null,null,null,null,null,null,null,null,null,null,null,null,null,""]
[null,null,null,null,null,null,null,null,null,null,null,null,null,null,null,""]
[null,null,null,null,null,null,null,null,null,null,null,null,null,null,null,""]
[null,null,null,null,null,null,null,null,null,null,null,null,null,null,null,""]
[null,null,null,null,null,null,null,null,null,null,null,null,null,null,null,""]
[null,null,null,null,null,null,null,null,null,null,null,null,null,null,null,""]
[null,null,null,null,null,null,null,null,null,null,null,null,null,null,null,""]
[null,null,null,null,null,null,null,null,null,null,null,null,null,null,null,""]
[null,null,null,null,null,null,null,null,null,null,null,null,null,null,null,""]
[null,null,null,null,null,null,null,null,null,null,null,null,null,null,null,""]
[null,null,null,null,null,null,null,null,null,null,null,null,null,null,null,""]
[null,null,null,null,null,null,null,null,null,null,null,null,null,null,null,""]
[null,null,null,null,null,null,null,null,null,null,null,null,null,null,null,""]
[null,null,null,null,null,null,null,null,null,null,null,null,null,null,null,""]
[null,null,null,null,null,null,null,null,null,null,null,null,null,null,null,""]
[null,null,null,null,null,null,null,null,null,null,null,null,null,null,null,""]
[null,null,null,null,null,null,null,null,null,null,null,null,null,null,null,""]
[null,null,null,null,null,null,null,null,null,null,null,null,null,null,null,""]
[null,null,null,null,null,null,null,null,null,null,null,null,null,null,null,""]
[null,null,null,null,null,null,null,null,null,null,null,null,null,null,null,""]
[null,null,null,null,null,null,null,null,null,null,null,null,null,null,null,""]
[null,null,null,null,null,null,null,null,null,null,null,null,null,null,null,""]
[null,null,null,null,null,null,null,null,null,null,null,null,null,null,null,""]
[null,null,null,null,null,null,null,null,null,null,null,null,null,null,null,""]
[null,null,null,null,null,null,null,null,null,null,null,null,null,null,null,""]
[null,null,null,null,null,null,null,null,null,null,null,null,null,null,null,""]
[null,null,null,null,null,null,null,null,null,null,null,null,null,null,null,""]
[null,null,null,null,null,null,null,null,null,null,null,null,null,null,null,""]
[null,null,null,null,null,null,null,null,null,null,null,null,null,null,null,""]
[null,null,null,null,null,null,null,null,null,null,null,null,null,null,null,""]
[null,null,null,null,null,null,null,null,null,null,null,null,null,null,null,""]
[null,null,null,null,null,null,null,null,null,null,null,null,null,null,null,""]
[null,null,null,null,null,null,null,null,null,null,null,null,null,null,null,""]
[null,null,null,null,null,null,null,null,null,null,null,null,null,null,null,""]
[null,null,null,null,null,null,null,null,null,null,null,null,null,null,null,""]
[null,null,null,null,null,null,null,null,null,null,null,null,null,null,null,""]
[null,null,null,null,null,null,null,null,null,null,null,null,null,null,null,""]
[null,null,null,null,null,null,null,null,null,null,null,null,null,null,null,""]
[null,null,null,null,null,null,null,null,null,null,null,null,null,null,null,""]
[null,null,null,null,null,null,null,null,null,null,null,null,null,null,null,{"$f":"B68&IF(AND(C68=\"\",D68=\"\",E68=\"\"),\"\",\" - \")&C68&IF(OR(D68=\"\",C68=\"\"),\"\",\" - \")&D68","v":""}]
[null,null,null,null,null,null,null,null,null,null,null,null,null,null,null,""]
[null,null,null,null,null,null,null,null,null,null,null,null,null,null,null,""]
[null,null,null,null,null,null,null,null,null,null,null,null,null,null,null,""]
[null,null,null,null,null,null,null,null,null,null,null,null,null,null,null,""]
[null,null,null,null,null,null,null,null,null,null,null,null,null,null,null,""]
[null,null,null,null,null,null,null,null,null,null,null,null,null,null,null,""]
[null,null,null,null,null,null,null,null,null,null,null,null,null,null,null,""]
[null,null,null,null,null,null,null,null,null,null,null,null,null,null,null,""]
[null,null,null,null,null,null,null,null,null,null,null,null,null,null,null,""]
[null,null,null,null,null,null,null,null,null,null,null,null,null,null,null,""]
[null,null,null,null,null,null,null,null,null,null,null,null,null,null,null,""]
[null,null,null,null,null,null,null,null,null,null,null,null,null,null,null,""]
[null,null,null,null,null,null,null,null,null,null,null,null,null,null,null,""]
[null,null,null,null,null,null,null,null,null,null,null,null,null,null,null,""]
[null,null,null,null,null,null,null,null,null,null,null,null,null,null,null,""]
[null,null,null,null,null,null,null,null,null,null,null,null,null,null,null,""]
[null,null,null,null,null,null,null,null,null,null,null,null,null,null,null,""]
[null,null,null,null,null,null,null,null,null,null,null,null,null,null,null,""]
[null,null,null,null,null,null,null,null,null,null,null,null,null,null,null,""]
[null,null,null,null,null,null,null,null,null,null,null,null,null,null,null,""]
[null,null,null,null,null,null,null,null,null,null,null,null,null,null,null,""]
[null,null,null,null,null,null,null,null,null,null,null,null,null,null,null,""]
[null,null,null,null,null,null,null,null,null,null,null,null,null,null,null,""]
[null,null,null,null,null,null,null,null,null,null,null,null,null,null,null,""]
[null,null,null,null,null,null,null,null,null,null,null,null,null,null,null,""]
[null,null,null,null,null,null,null,null,null,null,null,null,null,null,null,""]
[null,null,null,null,null,null,null,null,null,null,null,null,null,null,null,""]
[null,null,null,null,null,null,null,null,null,null,null,null,null,null,null,""]
[null,null,null,null,null,null,null,null,null,null,null,null,null,null,null,""]
[null,null,null,null,null,null,null,null,null,null,null,null,null,null,null,""]
[null,null,null,null,null,null,null,null,null,null,null,null,null,null,null,""]
[null,null,null,null,null,null,null,null,null,null,null,null,null,null,null,""]
[null,null,null,null,null,null,null,null,null,null,null,null,null,null,null,""]
[null,null,null,null,null,null,null,null,null,null,null,null,null,null,null,""]
[null,null,null,null,null,null,null,null,null,null,null,null,null,null,null,""]
[null,null,null,null,null,null,null,null,null,null,null,null,null,null,null,""]
[null,null,null,null,null,null,null,null,null,null,null,null,null,null,null,""]
[null,null,null,null,null,null,null,null,null,null,null,null,null,null,null,""]
[null,null,null,null,null,null,null,null,null,null,null,null,null,null,null,""]
[null,null,null,null,null,null,null,null,null,null,null,null,null,null,null,""]
[null,null,null,null,null,null,null,null,null,null,null,null,null,null,null,""]
[null,null,null,null,null,null,null,null,null,null,null,null,null,null,null,""]
[null,null,null,null,null,null,null,null,null,null,null,null,null,null,null,""]
[null,null,null,null,null,null,null,null,null,null,null,null,null,null,null,""]
[null,null,null,null,null,null,null,null,null,null,null,null,null,null,null,""]
[null,null,null,null,null,null,null,null,null,null,null,null,null,null,null,""]
[null,null,null,null,null,null,null,null,null,null,null,null,null,null,null,""]
[null,null,null,null,null,null,null,null,null,null,null,null,null,null,null,""]
[null,null,null,null,null,null,null,null,null,null,null,null,null,null,null,""]
[null,null,null,null,null,null,null,null,null,null,null,null,null,null,null,""]
[null,null,null,null,null,null,null,null,null,null,null,null,null,null,null,""]
[null,null,null,null,null,null,null,null,null,null,null,null,null,null,null,""]
[null,null,null,null,null,null,null,null,null,null,null,null,null,null,null,""]
[null,null,null,null,null,null,null,null,null,null,null,null,null,null,null,""]
[null,null,null,null,null,null,null,null,null,null,null,null,null,null,null,""]
[null,null,null,null,null,null,null,null,null,null,null,null,null,null,null,""]
[null,null,null,null,null,null,null,null,null,null,null,null,null,null,null,""]
[null,null,null,null,null,null,null,null,null,null,null,null,null,null,null,""]
[null,null,null,null,null,null,null,null,null,null,null,null,null,null,null,""]
[null,null,null,null,null,null,null,null,null,null,null,null,null,null,null,""]
[null,null,null,null,null,null,null,null,null,null,null,null,null,null,null,""]
[null,null,null,null,null,null,null,null,null,null,null,null,null,null,null,""]
[null,null,null,null,null,null,null,null,null,null,null,null,null,null,null,""]
[null,null,null,null,null,null,null,null,null,null,null,null,null,null,null,{"$f":"B132&IF(AND(C132=\"\",D132=\"\",E132=\"\"),\"\",\" - \")&C132&IF(OR(D132=\"\",C132=\"\"),\"\",\" - \")&D132","v":""}]
[null,null,null,null,null,null,null,null,null,null,null,null,null,null,null,""]
[null,null,null,null,null,null,null,null,null,null,null,null,null,null,null,""]
[null,null,null,null,null,null,null,null,null,null,null,null,null,null,null,""]
[null,null,null,null,null,null,null,null,null,null,null,null,null,null,null,""]
[null,null,null,null,null,null,null,null,null,null,null,null,null,null,null,""]
[null,null,null,null,null,null,null,null,null,null,null,null,null,null,null,""]
[null,null,null,null,null,null,null,null,null,null,null,null,null,null,null,""]
[null,null,null,null,null,null,null,null,null,null,null,null,null,null,null,""]
[null,null,null,null,null,null,null,null,null,null,null,null,null,null,null,""]
[null,null,null,null,null,null,null,null,null,null,null,null,null,null,null,""]
[null,null,null,null,null,null,null,null,null,null,null,null,null,null,null,""]
[null,null,null,null,null,null,null,null,null,null,null,null,null,null,null,""]
[null,null,null,null,null,null,null,null,null,null,null,null,null,null,null,""]
[null,null,null,null,null,null,null,null,null,null,null,null,null,null,null,""]
[null,null,null,null,null,null,null,null,null,null,null,null,null,null,null,""]
[null,null,null,null,null,null,null,null,null,null,null,null,null,null,null,""]
[null,null,null,null,null,null,null,null,null,null,null,null,null,null,null,""]
[null,null,null,null,null,null,null,null,null,null,null,null,null,null,null,""]
[null,null,null,null,null,null,null,null,null,null,null,null,null,null,null,""]
[null,null,null,null,null,null,null,null,null,null,null,null,null,null,null,""]
[null,null,null,null,null,null,null,null,null,null,null,null,null,null,null,""]
[null,null,null,null,null,null,null,null,null,null,null,null,null,null,null,""]
[null,null,null,null,null,null,null,null,null,null,null,null,null,null,null,""]
[null,null,null,null,null,null,null,null,null,null,null,null,null,null,null,""]
[null,null,null,null,null,null,null,null,null,null,null,null,null,null,null,""]
[null,null,null,null,null,null,null,null,null,null,null,null,null,null,null,""]
[null,null,null,null,null,null,null,null,null,null,null,null,null,null,null,""]
[null,null,null,null,null,null,null,null,null,null,null,null,null,null,null,""]
[null,null,null,null,null,null,null,null,null,null,null,null,null,null,null,""]
[null,null,null,null,null,null,null,null,null,null,null,null,null,null,null,""]
[null,null,null,null,null,null,null,null,null,null,null,null,null,null,null,""]
[null,null,null,null,null,null,null,null,null,null,null,null,null,null,null,""]
[null,null,null,null,null,null,null,null,null,null,null,null,null,null,null,""]
[null,null,null,null,null,null,null,null,null,null,null,null,null,null,null,""]
[null,null,null,null,null,null,null,null,null,null,null,null,null,null,null,""]
[null,null,null,null,null,null,null,null,null,null,null,null,null,null,null,""]
[null,null,null,null,null,null,null,null,null,null,null,null,null,null,null,""]
[null,null,null,null,null,null,null,null,null,null,null,null,null,null,null,""]
[null,null,null,null,null,null,null,null,null,null,null,null,null,null,null,""]
[null,null,null,null,null,null,null,null,null,null,null,null,null,null,null,""]
[null,null,null,null,null,null,null,null,null,null,null,null,null,null,null,""]
[null,null,null,null,null,null,null,null,null,null,null,null,null,null,null,""]
[null,null,null,null,null,null,null,null,null,null,null,null,null,null,null,""]
[null,null,null,null,null,null,null,null,null,null,null,null,null,null,null,""]
[null,null,null,null,null,null,null,null,null,null,null,null,null,null,null,""]
[null,null,null,null,null,null,null,null,null,null,null,null,null,null,null,""]
[null,null,null,null,null,null,null,null,null,null,null,null,null,null,null,""]
[null,null,null,null,null,null,null,null,null,null,null,null,null,null,null,""]
[null,null,null,null,null,null,null,null,null,null,null,null,null,null,null,""]
[null,null,null,null,null,null,null,null,null,null,null,null,null,null,null,""]
[null,null,null,null,null,null,null,null,null,null,null,null,null,null,null,""]
[null,null,null,null,null,null,null,null,null,null,null,null,null,null,null,""]
[null,null,null,null,null,null,null,null,null,null,null,null,null,null,null,""]
[null,null,null,null,null,null,null,null,null,null,null,null,null,null,null,""]
[null,null,null,null,null,null,null,null,null,null,null,null,null,null,null,""]
[null,null,null,null,null,null,null,null,null,null,null,null,null,null,null,""]
[null,null,null,null,null,null,null,null,null,null,null,null,null,null,null,""]
[null,null,null,null,null,null,null,null,null,null,null,null,null,null,null,""]
[null,null,null,null,null,null,null,null,null,null,null,null,null,null,null,""]
[null,null,null,null,null,null,null,null,null,null,null,null,null,null,null,""]
[null,null,null,null,null,null,null,null,null,null,null,null,null,null,null,""]
[null,null,null,null,null,null,null,null,null,null,null,null,null,null,null,""]
[null,null,null,null,null,null,null,null,null,null,null,null,null,null,null,""]
[null,null,null,null,null,null,null,null,null,null,null,null,null,null,null,{"$f":"B196&IF(AND(C196=\"\",D196=\"\",E196=\"\"),\"\",\" - \")&C196&IF(OR(D196=\"\",C196=\"\"),\"\",\" - \")&D196","v":""}]
[null,null,null,null,null,null,null,null,null,null,null,null,null,null,null,""]
[null,null,null,null,null,null,null,null,null,null,null,null,null,null,null,""]
[null,null,null,null,null,null,null,null,null,null,null,null,null,null,null,""]
[null,null,null,null,null,null,null,null,null,null,null,null,null,null,null,""]
[null,null,null,null,null,null,null,null,null,null,null,null,null,null,null,""]
[null,null,null,null,null,null,null,null,null,null,null,null,null,null,null,""]
[null,null,null,null,null,null,null,null,null,null,null,null,null,null,null,""]
[null,null,null,null,null,null,null,null,null,null,null,null,null,null,null,""]
[null,null,null,null,null,null,null,null,null,null,null,null,null,null,null,""]
[null,null,null,null,null,null,null,null,null,null,null,null,null,null,null,""]
[null,null,null,null,null,null,null,null,null,null,null,null,null,null,null,""]
[null,null,null,null,null,null,null,null,null,null,null,null,null,null,null,""]
[null,null,null,null,null,null,null,null,null,null,null,null,null,null,null,""]
[null,null,null,null,null,null,null,null,null,null,null,null,null,null,null,""]
[null,null,null,null,null,null,null,null,null,null,null,null,null,null,null,""]
[null,null,null,null,null,null,null,null,null,null,null,null,null,null,null,""]
[null,null,null,null,null,null,null,null,null,null,null,null,null,null,null,""]
[null,null,null,null,null,null,null,null,null,null,null,null,null,null,null,""]
[null,null,null,null,null,null,null,null,null,null,null,null,null,null,null,""]
[null,null,null,null,null,null,null,null,null,null,null,null,null,null,null,""]
[null,null,null,null,null,null,null,null,null,null,null,null,null,null,null,""]
[null,null,null,null,null,null,null,null,null,null,null,null,null,null,null,""]
[null,null,null,null,null,null,null,null,null,null,null,null,null,null,null,""]
[null,null,null,null,null,null,null,null,null,null,null,null,null,null,null,""]
[null,null,null,null,null,null,null,null,null,null,null,null,null,null,null,""]
[null,null,null,null,null,null,null,null,null,null,null,null,null,null,null,""]
[null,null,null,null,null,null,null,null,null,null,null,null,null,null,null,""]
[null,null,null,null,null,null,null,null,null,null,null,null,null,null,null,""]
[null,null,null,null,null,null,null,null,null,null,null,null,null,null,null,""]
[null,null,null,null,null,null,null,null,null,null,null,null,null,null,null,""]
[null,null,null,null,null,null,null,null,null,null,null,null,null,null,null,""]
[null,null,null,null,null,null,null,null,null,null,null,null,null,null,null,""]
[null,null,null,null,null,null,null,null,null,null,null,null,null,null,null,""]
[null,null,null,null,null,null,null,null,null,null,null,null,null,null,null,""]
[null,null,null,null,null,null,null,null,null,null,null,null,null,null,null,""]
[null,null,null,null,null,null,null,null,null,null,null,null,null,null,null,""]
[null,null,null,null,null,null,null,null,null,null,null,null,null,null,null,""]
[null,null,null,null,null,null,null,null,null,null,null,null,null,null,null,""]
[null,null,null,null,null,null,null,null,null,null,null,null,null,null,null,""]
[null,null,null,null,null,null,null,null,null,null,null,null,null,null,null,""]
[null,null,null,null,null,null,null,null,null,null,null,null,null,null,null,""]
[null,null,null,null,null,null,null,null,null,null,null,null,null,null,null,""]
[null,null,null,null,null,null,null,null,null,null,null,null,null,null,null,""]
[null,null,null,null,null,null,null,null,null,null,null,null,null,null,null,""]
[null,null,null,null,null,null,null,null,null,null,null,null,null,null,null,""]
[null,null,null,null,null,null,null,null,null,null,null,null,null,null,null,""]
[null,null,null,null,null,null,null,null,null,null,null,null,null,null,null,""]
[null,null,null,null,null,null,null,null,null,null,null,null,null,null,null,""]
[null,null,null,null,null,null,null,null,null,null,null,null,null,null,null,""]
[null,null,null,null,null,null,null,null,null,null,null,null,null,null,null,""]
[null,null,null,null,null,null,null,null,null,null,null,null,null,null,null,""]
[null,null,null,null,null,null,null,null,null,null,null,null,null,null,null,""]
[null,null,null,null,null,null,null,null,null,null,null,null,null,null,null,""]
[null,null,null,null,null,null,null,null,null,null,null,null,null,null,null,""]
[null,null,null,null,null,null,null,null,null,null,null,null,null,null,null,""]
[null,null,null,null,null,null,null,null,null,null,null,null,null,null,null,""]
[null,null,null,null,null,null,null,null,null,null,null,null,null,null,null,""]
[null,null,null,null,null,null,null,null,null,null,null,null,null,null,null,""]
[null,null,null,null,null,null,null,null,null,null,null,null,null,null,null,""]
[null,null,null,null,null,null,null,null,null,null,null,null,null,null,null,""]
[null,null,null,null,null,null,null,null,null,null,null,null,null,null,null,""]
[null,null,null,null,null,null,null,null,null,null,null,null,null,null,null,""]
[null,null,null,null,null,null,null,null,null,null,null,null,null,null,null,""]
[null,null,null,null,null,null,null,null,null,null,null,null,null,null,null,{"$f":"B260&IF(AND(C260=\"\",D260=\"\",E260=\"\"),\"\",\" - \")&C260&IF(OR(D260=\"\",C260=\"\"),\"\",\" - \")&D260","v":""}]
[null,null,null,null,null,null,null,null,null,null,null,null,null,null,null,""]
[null,null,null,null,null,null,null,null,null,null,null,null,null,null,null,""]
[null,null,null,null,null,null,null,null,null,null,null,null,null,null,null,""]
[null,null,null,null,null,null,null,null,null,null,null,null,null,null,null,""]
[null,null,null,null,null,null,null,null,null,null,null,null,null,null,null,""]
[null,null,null,null,null,null,null,null,null,null,null,null,null,null,null,""]
[null,null,null,null,null,null,null,null,null,null,null,null,null,null,null,""]
[null,null,null,null,null,null,null,null,null,null,null,null,null,null,null,""]
[null,null,null,null,null,null,null,null,null,null,null,null,null,null,null,""]
[null,null,null,null,null,null,null,null,null,null,null,null,null,null,null,""]
[null,null,null,null,null,null,null,null,null,null,null,null,null,null,null,""]
[null,null,null,null,null,null,null,null,null,null,null,null,null,null,null,""]
[null,null,null,null,null,null,null,null,null,null,null,null,null,null,null,""]
[null,null,null,null,null,null,null,null,null,null,null,null,null,null,null,""]
[null,null,null,null,null,null,null,null,null,null,null,null,null,null,null,""]
[null,null,null,null,null,null,null,null,null,null,null,null,null,null,null,""]
[null,null,null,null,null,null,null,null,null,null,null,null,null,null,null,""]
[null,null,null,null,null,null,null,null,null,null,null,null,null,null,null,""]
[null,null,null,null,null,null,null,null,null,null,null,null,null,null,null,""]
[null,null,null,null,null,null,null,null,null,null,null,null,null,null,null,""]
[null,null,null,null,null,null,null,null,null,null,null,null,null,null,null,""]
[null,null,null,null,null,null,null,null,null,null,null,null,null,null,null,""]
[null,null,null,null,null,null,null,null,null,null,null,null,null,null,null,""]
[null,null,null,null,null,null,null,null,null,null,null,null,null,null,null,""]
[null,null,null,null,null,null,null,null,null,null,null,null,null,null,null,""]
[null,null,null,null,null,null,null,null,null,null,null,null,null,null,null,""]
[null,null,null,null,null,null,null,null,null,null,null,null,null,null,null,""]
[null,null,null,null,null,null,null,null,null,null,null,null,null,null,null,""]
[null,null,null,null,null,null,null,null,null,null,null,null,null,null,null,""]
[null,null,null,null,null,null,null,null,null,null,null,null,null,null,null,""]
[null,null,null,null,null,null,null,null,null,null,null,null,null,null,null,""]
[null,null,null,null,null,null,null,null,null,null,null,null,null,null,null,""]
[null,null,null,null,null,null,null,null,null,null,null,null,null,null,null,""]
[null,null,null,null,null,null,null,null,null,null,null,null,null,null,null,""]
[null,null,null,null,null,null,null,null,null,null,null,null,null,null,null,""]
[null,null,null,null,null,null,null,null,null,null,null,null,null,null,null,""]
[null,null,null,null,null,null,null,null,null,null,null,null,null,null,null,""]
[null,null,null,null,null,null,null,null,null,null,null,null,null,null,null,""]
[null,null,null,null,null,null,null,null,null,null,null,null,null,null,null,""]
[null,null,null,null,null,null,null,null,null,null,null,null,null,null,null,""]
[null,null,null,null,null,null,null,null,null,null,null,null,null,null,null,""]
[null,null,null,null,null,null,null,null,null,null,null,null,null,null,null,""]
[null,null,null,null,null,null,null,null,null,null,null,null,null,null,null,""]
[null,null,null,null,null,null,null,null,null,null,null,null,null,null,null,""]
[null,null,null,null,null,null,null,null,null,null,null,null,null,null,null,""]
[null,null,null,null,null,null,null,null,null,null,null,null,null,null,null,""]
[null,null,null,null,null,null,null,null,null,null,null,null,null,null,null,""]
[null,null,null,null,null,null,null,null,null,null,null,null,null,null,null,""]
[null,null,null,null,null,null,null,null,null,null,null,null,null,null,null,""]
[null,null,null,null,null,null,null,null,null,null,null,null,null,null,null,""]
[null,null,null,null,null,null,null,null,null,null,null,null,null,null,null,""]
[null,null,null,null,null,null,null,null,null,null,null,null,null,null,null,""]
[null,null,null,null,null,null,null,null,null,null,null,null,null,null,null,""]
[null,null,null,null,null,null,null,null,null,null,null,null,null,null,null,""]
[null,null,null,null,null,null,null,null,null,null,null,null,null,null,null,""]
[null,null,null,null,null,null,null,null,null,null,null,null,null,null,null,""]
[null,null,null,null,null,null,null,null,null,null,null,null,null,null,null,""]
[null,null,null,null,null,null,null,null,null,null,null,null,null,null,null,""]
[null,null,null,null,null,null,null,null,null,null,null,null,null,null,null,""]
[null,null,null,null,null,null,null,null,null,null,null,null,null,null,null,""]
[null,null,null,null,null,null,null,null,null,null,null,null,null,null,null,""]
[null,null,null,null,null,null,null,null,null,null,null,null,null,null,null,""]
[null,null,null,null,null,null,null,null,null,null,null,null,null,null,null,""]
[null,null,null,null,null,null,null,null,null,null,null,null,null,null,null,{"$f":"B324&IF(AND(C324=\"\",D324=\"\",E324=\"\"),\"\",\" - \")&C324&IF(OR(D324=\"\",C324=\"\"),\"\",\" - \")&D324","v":""}]
[null,null,null,null,null,null,null,null,null,null,null,null,null,null,null,""]
[null,null,null,null,null,null,null,null,null,null,null,null,null,null,null,""]
[null,null,null,null,null,null,null,null,null,null,null,null,null,null,null,""]
[null,null,null,null,null,null,null,null,null,null,null,null,null,null,null,""]
[null,null,null,null,null,null,null,null,null,null,null,null,null,null,null,""]
[null,null,null,null,null,null,null,null,null,null,null,null,null,null,null,""]
[null,null,null,null,null,null,null,null,null,null,null,null,null,null,null,""]
[null,null,null,null,null,null,null,null,null,null,null,null,null,null,null,""]
[null,null,null,null,null,null,null,null,null,null,null,null,null,null,null,""]
[null,null,null,null,null,null,null,null,null,null,null,null,null,null,null,""]
[null,null,null,null,null,null,null,null,null,null,null,null,null,null,null,""]
[null,null,null,null,null,null,null,null,null,null,null,null,null,null,null,""]
[null,null,null,null,null,null,null,null,null,null,null,null,null,null,null,""]
[null,null,null,null,null,null,null,null,null,null,null,null,null,null,null,""]
[null,null,null,null,null,null,null,null,null,null,null,null,null,null,null,""]
[null,null,null,null,null,null,null,null,null,null,null,null,null,null,null,""]
[null,null,null,null,null,null,null,null,null,null,null,null,null,null,null,""]
[null,null,null,null,null,null,null,null,null,null,null,null,null,null,null,""]
[null,null,null,null,null,null,null,null,null,null,null,null,null,null,null,""]
[null,null,null,null,null,null,null,null,null,null,null,null,null,null,null,""]
[null,null,null,null,null,null,null,null,null,null,null,null,null,null,null,""]
[null,null,null,null,null,null,null,null,null,null,null,null,null,null,null,""]
[null,null,null,null,null,null,null,null,null,null,null,null,null,null,null,""]
[null,null,null,null,null,null,null,null,null,null,null,null,null,null,null,""]
[null,null,null,null,null,null,null,null,null,null,null,null,null,null,null,""]
[null,null,null,null,null,null,null,null,null,null,null,null,null,null,null,""]
[null,null,null,null,null,null,null,null,null,null,null,null,null,null,null,""]
[null,null,null,null,null,null,null,null,null,null,null,null,null,null,null,""]
[null,null,null,null,null,null,null,null,null,null,null,null,null,null,null,""]
[null,null,null,null,null,null,null,null,null,null,null,null,null,null,null,""]
[null,null,null,null,null,null,null,null,null,null,null,null,null,null,null,""]
[null,null,null,null,null,null,null,null,null,null,null,null,null,null,null,""]
[null,null,null,null,null,null,null,null,null,null,null,null,null,null,null,""]
[null,null,null,null,null,null,null,null,null,null,null,null,null,null,null,""]
[null,null,null,null,null,null,null,null,null,null,null,null,null,null,null,""]
[null,null,null,null,null,null,null,null,null,null,null,null,null,null,null,""]
[null,null,null,null,null,null,null,null,null,null,null,null,null,null,null,""]
[null,null,null,null,null,null,null,null,null,null,null,null,null,null,null,""]
[null,null,null,null,null,null,null,null,null,null,null,null,null,null,null,""]
[null,null,null,null,null,null,null,null,null,null,null,null,null,null,null,""]
[null,null,null,null,null,null,null,null,null,null,null,null,null,null,null,""]
[null,null,null,null,null,null,null,null,null,null,null,null,null,null,null,""]
[null,null,null,null,null,null,null,null,null,null,null,null,null,null,null,""]
[null,null,null,null,null,null,null,null,null,null,null,null,null,null,null,""]
[null,null,null,null,null,null,null,null,null,null,null,null,null,null,null,""]
[null,null,null,null,null,null,null,null,null,null,null,null,null,null,null,""]
[null,null,null,null,null,null,null,null,null,null,null,null,null,null,null,""]
[null,null,null,null,null,null,null,null,null,null,null,null,null,null,null,""]
[null,null,null,null,null,null,null,null,null,null,null,null,null,null,null,""]
[null,null,null,null,null,null,null,null,null,null,null,null,null,null,null,""]
[null,null,null,null,null,null,null,null,null,null,null,null,null,null,null,""]
[null,null,null,null,null,null,null,null,null,null,null,null,null,null,null,""]
[null,null,null,null,null,null,null,null,null,null,null,null,null,null,null,""]
[null,null,null,null,null,null,null,null,null,null,null,null,null,null,null,""]
[null,null,null,null,null,null,null,null,null,null,null,null,null,null,null,""]
[null,null,null,null,null,null,null,null,null,null,null,null,null,null,null,""]
[null,null,null,null,null,null,null,null,null,null,null,null,null,null,null,""]
[null,null,null,null,null,null,null,null,null,null,null,null,null,null,null,""]
[null,null,null,null,null,null,null,null,null,null,null,null,null,null,null,""]
[null,null,null,null,null,null,null,null,null,null,null,null,null,null,null,""]
[null,null,null,null,null,null,null,null,null,null,null,null,null,null,null,""]
[null,null,null,null,null,null,null,null,null,null,null,null,null,null,null,""]
[null,null,null,null,null,null,null,null,null,null,null,null,null,null,null,""]
[null,null,null,null,null,null,null,null,null,null,null,null,null,null,null,{"$f":"B388&IF(AND(C388=\"\",D388=\"\",E388=\"\"),\"\",\" - \")&C388&IF(OR(D388=\"\",C388=\"\"),\"\",\" - \")&D388","v":""}]
[null,null,null,null,null,null,null,null,null,null,null,null,null,null,null,""]
[null,null,null,null,null,null,null,null,null,null,null,null,null,null,null,""]
[null,null,null,null,null,null,null,null,null,null,null,null,null,null,null,""]
[null,null,null,null,null,null,null,null,null,null,null,null,null,null,null,""]
[null,null,null,null,null,null,null,null,null,null,null,null,null,null,null,""]
[null,null,null,null,null,null,null,null,null,null,null,null,null,null,null,""]
[null,null,null,null,null,null,null,null,null,null,null,null,null,null,null,""]
[null,null,null,null,null,null,null,null,null,null,null,null,null,null,null,""]
[null,null,null,null,null,null,null,null,null,null,null,null,null,null,null,""]
[null,null,null,null,null,null,null,null,null,null,null,null,null,null,null,""]
[null,null,null,null,null,null,null,null,null,null,null,null,null,null,null,""]
[null,null,null,null,null,null,null,null,null,null,null,null,null,null,null,""]
[null,null,null,null,null,null,null,null,null,null,null,null,null,null,null,""]
[null,null,null,null,null,null,null,null,null,null,null,null,null,null,null,""]
[null,null,null,null,null,null,null,null,null,null,null,null,null,null,null,""]
[null,null,null,null,null,null,null,null,null,null,null,null,null,null,null,""]
[null,null,null,null,null,null,null,null,null,null,null,null,null,null,null,""]
[null,null,null,null,null,null,null,null,null,null,null,null,null,null,null,""]
[null,null,null,null,null,null,null,null,null,null,null,null,null,null,null,""]
[null,null,null,null,null,null,null,null,null,null,null,null,null,null,null,""]
[null,null,null,null,null,null,null,null,null,null,null,null,null,null,null,""]
[null,null,null,null,null,null,null,null,null,null,null,null,null,null,null,""]
[null,null,null,null,null,null,null,null,null,null,null,null,null,null,null,""]
[null,null,null,null,null,null,null,null,null,null,null,null,null,null,null,""]
[null,null,null,null,null,null,null,null,null,null,null,null,null,null,null,""]
[null,null,null,null,null,null,null,null,null,null,null,null,null,null,null,""]
[null,null,null,null,null,null,null,null,null,null,null,null,null,null,null,""]
[null,null,null,null,null,null,null,null,null,null,null,null,null,null,null,""]
[null,null,null,null,null,null,null,null,null,null,null,null,null,null,null,""]
[null,null,null,null,null,null,null,null,null,null,null,null,null,null,null,""]
[null,null,null,null,null,null,null,null,null,null,null,null,null,null,null,""]
[null,null,null,null,null,null,null,null,null,null,null,null,null,null,null,""]
[null,null,null,null,null,null,null,null,null,null,null,null,null,null,null,""]
[null,null,null,null,null,null,null,null,null,null,null,null,null,null,null,""]
[null,null,null,null,null,null,null,null,null,null,null,null,null,null,null,""]
[null,null,null,null,null,null,null,null,null,null,null,null,null,null,null,""]
[null,null,null,null,null,null,null,null,null,null,null,null,null,null,null,""]
[null,null,null,null,null,null,null,null,null,null,null,null,null,null,null,""]
[null,null,null,null,null,null,null,null,null,null,null,null,null,null,null,""]
[null,null,null,null,null,null,null,null,null,null,null,null,null,null,null,""]
[null,null,null,null,null,null,null,null,null,null,null,null,null,null,null,""]
[null,null,null,null,null,null,null,null,null,null,null,null,null,null,null,""]
[null,null,null,null,null,null,null,null,null,null,null,null,null,null,null,""]
[null,null,null,null,null,null,null,null,null,null,null,null,null,null,null,""]
[null,null,null,null,null,null,null,null,null,null,null,null,null,null,null,""]
[null,null,null,null,null,null,null,null,null,null,null,null,null,null,null,""]
[null,null,null,null,null,null,null,null,null,null,null,null,null,null,null,""]
[null,null,null,null,null,null,null,null,null,null,null,null,null,null,null,""]
[null,null,null,null,null,null,null,null,null,null,null,null,null,null,null,""]
[null,null,null,null,null,null,null,null,null,null,null,null,null,null,null,""]
[null,null,null,null,null,null,null,null,null,null,null,null,null,null,null,""]
[null,null,null,null,null,null,null,null,null,null,null,null,null,null,null,""]
[null,null,null,null,null,null,null,null,null,null,null,null,null,null,null,""]
[null,null,null,null,null,null,null,null,null,null,null,null,null,null,null,""]
[null,null,null,null,null,null,null,null,null,null,null,null,null,null,null,""]
[null,null,null,null,null,null,null,null,null,null,null,null,null,null,null,""]
[null,null,null,null,null,null,null,null,null,null,null,null,null,null,null,""]
[null,null,null,null,null,null,null,null,null,null,null,null,null,null,null,""]
[null,null,null,null,null,null,null,null,null,null,null,null,null,null,null,""]
[null,null,null,null,null,null,null,null,null,null,null,null,null,null,null,""]
[null,null,null,null,null,null,null,null,null,null,null,null,null,null,null,""]
[null,null,null,null,null,null,null,null,null,null,null,null,null,null,null,""]
[null,null,null,null,null,null,null,null,null,null,null,null,null,null,null,""]
[null,null,null,null,null,null,null,null,null,null,null,null,null,null,null,{"$f":"B452&IF(AND(C452=\"\",D452=\"\",E452=\"\"),\"\",\" - \")&C452&IF(OR(D452=\"\",C452=\"\"),\"\",\" - \")&D452","v":""}]
[null,null,null,null,null,null,null,null,null,null,null,null,null,null,null,""]
[null,null,null,null,null,null,null,null,null,null,null,null,null,null,null,""]
[null,null,null,null,null,null,null,null,null,null,null,null,null,null,null,""]
[null,null,null,null,null,null,null,null,null,null,null,null,null,null,null,""]
[null,null,null,null,null,null,null,null,null,null,null,null,null,null,null,""]
[null,null,null,null,null,null,null,null,null,null,null,null,null,null,null,""]
[null,null,null,null,null,null,null,null,null,null,null,null,null,null,null,""]
[null,null,null,null,null,null,null,null,null,null,null,null,null,null,null,""]
[null,null,null,null,null,null,null,null,null,null,null,null,null,null,null,""]
[null,null,null,null,null,null,null,null,null,null,null,null,null,null,null,""]
[null,null,null,null,null,null,null,null,null,null,null,null,null,null,null,""]
[null,null,null,null,null,null,null,null,null,null,null,null,null,null,null,""]
[null,null,null,null,null,null,null,null,null,null,null,null,null,null,null,""]
[null,null,null,null,null,null,null,null,null,null,null,null,null,null,null,""]
[null,null,null,null,null,null,null,null,null,null,null,null,null,null,null,""]
[null,null,null,null,null,null,null,null,null,null,null,null,null,null,null,""]
[null,null,null,null,null,null,null,null,null,null,null,null,null,null,null,""]
[null,null,null,null,null,null,null,null,null,null,null,null,null,null,null,""]
[null,null,null,null,null,null,null,null,null,null,null,null,null,null,null,""]
[null,null,null,null,null,null,null,null,null,null,null,null,null,null,null,""]
[null,null,null,null,null,null,null,null,null,null,null,null,null,null,null,""]
[null,null,null,null,null,null,null,null,null,null,null,null,null,null,null,""]
[null,null,null,null,null,null,null,null,null,null,null,null,null,null,null,""]
[null,null,null,null,null,null,null,null,null,null,null,null,null,null,null,""]
[null,null,null,null,null,null,null,null,null,null,null,null,null,null,null,""]
[null,null,null,null,null,null,null,null,null,null,null,null,null,null,null,""]
[null,null,null,null,null,null,null,null,null,null,null,null,null,null,null,""]
[null,null,null,null,null,null,null,null,null,null,null,null,null,null,null,""]
[null,null,null,null,null,null,null,null,null,null,null,null,null,null,null,""]
[null,null,null,null,null,null,null,null,null,null,null,null,null,null,null,""]
[null,null,null,null,null,null,null,null,null,null,null,null,null,null,null,""]
[null,null,null,null,null,null,null,null,null,null,null,null,null,null,null,""]
[null,null,null,null,null,null,null,null,null,null,null,null,null,null,null,""]
[null,null,null,null,null,null,null,null,null,null,null,null,null,null,null,""]
[null,null,null,null,null,null,null,null,null,null,null,null,null,null,null,""]
[null,null,null,null,null,null,null,null,null,null,null,null,null,null,null,""]
[null,null,null,null,null,null,null,null,null,null,null,null,null,null,null,""]
[null,null,null,null,null,null,null,null,null,null,null,null,null,null,null,""]
[null,null,null,null,null,null,null,null,null,null,null,null,null,null,null,""]
[null,null,null,null,null,null,null,null,null,null,null,null,null,null,null,""]
[null,null,null,null,null,null,null,null,null,null,null,null,null,null,null,""]
[null,null,null,null,null,null,null,null,null,null,null,null,null,null,null,""]
[null,null,null,null,null,null,null,null,null,null,null,null,null,null,null,""]
[null,null,null,null,null,null,null,null,null,null,null,null,null,null,null,""]
[null,null,null,null,null,null,null,null,null,null,null,null,null,null,null,""]
[null,null,null,null,null,null,null,null,null,null,null,null,null,null,null,""]
[null,null,null,null,null,null,null,null,null,null,null,null,null,null,null,""]
[null,null,null,null,null,null,null,null,null,null,null,null,null,null,null,""]
[null,null,null,null,null,null,null,null,null,null,null,null,null,null,null,""]
[null,null,null,null,null,null,null,null,null,null,null,null,null,null,null,""]
[null,null,null,null,null,null,null,null,null,null,null,null,null,null,null,""]
[null,null,null,null,null,null,null,null,null,null,null,null,null,null,null,""]
[null,null,null,null,null,null,null,null,null,null,null,null,null,null,null,""]
[null,null,null,null,null,null,null,null,null,null,null,null,null,null,null,""]
[null,null,null,null,null,null,null,null,null,null,null,null,null,null,null,""]
[null,null,null,null,null,null,null,null,null,null,null,null,null,null,null,""]
[null,null,null,null,null,null,null,null,null,null,null,null,null,null,null,""]
[null,null,null,null,null,null,null,null,null,null,null,null,null,null,null,""]
[null,null,null,null,null,null,null,null,null,null,null,null,null,null,null,""]
[null,null,null,null,null,null,null,null,null,null,null,null,null,null,null,""]
[null,null,null,null,null,null,null,null,null,null,null,null,null,null,null,""]
[null,null,null,null,null,null,null,null,null,null,null,null,null,null,null,""]
[null,null,null,null,null,null,null,null,null,null,null,null,null,null,null,""]
[null,null,null,null,null,null,null,null,null,null,null,null,null,null,null,{"$f":"B516&IF(AND(C516=\"\",D516=\"\",E516=\"\"),\"\",\" - \")&C516&IF(OR(D516=\"\",C516=\"\"),\"\",\" - \")&D516","v":""}]
[null,null,null,null,null,null,null,null,null,null,null,null,null,null,null,""]
[null,null,null,null,null,null,null,null,null,null,null,null,null,null,null,""]
[null,null,null,null,null,null,null,null,null,null,null,null,null,null,null,""]
[null,null,null,null,null,null,null,null,null,null,null,null,null,null,null,""]
[null,null,null,null,null,null,null,null,null,null,null,null,null,null,null,""]
[null,null,null,null,null,null,null,null,null,null,null,null,null,null,null,""]
[null,null,null,null,null,null,null,null,null,null,null,null,null,null,null,""]
[null,null,null,null,null,null,null,null,null,null,null,null,null,null,null,""]
[null,null,null,null,null,null,null,null,null,null,null,null,null,null,null,""]
[null,null,null,null,null,null,null,null,null,null,null,null,null,null,null,""]
[null,null,null,null,null,null,null,null,null,null,null,null,null,null,null,""]
[null,null,null,null,null,null,null,null,null,null,null,null,null,null,null,""]
[null,null,null,null,null,null,null,null,null,null,null,null,null,null,null,""]
[null,null,null,null,null,null,null,null,null,null,null,null,null,null,null,""]
[null,null,null,null,null,null,null,null,null,null,null,null,null,null,null,""]
[null,null,null,null,null,null,null,null,null,null,null,null,null,null,null,""]
[null,null,null,null,null,null,null,null,null,null,null,null,null,null,null,""]
[null,null,null,null,null,null,null,null,null,null,null,null,null,null,null,""]
[null,null,null,null,null,null,null,null,null,null,null,null,null,null,null,""]
[null,null,null,null,null,null,null,null,null,null,null,null,null,null,null,""]
[null,null,null,null,null,null,null,null,null,null,null,null,null,null,null,""]
[null,null,null,null,null,null,null,null,null,null,null,null,null,null,null,""]
[null,null,null,null,null,null,null,null,null,null,null,null,null,null,null,""]
[null,null,null,null,null,null,null,null,null,null,null,null,null,null,null,""]
[null,null,null,null,null,null,null,null,null,null,null,null,null,null,null,""]
[null,null,null,null,null,null,null,null,null,null,null,null,null,null,null,""]
[null,null,null,null,null,null,null,null,null,null,null,null,null,null,null,""]
[null,null,null,null,null,null,null,null,null,null,null,null,null,null,null,""]
[null,null,null,null,null,null,null,null,null,null,null,null,null,null,null,""]
[null,null,null,null,null,null,null,null,null,null,null,null,null,null,null,""]
[null,null,null,null,null,null,null,null,null,null,null,null,null,null,null,""]
[null,null,null,null,null,null,null,null,null,null,null,null,null,null,null,""]
[null,null,null,null,null,null,null,null,null,null,null,null,null,null,null,""]
[null,null,null,null,null,null,null,null,null,null,null,null,null,null,null,""]
[null,null,null,null,null,null,null,null,null,null,null,null,null,null,null,""]
[null,null,null,null,null,null,null,null,null,null,null,null,null,null,null,""]
[null,null,null,null,null,null,null,null,null,null,null,null,null,null,null,""]
[null,null,null,null,null,null,null,null,null,null,null,null,null,null,null,""]
[null,null,null,null,null,null,null,null,null,null,null,null,null,null,null,""]
[null,null,null,null,null,null,null,null,null,null,null,null,null,null,null,""]
[null,null,null,null,null,null,null,null,null,null,null,null,null,null,null,""]
[null,null,null,null,null,null,null,null,null,null,null,null,null,null,null,""]
[null,null,null,null,null,null,null,null,null,null,null,null,null,null,null,""]
[null,null,null,null,null,null,null,null,null,null,null,null,null,null,null,""]
[null,null,null,null,null,null,null,null,null,null,null,null,null,null,null,""]
[null,null,null,null,null,null,null,null,null,null,null,null,null,null,null,""]
[null,null,null,null,null,null,null,null,null,null,null,null,null,null,null,""]
[null,null,null,null,null,null,null,null,null,null,null,null,null,null,null,""]
[null,null,null,null,null,null,null,null,null,null,null,null,null,null,null,""]
[null,null,null,null,null,null,null,null,null,null,null,null,null,null,null,""]
[null,null,null,null,null,null,null,null,null,null,null,null,null,null,null,""]
[null,null,null,null,null,null,null,null,null,null,null,null,null,null,null,""]
[null,null,null,null,null,null,null,null,null,null,null,null,null,null,null,""]
[null,null,null,null,null,null,null,null,null,null,null,null,null,null,null,""]
[null,null,null,null,null,null,null,null,null,null,null,null,null,null,null,""]
[null,null,null,null,null,null,null,null,null,null,null,null,null,null,null,""]
[null,null,null,null,null,null,null,null,null,null,null,null,null,null,null,""]
[null,null,null,null,null,null,null,null,null,null,null,null,null,null,null,""]
[null,null,null,null,null,null,null,null,null,null,null,null,null,null,null,""]
[null,null,null,null,null,null,null,null,null,null,null,null,null,null,null,""]
[null,null,null,null,null,null,null,null,null,null,null,null,null,null,null,""]
[null,null,null,null,null,null,null,null,null,null,null,null,null,null,null,""]
[null,null,null,null,null,null,null,null,null,null,null,null,null,null,null,""]
[null,null,null,null,null,null,null,null,null,null,null,null,null,null,null,{"$f":"B580&IF(AND(C580=\"\",D580=\"\",E580=\"\"),\"\",\" - \")&C580&IF(OR(D580=\"\",C580=\"\"),\"\",\" - \")&D580","v":""}]
[null,null,null,null,null,null,null,null,null,null,null,null,null,null,null,""]
[null,null,null,null,null,null,null,null,null,null,null,null,null,null,null,""]
[null,null,null,null,null,null,null,null,null,null,null,null,null,null,null,""]
[null,null,null,null,null,null,null,null,null,null,null,null,null,null,null,""]
[null,null,null,null,null,null,null,null,null,null,null,null,null,null,null,""]
[null,null,null,null,null,null,null,null,null,null,null,null,null,null,null,""]
[null,null,null,null,null,null,null,null,null,null,null,null,null,null,null,""]
[null,null,null,null,null,null,null,null,null,null,null,null,null,null,null,""]
[null,null,null,null,null,null,null,null,null,null,null,null,null,null,null,""]
[null,null,null,null,null,null,null,null,null,null,null,null,null,null,null,""]
[null,null,null,null,null,null,null,null,null,null,null,null,null,null,null,""]
[null,null,null,null,null,null,null,null,null,null,null,null,null,null,null,""]
[null,null,null,null,null,null,null,null,null,null,null,null,null,null,null,""]
[null,null,null,null,null,null,null,null,null,null,null,null,null,null,null,""]
[null,null,null,null,null,null,null,null,null,null,null,null,null,null,null,""]
[null,null,null,null,null,null,null,null,null,null,null,null,null,null,null,""]
[null,null,null,null,null,null,null,null,null,null,null,null,null,null,null,""]
[null,null,null,null,null,null,null,null,null,null,null,null,null,null,null,""]
[null,null,null,null,null,null,null,null,null,null,null,null,null,null,null,""]
[null,null,null,null,null,null,null,null,null,null,null,null,null,null,null,""]
[null,null,null,null,null,null,null,null,null,null,null,null,null,null,null,""]
[null,null,null,null,null,null,null,null,null,null,null,null,null,null,null,""]
[null,null,null,null,null,null,null,null,null,null,null,null,null,null,null,""]
[null,null,null,null,null,null,null,null,null,null,null,null,null,null,null,""]
[null,null,null,null,null,null,null,null,null,null,null,null,null,null,null,""]
[null,null,null,null,null,null,null,null,null,null,null,null,null,null,null,""]
[null,null,null,null,null,null,null,null,null,null,null,null,null,null,null,""]
[null,null,null,null,null,null,null,null,null,null,null,null,null,null,null,""]
[null,null,null,null,null,null,null,null,null,null,null,null,null,null,null,""]
[null,null,null,null,null,null,null,null,null,null,null,null,null,null,null,""]
[null,null,null,null,null,null,null,null,null,null,null,null,null,null,null,""]
[null,null,null,null,null,null,null,null,null,null,null,null,null,null,null,""]
[null,null,null,null,null,null,null,null,null,null,null,null,null,null,null,""]
[null,null,null,null,null,null,null,null,null,null,null,null,null,null,null,""]
[null,null,null,null,null,null,null,null,null,null,null,null,null,null,null,""]
[null,null,null,null,null,null,null,null,null,null,null,null,null,null,null,""]
[null,null,null,null,null,null,null,null,null,null,null,null,null,null,null,""]
[null,null,null,null,null,null,null,null,null,null,null,null,null,null,null,""]
[null,null,null,null,null,null,null,null,null,null,null,null,null,null,null,""]
[null,null,null,null,null,null,null,null,null,null,null,null,null,null,null,""]
[null,null,null,null,null,null,null,null,null,null,null,null,null,null,null,""]
[null,null,null,null,null,null,null,null,null,null,null,null,null,null,null,""]
[null,null,null,null,null,null,null,null,null,null,null,null,null,null,null,""]
[null,null,null,null,null,null,null,null,null,null,null,null,null,null,null,""]
[null,null,null,null,null,null,null,null,null,null,null,null,null,null,null,""]
[null,null,null,null,null,null,null,null,null,null,null,null,null,null,null,""]
[null,null,null,null,null,null,null,null,null,null,null,null,null,null,null,""]
[null,null,null,null,null,null,null,null,null,null,null,null,null,null,null,""]
[null,null,null,null,null,null,null,null,null,null,null,null,null,null,null,""]
[null,null,null,null,null,null,null,null,null,null,null,null,null,null,null,""]
[null,null,null,null,null,null,null,null,null,null,null,null,null,null,null,""]
[null,null,null,null,null,null,null,null,null,null,null,null,null,null,null,""]
[null,null,null,null,null,null,null,null,null,null,null,null,null,null,null,""]
[null,null,null,null,null,null,null,null,null,null,null,null,null,null,null,""]
[null,null,null,null,null,null,null,null,null,null,null,null,null,null,null,""]
[null,null,null,null,null,null,null,null,null,null,null,null,null,null,null,""]
[null,null,null,null,null,null,null,null,null,null,null,null,null,null,null,""]
[null,null,null,null,null,null,null,null,null,null,null,null,null,null,null,""]
[null,null,null,null,null,null,null,null,null,null,null,null,null,null,null,""]
[null,null,null,null,null,null,null,null,null,null,null,null,null,null,null,""]
[null,null,null,null,null,null,null,null,null,null,null,null,null,null,null,""]
[null,null,null,null,null,null,null,null,null,null,null,null,null,null,null,""]
[null,null,null,null,null,null,null,null,null,null,null,null,null,null,null,""]
[null,null,null,null,null,null,null,null,null,null,null,null,null,null,null,{"$f":"B644&IF(AND(C644=\"\",D644=\"\",E644=\"\"),\"\",\" - \")&C644&IF(OR(D644=\"\",C644=\"\"),\"\",\" - \")&D644","v":""}]
[null,null,null,null,null,null,null,null,null,null,null,null,null,null,null,""]
[null,null,null,null,null,null,null,null,null,null,null,null,null,null,null,""]
[null,null,null,null,null,null,null,null,null,null,null,null,null,null,null,""]
[null,null,null,null,null,null,null,null,null,null,null,null,null,null,null,""]
[null,null,null,null,null,null,null,null,null,null,null,null,null,null,null,""]
[null,null,null,null,null,null,null,null,null,null,null,null,null,null,null,""]
[null,null,null,null,null,null,null,null,null,null,null,null,null,null,null,""]
[null,null,null,null,null,null,null,null,null,null,null,null,null,null,null,""]
[null,null,null,null,null,null,null,null,null,null,null,null,null,null,null,""]
[null,null,null,null,null,null,null,null,null,null,null,null,null,null,null,""]
[null,null,null,null,null,null,null,null,null,null,null,null,null,null,null,""]
[null,null,null,null,null,null,null,null,null,null,null,null,null,null,null,""]
[null,null,null,null,null,null,null,null,null,null,null,null,null,null,null,""]
[null,null,null,null,null,null,null,null,null,null,null,null,null,null,null,""]
[null,null,null,null,null,null,null,null,null,null,null,null,null,null,null,""]
[null,null,null,null,null,null,null,null,null,null,null,null,null,null,null,""]
[null,null,null,null,null,null,null,null,null,null,null,null,null,null,null,""]
[null,null,null,null,null,null,null,null,null,null,null,null,null,null,null,""]
[null,null,null,null,null,null,null,null,null,null,null,null,null,null,null,""]
[null,null,null,null,null,null,null,null,null,null,null,null,null,null,null,""]
[null,null,null,null,null,null,null,null,null,null,null,null,null,null,null,""]
[null,null,null,null,null,null,null,null,null,null,null,null,null,null,null,""]
[null,null,null,null,null,null,null,null,null,null,null,null,null,null,null,""]
[null,null,null,null,null,null,null,null,null,null,null,null,null,null,null,""]
[null,null,null,null,null,null,null,null,null,null,null,null,null,null,null,""]
[null,null,null,null,null,null,null,null,null,null,null,null,null,null,null,""]
[null,null,null,null,null,null,null,null,null,null,null,null,null,null,null,""]
[null,null,null,null,null,null,null,null,null,null,null,null,null,null,null,""]
[null,null,null,null,null,null,null,null,null,null,null,null,null,null,null,""]
[null,null,null,null,null,null,null,null,null,null,null,null,null,null,null,""]
[null,null,null,null,null,null,null,null,null,null,null,null,null,null,null,""]
[null,null,null,null,null,null,null,null,null,null,null,null,null,null,null,""]
[null,null,null,null,null,null,null,null,null,null,null,null,null,null,null,""]
[null,null,null,null,null,null,null,null,null,null,null,null,null,null,null,""]
[null,null,null,null,null,null,null,null,null,null,null,null,null,null,null,""]
[null,null,null,null,null,null,null,null,null,null,null,null,null,null,null,""]
[null,null,null,null,null,null,null,null,null,null,null,null,null,null,null,""]
[null,null,null,null,null,null,null,null,null,null,null,null,null,null,null,""]
[null,null,null,null,null,null,null,null,null,null,null,null,null,null,null,""]
[null,null,null,null,null,null,null,null,null,null,null,null,null,null,null,""]
[null,null,null,null,null,null,null,null,null,null,null,null,null,null,null,""]
[null,null,null,null,null,null,null,null,null,null,null,null,null,null,null,""]
[null,null,null,null,null,null,null,null,null,null,null,null,null,null,null,""]
[null,null,null,null,null,null,null,null,null,null,null,null,null,null,null,""]
[null,null,null,null,null,null,null,null,null,null,null,null,null,null,null,""]
[null,null,null,null,null,null,null,null,null,null,null,null,null,null,null,""]
[null,null,null,null,null,null,null,null,null,null,null,null,null,null,null,""]
[null,null,null,null,null,null,null,null,null,null,null,null,null,null,null,""]
[null,null,null,null,null,null,null,null,null,null,null,null,null,null,null,""]
[null,null,null,null,null,null,null,null,null,null,null,null,null,null,null,""]
[null,null,null,null,null,null,null,null,null,null,null,null,null,null,null,""]
[null,null,null,null,null,null,null,null,null,null,null,null,null,null,null,""]
[null,null,null,null,null,null,null,null,null,null,null,null,null,null,null,""]
[null,null,null,null,null,null,null,null,null,null,null,null,null,null,null,""]
[null,null,null,null,null,null,null,null,null,null,null,null,null,null,null,""]
[null,null,null,null,null,null,null,null,null,null,null,null,null,null,null,""]
[null,null,null,null,null,null,null,null,null,null,null,null,null,null,null,""]
[null,null,null,null,null,null,null,null,null,null,null,null,null,null,null,""]
[null,null,null,null,null,null,null,null,null,null,null,null,null,null,null,""]
[null,null,null,null,null,null,null,null,null,null,null,null,null,null,null,""]
[null,null,null,null,null,null,null,null,null,null,null,null,null,null,null,""]
[null,null,null,null,null,null,null,null,null,null,null,null,null,null,null,""]
[null,null,null,null,null,null,null,null,null,null,null,null,null,null,null,""]
[null,null,null,null,null,null,null,null,null,null,null,null,null,null,null,{"$f":"B708&IF(AND(C708=\"\",D708=\"\",E708=\"\"),\"\",\" - \")&C708&IF(OR(D708=\"\",C708=\"\"),\"\",\" - \")&D708","v":""}]
[null,null,null,null,null,null,null,null,null,null,null,null,null,null,null,""]
[null,null,null,null,null,null,null,null,null,null,null,null,null,null,null,""]
[null,null,null,null,null,null,null,null,null,null,null,null,null,null,null,""]
[null,null,null,null,null,null,null,null,null,null,null,null,null,null,null,""]
[null,null,null,null,null,null,null,null,null,null,null,null,null,null,null,""]
[null,null,null,null,null,null,null,null,null,null,null,null,null,null,null,""]
[null,null,null,null,null,null,null,null,null,null,null,null,null,null,null,""]
[null,null,null,null,null,null,null,null,null,null,null,null,null,null,null,""]
[null,null,null,null,null,null,null,null,null,null,null,null,null,null,null,""]
[null,null,null,null,null,null,null,null,null,null,null,null,null,null,null,""]
[null,null,null,null,null,null,null,null,null,null,null,null,null,null,null,""]
[null,null,null,null,null,null,null,null,null,null,null,null,null,null,null,""]
[null,null,null,null,null,null,null,null,null,null,null,null,null,null,null,""]
[null,null,null,null,null,null,null,null,null,null,null,null,null,null,null,""]
[null,null,null,null,null,null,null,null,null,null,null,null,null,null,null,""]
[null,null,null,null,null,null,null,null,null,null,null,null,null,null,null,""]
[null,null,null,null,null,null,null,null,null,null,null,null,null,null,null,""]
[null,null,null,null,null,null,null,null,null,null,null,null,null,null,null,""]
[null,null,null,null,null,null,null,null,null,null,null,null,null,null,null,""]
[null,null,null,null,null,null,null,null,null,null,null,null,null,null,null,""]
[null,null,null,null,null,null,null,null,null,null,null,null,null,null,null,""]
[null,null,null,null,null,null,null,null,null,null,null,null,null,null,null,""]
[null,null,null,null,null,null,null,null,null,null,null,null,null,null,null,""]
[null,null,null,null,null,null,null,null,null,null,null,null,null,null,null,""]
[null,null,null,null,null,null,null,null,null,null,null,null,null,null,null,""]
[null,null,null,null,null,null,null,null,null,null,null,null,null,null,null,""]
[null,null,null,null,null,null,null,null,null,null,null,null,null,null,null,""]
[null,null,null,null,null,null,null,null,null,null,null,null,null,null,null,""]
[null,null,null,null,null,null,null,null,null,null,null,null,null,null,null,""]
[null,null,null,null,null,null,null,null,null,null,null,null,null,null,null,""]
[null,null,null,null,null,null,null,null,null,null,null,null,null,null,null,""]
[null,null,null,null,null,null,null,null,null,null,null,null,null,null,null,""]
[null,null,null,null,null,null,null,null,null,null,null,null,null,null,null,""]
[null,null,null,null,null,null,null,null,null,null,null,null,null,null,null,""]
[null,null,null,null,null,null,null,null,null,null,null,null,null,null,null,""]
[null,null,null,null,null,null,null,null,null,null,null,null,null,null,null,""]
[null,null,null,null,null,null,null,null,null,null,null,null,null,null,null,""]
[null,null,null,null,null,null,null,null,null,null,null,null,null,null,null,""]
[null,null,null,null,null,null,null,null,null,null,null,null,null,null,null,""]
[null,null,null,null,null,null,null,null,null,null,null,null,null,null,null,""]
[null,null,null,null,null,null,null,null,null,null,null,null,null,null,null,""]
[null,null,null,null,null,null,null,null,null,null,null,null,null,null,null,""]
[null,null,null,null,null,null,null,null,null,null,null,null,null,null,null,""]
[null,null,null,null,null,null,null,null,null,null,null,null,null,null,null,""]
[null,null,null,null,null,null,null,null,null,null,null,null,null,null,null,""]
[null,null,null,null,null,null,null,null,null,null,null,null,null,null,null,""]
[null,null,null,null,null,null,null,null,null,null,null,null,null,null,null,""]
[null,null,null,null,null,null,null,null,null,null,null,null,null,null,null,""]
[null,null,null,null,null,null,null,null,null,null,null,null,null,null,null,""]
[null,null,null,null,null,null,null,null,null,null,null,null,null,null,null,""]
[null,null,null,null,null,null,null,null,null,null,null,null,null,null,null,""]
[null,null,null,null,null,null,null,null,null,null,null,null,null,null,null,""]
[null,null,null,null,null,null,null,null,null,null,null,null,null,null,null,""]
[null,null,null,null,null,null,null,null,null,null,null,null,null,null,null,""]
[null,null,null,null,null,null,null,null,null,null,null,null,null,null,null,""]
[null,null,null,null,null,null,null,null,null,null,null,null,null,null,null,""]
[null,null,null,null,null,null,null,null,null,null,null,null,null,null,null,""]
[null,null,null,null,null,null,null,null,null,null,null,null,null,null,null,""]
[null,null,null,null,null,null,null,null,null,null,null,null,null,null,null,""]
[null,null,null,null,null,null,null,null,null,null,null,null,null,null,null,""]
[null,null,null,null,null,null,null,null,null,null,null,null,null,null,null,""]
[null,null,null,null,null,null,null,null,null,null,null,null,null,null,null,""]
[null,null,null,null,null,null,null,null,null,null,null,null,null,null,null,""]
[null,null,null,null,null,null,null,null,null,null,null,null,null,null,null,{"$f":"B772&IF(AND(C772=\"\",D772=\"\",E772=\"\"),\"\",\" - \")&C772&IF(OR(D772=\"\",C772=\"\"),\"\",\" - \")&D772","v":""}]
[null,null,null,null,null,null,null,null,null,null,null,null,null,null,null,""]
[null,null,null,null,null,null,null,null,null,null,null,null,null,null,null,""]
[null,null,null,null,null,null,null,null,null,null,null,null,null,null,null,""]
[null,null,null,null,null,null,null,null,null,null,null,null,null,null,null,""]
[null,null,null,null,null,null,null,null,null,null,null,null,null,null,null,""]
[null,null,null,null,null,null,null,null,null,null,null,null,null,null,null,""]
[null,null,null,null,null,null,null,null,null,null,null,null,null,null,null,""]
[null,null,null,null,null,null,null,null,null,null,null,null,null,null,null,""]
[null,null,null,null,null,null,null,null,null,null,null,null,null,null,null,""]
[null,null,null,null,null,null,null,null,null,null,null,null,null,null,null,""]
[null,null,null,null,null,null,null,null,null,null,null,null,null,null,null,""]
[null,null,null,null,null,null,null,null,null,null,null,null,null,null,null,""]
[null,null,null,null,null,null,null,null,null,null,null,null,null,null,null,""]
[null,null,null,null,null,null,null,null,null,null,null,null,null,null,null,""]
[null,null,null,null,null,null,null,null,null,null,null,null,null,null,null,""]
[null,null,null,null,null,null,null,null,null,null,null,null,null,null,null,""]
[null,null,null,null,null,null,null,null,null,null,null,null,null,null,null,""]
[null,null,null,null,null,null,null,null,null,null,null,null,null,null,null,""]
[null,null,null,null,null,null,null,null,null,null,null,null,null,null,null,""]
[null,null,null,null,null,null,null,null,null,null,null,null,null,null,null,""]
[null,null,null,null,null,null,null,null,null,null,null,null,null,null,null,""]
[null,null,null,null,null,null,null,null,null,null,null,null,null,null,null,""]
[null,null,null,null,null,null,null,null,null,null,null,null,null,null,null,""]
[null,null,null,null,null,null,null,null,null,null,null,null,null,null,null,""]
[null,null,null,null,null,null,null,null,null,null,null,null,null,null,null,""]
[null,null,null,null,null,null,null,null,null,null,null,null,null,null,null,""]
[null,null,null,null,null,null,null,null,null,null,null,null,null,null,null,""]
[null,null,null,null,null,null,null,null,null,null,null,null,null,null,null,""]
[null,null,null,null,null,null,null,null,null,null,null,null,null,null,null,""]
[null,null,null,null,null,null,null,null,null,null,null,null,null,null,null,""]
[null,null,null,null,null,null,null,null,null,null,null,null,null,null,null,""]
[null,null,null,null,null,null,null,null,null,null,null,null,null,null,null,""]
[null,null,null,null,null,null,null,null,null,null,null,null,null,null,null,""]
[null,null,null,null,null,null,null,null,null,null,null,null,null,null,null,""]
[null,null,null,null,null,null,null,null,null,null,null,null,null,null,null,""]
[null,null,null,null,null,null,null,null,null,null,null,null,null,null,null,""]
[null,null,null,null,null,null,null,null,null,null,null,null,null,null,null,""]
[null,null,null,null,null,null,null,null,null,null,null,null,null,null,null,""]
[null,null,null,null,null,null,null,null,null,null,null,null,null,null,null,""]
[null,null,null,null,null,null,null,null,null,null,null,null,null,null,null,""]
[null,null,null,null,null,null,null,null,null,null,null,null,null,null,null,""]
[null,null,null,null,null,null,null,null,null,null,null,null,null,null,null,""]
[null,null,null,null,null,null,null,null,null,null,null,null,null,null,null,""]
[null,null,null,null,null,null,null,null,null,null,null,null,null,null,null,""]
[null,null,null,null,null,null,null,null,null,null,null,null,null,null,null,""]
[null,null,null,null,null,null,null,null,null,null,null,null,null,null,null,""]
[null,null,null,null,null,null,null,null,null,null,null,null,null,null,null,""]
[null,null,null,null,null,null,null,null,null,null,null,null,null,null,null,""]
[null,null,null,null,null,null,null,null,null,null,null,null,null,null,null,""]
[null,null,null,null,null,null,null,null,null,null,null,null,null,null,null,""]
[null,null,null,null,null,null,null,null,null,null,null,null,null,null,null,""]
[null,null,null,null,null,null,null,null,null,null,null,null,null,null,null,""]
[null,null,null,null,null,null,null,null,null,null,null,null,null,null,null,""]
[null,null,null,null,null,null,null,null,null,null,null,null,null,null,null,""]
[null,null,null,null,null,null,null,null,null,null,null,null,null,null,null,""]
[null,null,null,null,null,null,null,null,null,null,null,null,null,null,null,""]
[null,null,null,null,null,null,null,null,null,null,null,null,null,null,null,""]
[null,null,null,null,null,null,null,null,null,null,null,null,null,null,null,""]
[null,null,null,null,null,null,null,null,null,null,null,null,null,null,null,""]
[null,null,null,null,null,null,null,null,null,null,null,null,null,null,null,""]
[null,null,null,null,null,null,null,null,null,null,null,null,null,null,null,""]
[null,null,null,null,null,null,null,null,null,null,null,null,null,null,null,""]
[null,null,null,null,null,null,null,null,null,null,null,null,null,null,null,""]
[null,null,null,null,null,null,null,null,null,null,null,null,null,null,null,{"$f":"B836&IF(AND(C836=\"\",D836=\"\",E836=\"\"),\"\",\" - \")&C836&IF(OR(D836=\"\",C836=\"\"),\"\",\" - \")&D836","v":""}]
[null,null,null,null,null,null,null,null,null,null,null,null,null,null,null,""]
[null,null,null,null,null,null,null,null,null,null,null,null,null,null,null,""]
[null,null,null,null,null,null,null,null,null,null,null,null,null,null,null,""]
[null,null,null,null,null,null,null,null,null,null,null,null,null,null,null,""]
[null,null,null,null,null,null,null,null,null,null,null,null,null,null,null,""]
[null,null,null,null,null,null,null,null,null,null,null,null,null,null,null,""]
[null,null,null,null,null,null,null,null,null,null,null,null,null,null,null,""]
[null,null,null,null,null,null,null,null,null,null,null,null,null,null,null,""]
[null,null,null,null,null,null,null,null,null,null,null,null,null,null,null,""]
[null,null,null,null,null,null,null,null,null,null,null,null,null,null,null,""]
[null,null,null,null,null,null,null,null,null,null,null,null,null,null,null,""]
[null,null,null,null,null,null,null,null,null,null,null,null,null,null,null,""]
[null,null,null,null,null,null,null,null,null,null,null,null,null,null,null,""]
[null,null,null,null,null,null,null,null,null,null,null,null,null,null,null,""]
[null,null,null,null,null,null,null,null,null,null,null,null,null,null,null,""]
[null,null,null,null,null,null,null,null,null,null,null,null,null,null,null,""]
[null,null,null,null,null,null,null,null,null,null,null,null,null,null,null,""]
[null,null,null,null,null,null,null,null,null,null,null,null,null,null,null,""]
[null,null,null,null,null,null,null,null,null,null,null,null,null,null,null,""]
[null,null,null,null,null,null,null,null,null,null,null,null,null,null,null,""]
[null,null,null,null,null,null,null,null,null,null,null,null,null,null,null,""]
[null,null,null,null,null,null,null,null,null,null,null,null,null,null,null,""]
[null,null,null,null,null,null,null,null,null,null,null,null,null,null,null,""]
[null,null,null,null,null,null,null,null,null,null,null,null,null,null,null,""]
[null,null,null,null,null,null,null,null,null,null,null,null,null,null,null,""]
[null,null,null,null,null,null,null,null,null,null,null,null,null,null,null,""]
[null,null,null,null,null,null,null,null,null,null,null,null,null,null,null,""]
[null,null,null,null,null,null,null,null,null,null,null,null,null,null,null,""]
[null,null,null,null,null,null,null,null,null,null,null,null,null,null,null,""]
[null,null,null,null,null,null,null,null,null,null,null,null,null,null,null,""]
[null,null,null,null,null,null,null,null,null,null,null,null,null,null,null,""]
[null,null,null,null,null,null,null,null,null,null,null,null,null,null,null,""]
[null,null,null,null,null,null,null,null,null,null,null,null,null,null,null,""]
[null,null,null,null,null,null,null,null,null,null,null,null,null,null,null,""]
[null,null,null,null,null,null,null,null,null,null,null,null,null,null,null,""]
[null,null,null,null,null,null,null,null,null,null,null,null,null,null,null,""]
[null,null,null,null,null,null,null,null,null,null,null,null,null,null,null,""]
[null,null,null,null,null,null,null,null,null,null,null,null,null,null,null,""]
[null,null,null,null,null,null,null,null,null,null,null,null,null,null,null,""]
[null,null,null,null,null,null,null,null,null,null,null,null,null,null,null,""]
[null,null,null,null,null,null,null,null,null,null,null,null,null,null,null,""]
[null,null,null,null,null,null,null,null,null,null,null,null,null,null,null,""]
[null,null,null,null,null,null,null,null,null,null,null,null,null,null,null,""]
[null,null,null,null,null,null,null,null,null,null,null,null,null,null,null,""]
[null,null,null,null,null,null,null,null,null,null,null,null,null,null,null,""]
[null,null,null,null,null,null,null,null,null,null,null,null,null,null,null,""]
[null,null,null,null,null,null,null,null,null,null,null,null,null,null,null,""]
[null,null,null,null,null,null,null,null,null,null,null,null,null,null,null,""]
[null,null,null,null,null,null,null,null,null,null,null,null,null,null,null,""]
[null,null,null,null,null,null,null,null,null,null,null,null,null,null,null,""]
[null,null,null,null,null,null,null,null,null,null,null,null,null,null,null,""]
[null,null,null,null,null,null,null,null,null,null,null,null,null,null,null,""]
[null,null,null,null,null,null,null,null,null,null,null,null,null,null,null,""]
[null,null,null,null,null,null,null,null,null,null,null,null,null,null,null,""]
[null,null,null,null,null,null,null,null,null,null,null,null,null,null,null,""]
[null,null,null,null,null,null,null,null,null,null,null,null,null,null,null,""]
[null,null,null,null,null,null,null,null,null,null,null,null,null,null,null,""]
[null,null,null,null,null,null,null,null,null,null,null,null,null,null,null,""]
[null,null,null,null,null,null,null,null,null,null,null,null,null,null,null,""]
[null,null,null,null,null,null,null,null,null,null,null,null,null,null,null,""]
[null,null,null,null,null,null,null,null,null,null,null,null,null,null,null,""]
[null,null,null,null,null,null,null,null,null,null,null,null,null,null,null,""]
[null,null,null,null,null,null,null,null,null,null,null,null,null,null,null,""]
[null,null,null,null,null,null,null,null,null,null,null,null,null,null,null,{"$f":"B900&IF(AND(C900=\"\",D900=\"\",E900=\"\"),\"\",\" - \")&C900&IF(OR(D900=\"\",C900=\"\"),\"\",\" - \")&D900","v":""}]
[null,null,null,null,null,null,null,null,null,null,null,null,null,null,null,""]
[null,null,null,null,null,null,null,null,null,null,null,null,null,null,null,""]
[null,null,null,null,null,null,null,null,null,null,null,null,null,null,null,""]
[null,null,null,null,null,null,null,null,null,null,null,null,null,null,null,""]
[null,null,null,null,null,null,null,null,null,null,null,null,null,null,null,""]
[null,null,null,null,null,null,null,null,null,null,null,null,null,null,null,""]
[null,null,null,null,null,null,null,null,null,null,null,null,null,null,null,""]
[null,null,null,null,null,null,null,null,null,null,null,null,null,null,null,""]
[null,null,null,null,null,null,null,null,null,null,null,null,null,null,null,""]
[null,null,null,null,null,null,null,null,null,null,null,null,null,null,null,""]
[null,null,null,null,null,null,null,null,null,null,null,null,null,null,null,""]
[null,null,null,null,null,null,null,null,null,null,null,null,null,null,null,""]
[null,null,null,null,null,null,null,null,null,null,null,null,null,null,null,""]
[null,null,null,null,null,null,null,null,null,null,null,null,null,null,null,""]
[null,null,null,null,null,null,null,null,null,null,null,null,null,null,null,""]
[null,null,null,null,null,null,null,null,null,null,null,null,null,null,null,""]
[null,null,null,null,null,null,null,null,null,null,null,null,null,null,null,""]
[null,null,null,null,null,null,null,null,null,null,null,null,null,null,null,""]
[null,null,null,null,null,null,null,null,null,null,null,null,null,null,null,""]
[null,null,null,null,null,null,null,null,null,null,null,null,null,null,null,""]
[null,null,null,null,null,null,null,null,null,null,null,null,null,null,null,""]
[null,null,null,null,null,null,null,null,null,null,null,null,null,null,null,""]
[null,null,null,null,null,null,null,null,null,null,null,null,null,null,null,""]
[null,null,null,null,null,null,null,null,null,null,null,null,null,null,null,""]
[null,null,null,null,null,null,null,null,null,null,null,null,null,null,null,""]
[null,null,null,null,null,null,null,null,null,null,null,null,null,null,null,""]
[null,null,null,null,null,null,null,null,null,null,null,null,null,null,null,""]
[null,null,null,null,null,null,null,null,null,null,null,null,null,null,null,""]
[null,null,null,null,null,null,null,null,null,null,null,null,null,null,null,""]
[null,null,null,null,null,null,null,null,null,null,null,null,null,null,null,""]
[null,null,null,null,null,null,null,null,null,null,null,null,null,null,null,""]
[null,null,null,null,null,null,null,null,null,null,null,null,null,null,null,""]
[null,null,null,null,null,null,null,null,null,null,null,null,null,null,null,""]
[null,null,null,null,null,null,null,null,null,null,null,null,null,null,null,""]
[null,null,null,null,null,null,null,null,null,null,null,null,null,null,null,""]
[null,null,null,null,null,null,null,null,null,null,null,null,null,null,null,""]
[null,null,null,null,null,null,null,null,null,null,null,null,null,null,null,""]
[null,null,null,null,null,null,null,null,null,null,null,null,null,null,null,""]
[null,null,null,null,null,null,null,null,null,null,null,null,null,null,null,""]
[null,null,null,null,null,null,null,null,null,null,null,null,null,null,null,""]
[null,null,null,null,null,null,null,null,null,null,null,null,null,null,null,""]
[null,null,null,null,null,null,null,null,null,null,null,null,null,null,null,""]
[null,null,null,null,null,null,null,null,null,null,null,null,null,null,null,""]
[null,null,null,null,null,null,null,null,null,null,null,null,null,null,null,""]
[null,null,null,null,null,null,null,null,null,null,null,null,null,null,null,""]
[null,null,null,null,null,null,null,null,null,null,null,null,null,null,null,""]
[null,null,null,null,null,null,null,null,null,null,null,null,null,null,null,""]
[null,null,null,null,null,null,null,null,null,null,null,null,null,null,null,""]
[null,null,null,null,null,null,null,null,null,null,null,null,null,null,null,""]
[null,null,null,null,null,null,null,null,null,null,null,null,null,null,null,""]
[null,null,null,null,null,null,null,null,null,null,null,null,null,null,null,""]
[null,null,null,null,null,null,null,null,null,null,null,null,null,null,null,""]
[null,null,null,null,null,null,null,null,null,null,null,null,null,null,null,""]
[null,null,null,null,null,null,null,null,null,null,null,null,null,null,null,""]
[null,null,null,null,null,null,null,null,null,null,null,null,null,null,null,""]
[null,null,null,null,null,null,null,null,null,null,null,null,null,null,null,""]
[null,null,null,null,null,null,null,null,null,null,null,null,null,null,null,""]
[null,null,null,null,null,null,null,null,null,null,null,null,null,null,null,""]
[null,null,null,null,null,null,null,null,null,null,null,null,null,null,null,""]
[null,null,null,null,null,null,null,null,null,null,null,null,null,null,null,""]
[null,null,null,null,null,null,null,null,null,null,null,null,null,null,null,""]
[null,null,null,null,null,null,null,null,null,null,null,null,null,null,null,""]
[null,null,null,null,null,null,null,null,null,null,null,null,null,null,null,""]
[null,null,null,null,null,null,null,null,null,null,null,null,null,null,null,{"$f":"B964&IF(AND(C964=\"\",D964=\"\",E964=\"\"),\"\",\" - \")&C964&IF(OR(D964=\"\",C964=\"\"),\"\",\" - \")&D964","v":""}]
[null,null,null,null,null,null,null,null,null,null,null,null,null,null,null,""]
[null,null,null,null,null,null,null,null,null,null,null,null,null,null,null,""]
[null,null,null,null,null,null,null,null,null,null,null,null,null,null,null,""]
[null,null,null,null,null,null,null,null,null,null,null,null,null,null,null,""]
[null,null,null,null,null,null,null,null,null,null,null,null,null,null,null,""]
[null,null,null,null,null,null,null,null,null,null,null,null,null,null,null,""]
[null,null,null,null,null,null,null,null,null,null,null,null,null,null,null,""]
[null,null,null,null,null,null,null,null,null,null,null,null,null,null,null,""]
[null,null,null,null,null,null,null,null,null,null,null,null,null,null,null,""]
[null,null,null,null,null,null,null,null,null,null,null,null,null,null,null,""]
[null,null,null,null,null,null,null,null,null,null,null,null,null,null,null,""]
[null,null,null,null,null,null,null,null,null,null,null,null,null,null,null,""]
[null,null,null,null,null,null,null,null,null,null,null,null,null,null,null,""]
[null,null,null,null,null,null,null,null,null,null,null,null,null,null,null,""]
[null,null,null,null,null,null,null,null,null,null,null,null,null,null,null,""]
[null,null,null,null,null,null,null,null,null,null,null,null,null,null,null,""]
[null,null,null,null,null,null,null,null,null,null,null,null,null,null,null,""]
[null,null,null,null,null,null,null,null,null,null,null,null,null,null,null,""]
[null,null,null,null,null,null,null,null,null,null,null,null,null,null,null,""]
[null,null,null,null,null,null,null,null,null,null,null,null,null,null,null,""]
[null,null,null,null,null,null,null,null,null,null,null,null,null,null,null,""]
[null,null,null,null,null,null,null,null,null,null,null,null,null,null,null,""]
[null,null,null,null,null,null,null,null,null,null,null,null,null,null,null,""]
[null,null,null,null,null,null,null,null,null,null,null,null,null,null,null,""]
[null,null,null,null,null,null,null,null,null,null,null,null,null,null,null,""]
[null,null,null,null,null,null,null,null,null,null,null,null,null,null,null,""]
[null,null,null,null,null,null,null,null,null,null,null,null,null,null,null,""]
[null,null,null,null,null,null,null,null,null,null,null,null,null,null,null,""]
[null,null,null,null,null,null,null,null,null,null,null,null,null,null,null,""]
[null,null,null,null,null,null,null,null,null,null,null,null,null,null,null,""]
[null,null,null,null,null,null,null,null,null,null,null,null,null,null,null,""]
[null,null,null,null,null,null,null,null,null,null,null,null,null,null,null,""]
[null,null,null,null,null,null,null,null,null,null,null,null,null,null,null,""]
[null,null,null,null,null,null,null,null,null,null,null,null,null,null,null,""]
[null,null,null,null,null,null,null,null,null,null,null,null,null,null,null,""]
[null,null,null,null,null,null,null,null,null,null,null,null,null,null,null,""]
[null,null,null,null,null,null,null,null,null,null,null,null,null,null,null,""]
[null,null,null,null,null,null,null,null,null,null,null,null,null,null,null,""]
[null,null,null,null,null,null,null,null,null,null,null,null,null,null,null,""]

{"sheet":"Izdajatelji","index":5,"n_rows":17,"n_cols":5,"rows_kept":17,"cut":false,"hidden":false,"merged":[]}
[]
[null,"IZDAJATELJI RAČUNA",null,null,"bizBox Excel eRačun"]
[null,"Podatek","Podjetje 1","Podjetje 2","Podjetje 3"]
[null,"Naziv","BIROKRAT d.o.o."]
[null,"Naslov","Dunajska 191"]
[null,"Poštna številka",1000]
[null,"Mesto","Ljubljana"]
[null,"Država","SI"]
[null,"Kontaktna oseba","Bojan Mirčeta"]
[null,"E-pošta","bojanm@andersen.si"]
[null,"Telefon","030 611 000"]
[null,"Matična številka","3539482000"]
[null,"Davčna številka","24893099"]
[null,"Zavezanec za DDV","DA"]
[null,"IBAN","SI56 1010 0005 7117 281"]
[null,"BIC","LJBASI2X"]
[null,"Besedilo v nogi računa vezano na ZGD","Reg. pri Okr. sod. v LJ, Srg 2009/11849, os. kap. 7.500 EUR, z dne 7.5.2009"]

{"sheet":"Artikli","index":6,"n_rows":1005,"n_cols":8,"rows_kept":1005,"cut":false,"hidden":false,"merged":[]}
[]
[null,"ARTIKLI",null,null,null,"bizBox Excel eRačun"]
[null,"ID","Naziv","Šifra","Enota","Cena",null,"temp"]
[null,1,"Predplačana podpora tehnika/svetovalca preko navadne telefonske linije oz. Povezave",112901811265,"ura",58,null,{"$f":"B4","v":1}]
[null,2,"Posodobitve in vzdrževanje programa Birokrat","IB1N","mesec",69,null,{"$f":"B5","v":2}]
[null,3,"Birokrat SINHRO","SINHRO100000","mesec",5,null,3]
[null,4,"Četrti izdelek","abc-0004","m3",15000,null,4]
[null,5,"Peti izdelek",null,"KW/h",5.0000000000000001E-3,null,5]
[null,6,"Šesti izdelek","abc-0006","Kg",12.811999999999999,null,6]
[null,null,null,null,null,null,null,0]
[null,null,null,null,null,null,null,0]
[null,null,null,null,null,null,null,0]
[null,null,null,null,null,null,null,0]
[null,null,null,null,null,null,null,0]
[null,null,null,null,null,null,null,0]
[null,null,null,null,null,null,null,0]
[null,null,null,null,null,null,null,0]
[null,null,null,null,null,null,null,0]
[null,null,null,null,null,null,null,0]
[null,null,null,null,null,null,null,0]
[null,null,null,null,null,null,null,0]
[null,null,null,null,null,null,null,0]
[null,null,null,null,null,null,null,0]
[null,null,null,null,null,null,null,0]
[null,null,null,null,null,null,null,0]
[null,null,null,null,null,null,null,0]
[null,null,null,null,null,null,null,0]
[null,null,null,null,null,null,null,0]
[null,null,null,null,null,null,null,0]
[null,null,null,null,null,null,null,0]
[null,null,null,null,null,null,null,0]
[null,null,null,null,null,null,null,0]
[null,null,null,null,null,null,null,0]
[null,null,null,null,null,null,null,0]
[null,null,null,null,null,null,null,0]
[null,null,null,null,null,null,null,0]
[null,null,null,null,null,null,null,0]
[null,null,null,null,null,null,null,0]
[null,null,null,null,null,null,null,0]
[null,null,null,null,null,null,null,0]
[null,null,null,null,null,null,null,0]
[null,null,null,null,null,null,null,0]
[null,null,null,null,null,null,null,0]
[null,null,null,null,null,null,null,0]
[null,null,null,null,null,null,null,0]
[null,null,null,null,null,null,null,0]
[null,null,null,null,null,null,null,0]
[null,null,null,null,null,null,null,0]
[null,null,null,null,null,null,null,0]
[null,null,null,null,null,null,null,0]
[null,null,null,null,null,null,null,0]
[null,null,null,null,null,null,null,0]
[null,null,null,null,null,null,null,0]
[null,null,null,null,null,null,null,0]
[null,null,null,null,null,null,null,0]
[null,null,null,null,null,null,null,0]
[null,null,null,null,null,null,null,0]
[null,null,null,null,null,null,null,0]
[null,null,null,null,null,null,null,0]
[null,null,null,null,null,null,null,0]
[null,null,null,null,null,null,null,0]
[null,null,null,null,null,null,null,0]
[null,null,null,null,null,null,null,0]
[null,null,null,null,null,null,null,0]
[null,null,null,null,null,null,null,0]
[null,null,null,null,null,null,null,0]
[null,null,null,null,null,null,null,0]
[null,null,null,null,null,null,null,0]
[null,null,null,null,null,null,null,{"$f":"B69","v":0}]
[null,null,null,null,null,null,null,0]
[null,null,null,null,null,null,null,0]
[null,null,null,null,null,null,null,0]
[null,null,null,null,null,null,null,0]
[null,null,null,null,null,null,null,0]
[null,null,null,null,null,null,null,0]
[null,null,null,null,null,null,null,0]
[null,null,null,null,null,null,null,0]
[null,null,null,null,null,null,null,0]
[null,null,null,null,null,null,null,0]
[null,null,null,null,null,null,null,0]
[null,null,null,null,null,null,null,0]
[null,null,null,null,null,null,null,0]
[null,null,null,null,null,null,null,0]
[null,null,null,null,null,null,null,0]
[null,null,null,null,null,null,null,0]
[null,null,null,null,null,null,null,0]
[null,null,null,null,null,null,null,0]
[null,null,null,null,null,null,null,0]
[null,null,null,null,null,null,null,0]
[null,null,null,null,null,null,null,0]
[null,null,null,null,null,null,null,0]
[null,null,null,null,null,null,null,0]
[null,null,null,null,null,null,null,0]
[null,null,null,null,null,null,null,0]
[null,null,null,null,null,null,null,0]
[null,null,null,null,null,null,null,0]
[null,null,null,null,null,null,null,0]
[null,null,null,null,null,null,null,0]
[null,null,null,null,null,null,null,0]
[null,null,null,null,null,null,null,0]
[null,null,null,null,null,null,null,0]
[null,null,null,null,null,null,null,0]
[null,null,null,null,null,null,null,0]
[null,null,null,null,null,null,null,0]
[null,null,null,null,null,null,null,0]
[null,null,null,null,null,null,null,0]
[null,null,null,null,null,null,null,0]
[null,null,null,null,null,null,null,0]
[null,null,null,null,null,null,null,0]
[null,null,null,null,null,null,null,0]
[null,null,null,null,null,null,null,0]
[null,null,null,null,null,null,null,0]
[null,null,null,null,null,null,null,0]
[null,null,null,null,null,null,null,0]
[null,null,null,null,null,null,null,0]
[null,null,null,null,null,null,null,0]
[null,null,null,null,null,null,null,0]
[null,null,null,null,null,null,null,0]
[null,null,null,null,null,null,null,0]
[null,null,null,null,null,null,null,0]
[null,null,null,null,null,null,null,0]
[null,null,null,null,null,null,null,0]
[null,null,null,null,null,null,null,0]
[null,null,null,null,null,null,null,0]
[null,null,null,null,null,null,null,0]
[null,null,null,null,null,null,null,0]
[null,null,null,null,null,null,null,0]
[null,null,null,null,null,null,null,0]
[null,null,null,null,null,null,null,0]
[null,null,null,null,null,null,null,0]
[null,null,null,null,null,null,null,0]
[null,null,null,null,null,null,null,0]
[null,null,null,null,null,null,null,{"$f":"B133","v":0}]
[null,null,null,null,null,null,null,0]
[null,null,null,null,null,null,null,0]
[null,null,null,null,null,null,null,0]
[null,null,null,null,null,null,null,0]
[null,null,null,null,null,null,null,0]
[null,null,null,null,null,null,null,0]
[null,null,null,null,null,null,null,0]
[null,null,null,null,null,null,null,0]
[null,null,null,null,null,null,null,0]
[null,null,null,null,null,null,null,0]
[null,null,null,null,null,null,null,0]
[null,null,null,null,null,null,null,0]
[null,null,null,null,null,null,null,0]
[null,null,null,null,null,null,null,0]
[null,null,null,null,null,null,null,0]
[null,null,null,null,null,null,null,0]
[null,null,null,null,null,null,null,0]
[null,null,null,null,null,null,null,0]
[null,null,null,null,null,null,null,0]
[null,null,null,null,null,null,null,0]
[null,null,null,null,null,null,null,0]
[null,null,null,null,null,null,null,0]
[null,null,null,null,null,null,null,0]
[null,null,null,null,null,null,null,0]
[null,null,null,null,null,null,null,0]
[null,null,null,null,null,null,null,0]
[null,null,null,null,null,null,null,0]
[null,null,null,null,null,null,null,0]
[null,null,null,null,null,null,null,0]
[null,null,null,null,null,null,null,0]
[null,null,null,null,null,null,null,0]
[null,null,null,null,null,null,null,0]
[null,null,null,null,null,null,null,0]
[null,null,null,null,null,null,null,0]
[null,null,null,null,null,null,null,0]
[null,null,null,null,null,null,null,0]
[null,null,null,null,null,null,null,0]
[null,null,null,null,null,null,null,0]
[null,null,null,null,null,null,null,0]
[null,null,null,null,null,null,null,0]
[null,null,null,null,null,null,null,0]
[null,null,null,null,null,null,null,0]
[null,null,null,null,null,null,null,0]
[null,null,null,null,null,null,null,0]
[null,null,null,null,null,null,null,0]
[null,null,null,null,null,null,null,0]
[null,null,null,null,null,null,null,0]
[null,null,null,null,null,null,null,0]
[null,null,null,null,null,null,null,0]
[null,null,null,null,null,null,null,0]
[null,null,null,null,null,null,null,0]
[null,null,null,null,null,null,null,0]
[null,null,null,null,null,null,null,0]
[null,null,null,null,null,null,null,0]
[null,null,null,null,null,null,null,0]
[null,null,null,null,null,null,null,0]
[null,null,null,null,null,null,null,0]
[null,null,null,null,null,null,null,0]
[null,null,null,null,null,null,null,0]
[null,null,null,null,null,null,null,0]
[null,null,null,null,null,null,null,0]
[null,null,null,null,null,null,null,0]
[null,null,null,null,null,null,null,0]
[null,null,null,null,null,null,null,{"$f":"B197","v":0}]
[null,null,null,null,null,null,null,0]
[null,null,null,null,null,null,null,0]
[null,null,null,null,null,null,null,0]
[null,null,null,null,null,null,null,0]
[null,null,null,null,null,null,null,0]
[null,null,null,null,null,null,null,0]
[null,null,null,null,null,null,null,0]
[null,null,null,null,null,null,null,0]
[null,null,null,null,null,null,null,0]
[null,null,null,null,null,null,null,0]
[null,null,null,null,null,null,null,0]
[null,null,null,null,null,null,null,0]
[null,null,null,null,null,null,null,0]
[null,null,null,null,null,null,null,0]
[null,null,null,null,null,null,null,0]
[null,null,null,null,null,null,null,0]
[null,null,null,null,null,null,null,0]
[null,null,null,null,null,null,null,0]
[null,null,null,null,null,null,null,0]
[null,null,null,null,null,null,null,0]
[null,null,null,null,null,null,null,0]
[null,null,null,null,null,null,null,0]
[null,null,null,null,null,null,null,0]
[null,null,null,null,null,null,null,0]
[null,null,null,null,null,null,null,0]
[null,null,null,null,null,null,null,0]
[null,null,null,null,null,null,null,0]
[null,null,null,null,null,null,null,0]
[null,null,null,null,null,null,null,0]
[null,null,null,null,null,null,null,0]
[null,null,null,null,null,null,null,0]
[null,null,null,null,null,null,null,0]
[null,null,null,null,null,null,null,0]
[null,null,null,null,null,null,null,0]
[null,null,null,null,null,null,null,0]
[null,null,null,null,null,null,null,0]
[null,null,null,null,null,null,null,0]
[null,null,null,null,null,null,null,0]
[null,null,null,null,null,null,null,0]
[null,null,null,null,null,null,null,0]
[null,null,null,null,null,null,null,0]
[null,null,null,null,null,null,null,0]
[null,null,null,null,null,null,null,0]
[null,null,null,null,null,null,null,0]
[null,null,null,null,null,null,null,0]
[null,null,null,null,null,null,null,0]
[null,null,null,null,null,null,null,0]
[null,null,null,null,null,null,null,0]
[null,null,null,null,null,null,null,0]
[null,null,null,null,null,null,null,0]
[null,null,null,null,null,null,null,0]
[null,null,null,null,null,null,null,0]
[null,null,null,null,null,null,null,0]
[null,null,null,null,null,null,null,0]
[null,null,null,null,null,null,null,0]
[null,null,null,null,null,null,null,0]
[null,null,null,null,null,null,null,0]
[null,null,null,null,null,null,null,0]
[null,null,null,null,null,null,null,0]
[null,null,null,null,null,null,null,0]
[null,null,null,null,null,null,null,0]
[null,null,null,null,null,null,null,0]
[null,null,null,null,null,null,null,0]
[null,null,null,null,null,null,null,{"$f":"B261","v":0}]
[null,null,null,null,null,null,null,0]
[null,null,null,null,null,null,null,0]
[null,null,null,null,null,null,null,0]
[null,null,null,null,null,null,null,0]
[null,null,null,null,null,null,null,0]
[null,null,null,null,null,null,null,0]
[null,null,null,null,null,null,null,0]
[null,null,null,null,null,null,null,0]
[null,null,null,null,null,null,null,0]
[null,null,null,null,null,null,null,0]
[null,null,null,null,null,null,null,0]
[null,null,null,null,null,null,null,0]
[null,null,null,null,null,null,null,0]
[null,null,null,null,null,null,null,0]
[null,null,null,null,null,null,null,0]
[null,null,null,null,null,null,null,0]
[null,null,null,null,null,null,null,0]
[null,null,null,null,null,null,null,0]
[null,null,null,null,null,null,null,0]
[null,null,null,null,null,null,null,0]
[null,null,null,null,null,null,null,0]
[null,null,null,null,null,null,null,0]
[null,null,null,null,null,null,null,0]
[null,null,null,null,null,null,null,0]
[null,null,null,null,null,null,null,0]
[null,null,null,null,null,null,null,0]
[null,null,null,null,null,null,null,0]
[null,null,null,null,null,null,null,0]
[null,null,null,null,null,null,null,0]
[null,null,null,null,null,null,null,0]
[null,null,null,null,null,null,null,0]
[null,null,null,null,null,null,null,0]
[null,null,null,null,null,null,null,0]
[null,null,null,null,null,null,null,0]
[null,null,null,null,null,null,null,0]
[null,null,null,null,null,null,null,0]
[null,null,null,null,null,null,null,0]
[null,null,null,null,null,null,null,0]
[null,null,null,null,null,null,null,0]
[null,null,null,null,null,null,null,0]
[null,null,null,null,null,null,null,0]
[null,null,null,null,null,null,null,0]
[null,null,null,null,null,null,null,0]
[null,null,null,null,null,null,null,0]
[null,null,null,null,null,null,null,0]
[null,null,null,null,null,null,null,0]
[null,null,null,null,null,null,null,0]
[null,null,null,null,null,null,null,0]
[null,null,null,null,null,null,null,0]
[null,null,null,null,null,null,null,0]
[null,null,null,null,null,null,null,0]
[null,null,null,null,null,null,null,0]
[null,null,null,null,null,null,null,0]
[null,null,null,null,null,null,null,0]
[null,null,null,null,null,null,null,0]
[null,null,null,null,null,null,null,0]
[null,null,null,null,null,null,null,0]
[null,null,null,null,null,null,null,0]
[null,null,null,null,null,null,null,0]
[null,null,null,null,null,null,null,0]
[null,null,null,null,null,null,null,0]
[null,null,null,null,null,null,null,0]
[null,null,null,null,null,null,null,0]
[null,null,null,null,null,null,null,{"$f":"B325","v":0}]
[null,null,null,null,null,null,null,0]
[null,null,null,null,null,null,null,0]
[null,null,null,null,null,null,null,0]
[null,null,null,null,null,null,null,0]
[null,null,null,null,null,null,null,0]
[null,null,null,null,null,null,null,0]
[null,null,null,null,null,null,null,0]
[null,null,null,null,null,null,null,0]
[null,null,null,null,null,null,null,0]
[null,null,null,null,null,null,null,0]
[null,null,null,null,null,null,null,0]
[null,null,null,null,null,null,null,0]
[null,null,null,null,null,null,null,0]
[null,null,null,null,null,null,null,0]
[null,null,null,null,null,null,null,0]
[null,null,null,null,null,null,null,0]
[null,null,null,null,null,null,null,0]
[null,null,null,null,null,null,null,0]
[null,null,null,null,null,null,null,0]
[null,null,null,null,null,null,null,0]
[null,null,null,null,null,null,null,0]
[null,null,null,null,null,null,null,0]
[null,null,null,null,null,null,null,0]
[null,null,null,null,null,null,null,0]
[null,null,null,null,null,null,null,0]
[null,null,null,null,null,null,null,0]
[null,null,null,null,null,null,null,0]
[null,null,null,null,null,null,null,0]
[null,null,null,null,null,null,null,0]
[null,null,null,null,null,null,null,0]
[null,null,null,null,null,null,null,0]
[null,null,null,null,null,null,null,0]
[null,null,null,null,null,null,null,0]
[null,null,null,null,null,null,null,0]
[null,null,null,null,null,null,null,0]
[null,null,null,null,null,null,null,0]
[null,null,null,null,null,null,null,0]
[null,null,null,null,null,null,null,0]
[null,null,null,null,null,null,null,0]
[null,null,null,null,null,null,null,0]
[null,null,null,null,null,null,null,0]
[null,null,null,null,null,null,null,0]
[null,null,null,null,null,null,null,0]
[null,null,null,null,null,null,null,0]
[null,null,null,null,null,null,null,0]
[null,null,null,null,null,null,null,0]
[null,null,null,null,null,null,null,0]
[null,null,null,null,null,null,null,0]
[null,null,null,null,null,null,null,0]
[null,null,null,null,null,null,null,0]
[null,null,null,null,null,null,null,0]
[null,null,null,null,null,null,null,0]
[null,null,null,null,null,null,null,0]
[null,null,null,null,null,null,null,0]
[null,null,null,null,null,null,null,0]
[null,null,null,null,null,null,null,0]
[null,null,null,null,null,null,null,0]
[null,null,null,null,null,null,null,0]
[null,null,null,null,null,null,null,0]
[null,null,null,null,null,null,null,0]
[null,null,null,null,null,null,null,0]
[null,null,null,null,null,null,null,0]
[null,null,null,null,null,null,null,0]
[null,null,null,null,null,null,null,{"$f":"B389","v":0}]
[null,null,null,null,null,null,null,0]
[null,null,null,null,null,null,null,0]
[null,null,null,null,null,null,null,0]
[null,null,null,null,null,null,null,0]
[null,null,null,null,null,null,null,0]
[null,null,null,null,null,null,null,0]
[null,null,null,null,null,null,null,0]
[null,null,null,null,null,null,null,0]
[null,null,null,null,null,null,null,0]
[null,null,null,null,null,null,null,0]
[null,null,null,null,null,null,null,0]
[null,null,null,null,null,null,null,0]
[null,null,null,null,null,null,null,0]
[null,null,null,null,null,null,null,0]
[null,null,null,null,null,null,null,0]
[null,null,null,null,null,null,null,0]
[null,null,null,null,null,null,null,0]
[null,null,null,null,null,null,null,0]
[null,null,null,null,null,null,null,0]
[null,null,null,null,null,null,null,0]
[null,null,null,null,null,null,null,0]
[null,null,null,null,null,null,null,0]
[null,null,null,null,null,null,null,0]
[null,null,null,null,null,null,null,0]
[null,null,null,null,null,null,null,0]
[null,null,null,null,null,null,null,0]
[null,null,null,null,null,null,null,0]
[null,null,null,null,null,null,null,0]
[null,null,null,null,null,null,null,0]
[null,null,null,null,null,null,null,0]
[null,null,null,null,null,null,null,0]
[null,null,null,null,null,null,null,0]
[null,null,null,null,null,null,null,0]
[null,null,null,null,null,null,null,0]
[null,null,null,null,null,null,null,0]
[null,null,null,null,null,null,null,0]
[null,null,null,null,null,null,null,0]
[null,null,null,null,null,null,null,0]
[null,null,null,null,null,null,null,0]
[null,null,null,null,null,null,null,0]
[null,null,null,null,null,null,null,0]
[null,null,null,null,null,null,null,0]
[null,null,null,null,null,null,null,0]
[null,null,null,null,null,null,null,0]
[null,null,null,null,null,null,null,0]
[null,null,null,null,null,null,null,0]
[null,null,null,null,null,null,null,0]
[null,null,null,null,null,null,null,0]
[null,null,null,null,null,null,null,0]
[null,null,null,null,null,null,null,0]
[null,null,null,null,null,null,null,0]
[null,null,null,null,null,null,null,0]
[null,null,null,null,null,null,null,0]
[null,null,null,null,null,null,null,0]
[null,null,null,null,null,null,null,0]
[null,null,null,null,null,null,null,0]
[null,null,null,null,null,null,null,0]
[null,null,null,null,null,null,null,0]
[null,null,null,null,null,null,null,0]
[null,null,null,null,null,null,null,0]
[null,null,null,null,null,null,null,0]
[null,null,null,null,null,null,null,0]
[null,null,null,null,null,null,null,0]
[null,null,null,null,null,null,null,{"$f":"B453","v":0}]
[null,null,null,null,null,null,null,0]
[null,null,null,null,null,null,null,0]
[null,null,null,null,null,null,null,0]
[null,null,null,null,null,null,null,0]
[null,null,null,null,null,null,null,0]
[null,null,null,null,null,null,null,0]
[null,null,null,null,null,null,null,0]
[null,null,null,null,null,null,null,0]
[null,null,null,null,null,null,null,0]
[null,null,null,null,null,null,null,0]
[null,null,null,null,null,null,null,0]
[null,null,null,null,null,null,null,0]
[null,null,null,null,null,null,null,0]
[null,null,null,null,null,null,null,0]
[null,null,null,null,null,null,null,0]
[null,null,null,null,null,null,null,0]
[null,null,null,null,null,null,null,0]
[null,null,null,null,null,null,null,0]
[null,null,null,null,null,null,null,0]
[null,null,null,null,null,null,null,0]
[null,null,null,null,null,null,null,0]
[null,null,null,null,null,null,null,0]
[null,null,null,null,null,null,null,0]
[null,null,null,null,null,null,null,0]
[null,null,null,null,null,null,null,0]
[null,null,null,null,null,null,null,0]
[null,null,null,null,null,null,null,0]
[null,null,null,null,null,null,null,0]
[null,null,null,null,null,null,null,0]
[null,null,null,null,null,null,null,0]
[null,null,null,null,null,null,null,0]
[null,null,null,null,null,null,null,0]
[null,null,null,null,null,null,null,0]
[null,null,null,null,null,null,null,0]
[null,null,null,null,null,null,null,0]
[null,null,null,null,null,null,null,0]
[null,null,null,null,null,null,null,0]
[null,null,null,null,null,null,null,0]
[null,null,null,null,null,null,null,0]
[null,null,null,null,null,null,null,0]
[null,null,null,null,null,null,null,0]
[null,null,null,null,null,null,null,0]
[null,null,null,null,null,null,null,0]
[null,null,null,null,null,null,null,0]
[null,null,null,null,null,null,null,0]
[null,null,null,null,null,null,null,0]
[null,null,null,null,null,null,null,0]
[null,null,null,null,null,null,null,0]
[null,null,null,null,null,null,null,0]
[null,null,null,null,null,null,null,0]
[null,null,null,null,null,null,null,0]
[null,null,null,null,null,null,null,0]
[null,null,null,null,null,null,null,0]
[null,null,null,null,null,null,null,0]
[null,null,null,null,null,null,null,0]
[null,null,null,null,null,null,null,0]
[null,null,null,null,null,null,null,0]
[null,null,null,null,null,null,null,0]
[null,null,null,null,null,null,null,0]
[null,null,null,null,null,null,null,0]
[null,null,null,null,null,null,null,0]
[null,null,null,null,null,null,null,0]
[null,null,null,null,null,null,null,0]
[null,null,null,null,null,null,null,{"$f":"B517","v":0}]
[null,null,null,null,null,null,null,0]
[null,null,null,null,null,null,null,0]
[null,null,null,null,null,null,null,0]
[null,null,null,null,null,null,null,0]
[null,null,null,null,null,null,null,0]
[null,null,null,null,null,null,null,0]
[null,null,null,null,null,null,null,0]
[null,null,null,null,null,null,null,0]
[null,null,null,null,null,null,null,0]
[null,null,null,null,null,null,null,0]
[null,null,null,null,null,null,null,0]
[null,null,null,null,null,null,null,0]
[null,null,null,null,null,null,null,0]
[null,null,null,null,null,null,null,0]
[null,null,null,null,null,null,null,0]
[null,null,null,null,null,null,null,0]
[null,null,null,null,null,null,null,0]
[null,null,null,null,null,null,null,0]
[null,null,null,null,null,null,null,0]
[null,null,null,null,null,null,null,0]
[null,null,null,null,null,null,null,0]
[null,null,null,null,null,null,null,0]
[null,null,null,null,null,null,null,0]
[null,null,null,null,null,null,null,0]
[null,null,null,null,null,null,null,0]
[null,null,null,null,null,null,null,0]
[null,null,null,null,null,null,null,0]
[null,null,null,null,null,null,null,0]
[null,null,null,null,null,null,null,0]
[null,null,null,null,null,null,null,0]
[null,null,null,null,null,null,null,0]
[null,null,null,null,null,null,null,0]
[null,null,null,null,null,null,null,0]
[null,null,null,null,null,null,null,0]
[null,null,null,null,null,null,null,0]
[null,null,null,null,null,null,null,0]
[null,null,null,null,null,null,null,0]
[null,null,null,null,null,null,null,0]
[null,null,null,null,null,null,null,0]
[null,null,null,null,null,null,null,0]
[null,null,null,null,null,null,null,0]
[null,null,null,null,null,null,null,0]
[null,null,null,null,null,null,null,0]
[null,null,null,null,null,null,null,0]
[null,null,null,null,null,null,null,0]
[null,null,null,null,null,null,null,0]
[null,null,null,null,null,null,null,0]
[null,null,null,null,null,null,null,0]
[null,null,null,null,null,null,null,0]
[null,null,null,null,null,null,null,0]
[null,null,null,null,null,null,null,0]
[null,null,null,null,null,null,null,0]
[null,null,null,null,null,null,null,0]
[null,null,null,null,null,null,null,0]
[null,null,null,null,null,null,null,0]
[null,null,null,null,null,null,null,0]
[null,null,null,null,null,null,null,0]
[null,null,null,null,null,null,null,0]
[null,null,null,null,null,null,null,0]
[null,null,null,null,null,null,null,0]
[null,null,null,null,null,null,null,0]
[null,null,null,null,null,null,null,0]
[null,null,null,null,null,null,null,0]
[null,null,null,null,null,null,null,{"$f":"B581","v":0}]
[null,null,null,null,null,null,null,0]
[null,null,null,null,null,null,null,0]
[null,null,null,null,null,null,null,0]
[null,null,null,null,null,null,null,0]
[null,null,null,null,null,null,null,0]
[null,null,null,null,null,null,null,0]
[null,null,null,null,null,null,null,0]
[null,null,null,null,null,null,null,0]
[null,null,null,null,null,null,null,0]
[null,null,null,null,null,null,null,0]
[null,null,null,null,null,null,null,0]
[null,null,null,null,null,null,null,0]
[null,null,null,null,null,null,null,0]
[null,null,null,null,null,null,null,0]
[null,null,null,null,null,null,null,0]
[null,null,null,null,null,null,null,0]
[null,null,null,null,null,null,null,0]
[null,null,null,null,null,null,null,0]
[null,null,null,null,null,null,null,0]
[null,null,null,null,null,null,null,0]
[null,null,null,null,null,null,null,0]
[null,null,null,null,null,null,null,0]
[null,null,null,null,null,null,null,0]
[null,null,null,null,null,null,null,0]
[null,null,null,null,null,null,null,0]
[null,null,null,null,null,null,null,0]
[null,null,null,null,null,null,null,0]
[null,null,null,null,null,null,null,0]
[null,null,null,null,null,null,null,0]
[null,null,null,null,null,null,null,0]
[null,null,null,null,null,null,null,0]
[null,null,null,null,null,null,null,0]
[null,null,null,null,null,null,null,0]
[null,null,null,null,null,null,null,0]
[null,null,null,null,null,null,null,0]
[null,null,null,null,null,null,null,0]
[null,null,null,null,null,null,null,0]
[null,null,null,null,null,null,null,0]
[null,null,null,null,null,null,null,0]
[null,null,null,null,null,null,null,0]
[null,null,null,null,null,null,null,0]
[null,null,null,null,null,null,null,0]
[null,null,null,null,null,null,null,0]
[null,null,null,null,null,null,null,0]
[null,null,null,null,null,null,null,0]
[null,null,null,null,null,null,null,0]
[null,null,null,null,null,null,null,0]
[null,null,null,null,null,null,null,0]
[null,null,null,null,null,null,null,0]
[null,null,null,null,null,null,null,0]
[null,null,null,null,null,null,null,0]
[null,null,null,null,null,null,null,0]
[null,null,null,null,null,null,null,0]
[null,null,null,null,null,null,null,0]
[null,null,null,null,null,null,null,0]
[null,null,null,null,null,null,null,0]
[null,null,null,null,null,null,null,0]
[null,null,null,null,null,null,null,0]
[null,null,null,null,null,null,null,0]
[null,null,null,null,null,null,null,0]
[null,null,null,null,null,null,null,0]
[null,null,null,null,null,null,null,0]
[null,null,null,null,null,null,null,0]
[null,null,null,null,null,null,null,{"$f":"B645","v":0}]
[null,null,null,null,null,null,null,0]
[null,null,null,null,null,null,null,0]
[null,null,null,null,null,null,null,0]
[null,null,null,null,null,null,null,0]
[null,null,null,null,null,null,null,0]
[null,null,null,null,null,null,null,0]
[null,null,null,null,null,null,null,0]
[null,null,null,null,null,null,null,0]
[null,null,null,null,null,null,null,0]
[null,null,null,null,null,null,null,0]
[null,null,null,null,null,null,null,0]
[null,null,null,null,null,null,null,0]
[null,null,null,null,null,null,null,0]
[null,null,null,null,null,null,null,0]
[null,null,null,null,null,null,null,0]
[null,null,null,null,null,null,null,0]
[null,null,null,null,null,null,null,0]
[null,null,null,null,null,null,null,0]
[null,null,null,null,null,null,null,0]
[null,null,null,null,null,null,null,0]
[null,null,null,null,null,null,null,0]
[null,null,null,null,null,null,null,0]
[null,null,null,null,null,null,null,0]
[null,null,null,null,null,null,null,0]
[null,null,null,null,null,null,null,0]
[null,null,null,null,null,null,null,0]
[null,null,null,null,null,null,null,0]
[null,null,null,null,null,null,null,0]
[null,null,null,null,null,null,null,0]
[null,null,null,null,null,null,null,0]
[null,null,null,null,null,null,null,0]
[null,null,null,null,null,null,null,0]
[null,null,null,null,null,null,null,0]
[null,null,null,null,null,null,null,0]
[null,null,null,null,null,null,null,0]
[null,null,null,null,null,null,null,0]
[null,null,null,null,null,null,null,0]
[null,null,null,null,null,null,null,0]
[null,null,null,null,null,null,null,0]
[null,null,null,null,null,null,null,0]
[null,null,null,null,null,null,null,0]
[null,null,null,null,null,null,null,0]
[null,null,null,null,null,null,null,0]
[null,null,null,null,null,null,null,0]
[null,null,null,null,null,null,null,0]
[null,null,null,null,null,null,null,0]
[null,null,null,null,null,null,null,0]
[null,null,null,null,null,null,null,0]
[null,null,null,null,null,null,null,0]
[null,null,null,null,null,null,null,0]
[null,null,null,null,null,null,null,0]
[null,null,null,null,null,null,null,0]
[null,null,null,null,null,null,null,0]
[null,null,null,null,null,null,null,0]
[null,null,null,null,null,null,null,0]
[null,null,null,null,null,null,null,0]
[null,null,null,null,null,null,null,0]
[null,null,null,null,null,null,null,0]
[null,null,null,null,null,null,null,0]
[null,null,null,null,null,null,null,0]
[null,null,null,null,null,null,null,0]
[null,null,null,null,null,null,null,0]
[null,null,null,null,null,null,null,0]
[null,null,null,null,null,null,null,{"$f":"B709","v":0}]
[null,null,null,null,null,null,null,0]
[null,null,null,null,null,null,null,0]
[null,null,null,null,null,null,null,0]
[null,null,null,null,null,null,null,0]
[null,null,null,null,null,null,null,0]
[null,null,null,null,null,null,null,0]
[null,null,null,null,null,null,null,0]
[null,null,null,null,null,null,null,0]
[null,null,null,null,null,null,null,0]
[null,null,null,null,null,null,null,0]
[null,null,null,null,null,null,null,0]
[null,null,null,null,null,null,null,0]
[null,null,null,null,null,null,null,0]
[null,null,null,null,null,null,null,0]
[null,null,null,null,null,null,null,0]
[null,null,null,null,null,null,null,0]
[null,null,null,null,null,null,null,0]
[null,null,null,null,null,null,null,0]
[null,null,null,null,null,null,null,0]
[null,null,null,null,null,null,null,0]
[null,null,null,null,null,null,null,0]
[null,null,null,null,null,null,null,0]
[null,null,null,null,null,null,null,0]
[null,null,null,null,null,null,null,0]
[null,null,null,null,null,null,null,0]
[null,null,null,null,null,null,null,0]
[null,null,null,null,null,null,null,0]
[null,null,null,null,null,null,null,0]
[null,null,null,null,null,null,null,0]
[null,null,null,null,null,null,null,0]
[null,null,null,null,null,null,null,0]
[null,null,null,null,null,null,null,0]
[null,null,null,null,null,null,null,0]
[null,null,null,null,null,null,null,0]
[null,null,null,null,null,null,null,0]
[null,null,null,null,null,null,null,0]
[null,null,null,null,null,null,null,0]
[null,null,null,null,null,null,null,0]
[null,null,null,null,null,null,null,0]
[null,null,null,null,null,null,null,0]
[null,null,null,null,null,null,null,0]
[null,null,null,null,null,null,null,0]
[null,null,null,null,null,null,null,0]
[null,null,null,null,null,null,null,0]
[null,null,null,null,null,null,null,0]
[null,null,null,null,null,null,null,0]
[null,null,null,null,null,null,null,0]
[null,null,null,null,null,null,null,0]
[null,null,null,null,null,null,null,0]
[null,null,null,null,null,null,null,0]
[null,null,null,null,null,null,null,0]
[null,null,null,null,null,null,null,0]
[null,null,null,null,null,null,null,0]
[null,null,null,null,null,null,null,0]
[null,null,null,null,null,null,null,0]
[null,null,null,null,null,null,null,0]
[null,null,null,null,null,null,null,0]
[null,null,null,null,null,null,null,0]
[null,null,null,null,null,null,null,0]
[null,null,null,null,null,null,null,0]
[null,null,null,null,null,null,null,0]
[null,null,null,null,null,null,null,0]
[null,null,null,null,null,null,null,0]
[null,null,null,null,null,null,null,{"$f":"B773","v":0}]
[null,null,null,null,null,null,null,0]
[null,null,null,null,null,null,null,0]
[null,null,null,null,null,null,null,0]
[null,null,null,null,null,null,null,0]
[null,null,null,null,null,null,null,0]
[null,null,null,null,null,null,null,0]
[null,null,null,null,null,null,null,0]
[null,null,null,null,null,null,null,0]
[null,null,null,null,null,null,null,0]
[null,null,null,null,null,null,null,0]
[null,null,null,null,null,null,null,0]
[null,null,null,null,null,null,null,0]
[null,null,null,null,null,null,null,0]
[null,null,null,null,null,null,null,0]
[null,null,null,null,null,null,null,0]
[null,null,null,null,null,null,null,0]
[null,null,null,null,null,null,null,0]
[null,null,null,null,null,null,null,0]
[null,null,null,null,null,null,null,0]
[null,null,null,null,null,null,null,0]
[null,null,null,null,null,null,null,0]
[null,null,null,null,null,null,null,0]
[null,null,null,null,null,null,null,0]
[null,null,null,null,null,null,null,0]
[null,null,null,null,null,null,null,0]
[null,null,null,null,null,null,null,0]
[null,null,null,null,null,null,null,0]
[null,null,null,null,null,null,null,0]
[null,null,null,null,null,null,null,0]
[null,null,null,null,null,null,null,0]
[null,null,null,null,null,null,null,0]
[null,null,null,null,null,null,null,0]
[null,null,null,null,null,null,null,0]
[null,null,null,null,null,null,null,0]
[null,null,null,null,null,null,null,0]
[null,null,null,null,null,null,null,0]
[null,null,null,null,null,null,null,0]
[null,null,null,null,null,null,null,0]
[null,null,null,null,null,null,null,0]
[null,null,null,null,null,null,null,0]
[null,null,null,null,null,null,null,0]
[null,null,null,null,null,null,null,0]
[null,null,null,null,null,null,null,0]
[null,null,null,null,null,null,null,0]
[null,null,null,null,null,null,null,0]
[null,null,null,null,null,null,null,0]
[null,null,null,null,null,null,null,0]
[null,null,null,null,null,null,null,0]
[null,null,null,null,null,null,null,0]
[null,null,null,null,null,null,null,0]
[null,null,null,null,null,null,null,0]
[null,null,null,null,null,null,null,0]
[null,null,null,null,null,null,null,0]
[null,null,null,null,null,null,null,0]
[null,null,null,null,null,null,null,0]
[null,null,null,null,null,null,null,0]
[null,null,null,null,null,null,null,0]
[null,null,null,null,null,null,null,0]
[null,null,null,null,null,null,null,0]
[null,null,null,null,null,null,null,0]
[null,null,null,null,null,null,null,0]
[null,null,null,null,null,null,null,0]
[null,null,null,null,null,null,null,0]
[null,null,null,null,null,null,null,{"$f":"B837","v":0}]
[null,null,null,null,null,null,null,0]
[null,null,null,null,null,null,null,0]
[null,null,null,null,null,null,null,0]
[null,null,null,null,null,null,null,0]
[null,null,null,null,null,null,null,0]
[null,null,null,null,null,null,null,0]
[null,null,null,null,null,null,null,0]
[null,null,null,null,null,null,null,0]
[null,null,null,null,null,null,null,0]
[null,null,null,null,null,null,null,0]
[null,null,null,null,null,null,null,0]
[null,null,null,null,null,null,null,0]
[null,null,null,null,null,null,null,0]
[null,null,null,null,null,null,null,0]
[null,null,null,null,null,null,null,0]
[null,null,null,null,null,null,null,0]
[null,null,null,null,null,null,null,0]
[null,null,null,null,null,null,null,0]
[null,null,null,null,null,null,null,0]
[null,null,null,null,null,null,null,0]
[null,null,null,null,null,null,null,0]
[null,null,null,null,null,null,null,0]
[null,null,null,null,null,null,null,0]
[null,null,null,null,null,null,null,0]
[null,null,null,null,null,null,null,0]
[null,null,null,null,null,null,null,0]
[null,null,null,null,null,null,null,0]
[null,null,null,null,null,null,null,0]
[null,null,null,null,null,null,null,0]
[null,null,null,null,null,null,null,0]
[null,null,null,null,null,null,null,0]
[null,null,null,null,null,null,null,0]
[null,null,null,null,null,null,null,0]
[null,null,null,null,null,null,null,0]
[null,null,null,null,null,null,null,0]
[null,null,null,null,null,null,null,0]
[null,null,null,null,null,null,null,0]
[null,null,null,null,null,null,null,0]
[null,null,null,null,null,null,null,0]
[null,null,null,null,null,null,null,0]
[null,null,null,null,null,null,null,0]
[null,null,null,null,null,null,null,0]
[null,null,null,null,null,null,null,0]
[null,null,null,null,null,null,null,0]
[null,null,null,null,null,null,null,0]
[null,null,null,null,null,null,null,0]
[null,null,null,null,null,null,null,0]
[null,null,null,null,null,null,null,0]
[null,null,null,null,null,null,null,0]
[null,null,null,null,null,null,null,0]
[null,null,null,null,null,null,null,0]
[null,null,null,null,null,null,null,0]
[null,null,null,null,null,null,null,0]
[null,null,null,null,null,null,null,0]
[null,null,null,null,null,null,null,0]
[null,null,null,null,null,null,null,0]
[null,null,null,null,null,null,null,0]
[null,null,null,null,null,null,null,0]
[null,null,null,null,null,null,null,0]
[null,null,null,null,null,null,null,0]
[null,null,null,null,null,null,null,0]
[null,null,null,null,null,null,null,0]
[null,null,null,null,null,null,null,0]
[null,null,null,null,null,null,null,{"$f":"B901","v":0}]
[null,null,null,null,null,null,null,0]
[null,null,null,null,null,null,null,0]
[null,null,null,null,null,null,null,0]
[null,null,null,null,null,null,null,0]
[null,null,null,null,null,null,null,0]
[null,null,null,null,null,null,null,0]
[null,null,null,null,null,null,null,0]
[null,null,null,null,null,null,null,0]
[null,null,null,null,null,null,null,0]
[null,null,null,null,null,null,null,0]
[null,null,null,null,null,null,null,0]
[null,null,null,null,null,null,null,0]
[null,null,null,null,null,null,null,0]
[null,null,null,null,null,null,null,0]
[null,null,null,null,null,null,null,0]
[null,null,null,null,null,null,null,0]
[null,null,null,null,null,null,null,0]
[null,null,null,null,null,null,null,0]
[null,null,null,null,null,null,null,0]
[null,null,null,null,null,null,null,0]
[null,null,null,null,null,null,null,0]
[null,null,null,null,null,null,null,0]
[null,null,null,null,null,null,null,0]
[null,null,null,null,null,null,null,0]
[null,null,null,null,null,null,null,0]
[null,null,null,null,null,null,null,0]
[null,null,null,null,null,null,null,0]
[null,null,null,null,null,null,null,0]
[null,null,null,null,null,null,null,0]
[null,null,null,null,null,null,null,0]
[null,null,null,null,null,null,null,0]
[null,null,null,null,null,null,null,0]
[null,null,null,null,null,null,null,0]
[null,null,null,null,null,null,null,0]
[null,null,null,null,null,null,null,0]
[null,null,null,null,null,null,null,0]
[null,null,null,null,null,null,null,0]
[null,null,null,null,null,null,null,0]
[null,null,null,null,null,null,null,0]
[null,null,null,null,null,null,null,0]
[null,null,null,null,null,null,null,0]
[null,null,null,null,null,null,null,0]
[null,null,null,null,null,null,null,0]
[null,null,null,null,null,null,null,0]
[null,null,null,null,null,null,null,0]
[null,null,null,null,null,null,null,0]
[null,null,null,null,null,null,null,0]
[null,null,null,null,null,null,null,0]
[null,null,null,null,null,null,null,0]
[null,null,null,null,null,null,null,0]
[null,null,null,null,null,null,null,0]
[null,null,null,null,null,null,null,0]
[null,null,null,null,null,null,null,0]
[null,null,null,null,null,null,null,0]
[null,null,null,null,null,null,null,0]
[null,null,null,null,null,null,null,0]
[null,null,null,null,null,null,null,0]
[null,null,null,null,null,null,null,0]
[null,null,null,null,null,null,null,0]
[null,null,null,null,null,null,null,0]
[null,null,null,null,null,null,null,0]
[null,null,null,null,null,null,null,0]
[null,null,null,null,null,null,null,0]
[null,null,null,null,null,null,null,{"$f":"B965","v":0}]
[null,null,null,null,null,null,null,0]
[null,null,null,null,null,null,null,0]
[null,null,null,null,null,null,null,0]
[null,null,null,null,null,null,null,0]
[null,null,null,null,null,null,null,0]
[null,null,null,null,null,null,null,0]
[null,null,null,null,null,null,null,0]
[null,null,null,null,null,null,null,0]
[null,null,null,null,null,null,null,0]
[null,null,null,null,null,null,null,0]
[null,null,null,null,null,null,null,0]
[null,null,null,null,null,null,null,0]
[null,null,null,null,null,null,null,0]
[null,null,null,null,null,null,null,0]
[null,null,null,null,null,null,null,0]
[null,null,null,null,null,null,null,0]
[null,null,null,null,null,null,null,0]
[null,null,null,null,null,null,null,0]
[null,null,null,null,null,null,null,0]
[null,null,null,null,null,null,null,0]
[null,null,null,null,null,null,null,0]
[null,null,null,null,null,null,null,0]
[null,null,null,null,null,null,null,0]
[null,null,null,null,null,null,null,0]
[null,null,null,null,null,null,null,0]
[null,null,null,null,null,null,null,0]
[null,null,null,null,null,null,null,0]
[null,null,null,null,null,null,null,0]
[null,null,null,null,null,null,null,0]
[null,null,null,null,null,null,null,0]
[null,null,null,null,null,null,null,0]
[null,null,null,null,null,null,null,0]
[null,null,null,null,null,null,null,0]
[null,null,null,null,null,null,null,0]
[null,null,null,null,null,null,null,0]
[null,null,null,null,null,null,null,0]
[null,null,null,null,null,null,null,0]
[null,null,null,null,null,null,null,0]
[null,null,null,null,null,null,null,0]
[null,null,null,null,null,null,null,0]

{"sheet":"Šifranti","index":7,"n_rows":438,"n_cols":38,"rows_kept":438,"cut":false,"hidden":true,"merged":[]}
[null,"NAČIN PLAČILA",null,null,null,"DATUMI",null,null,null,"REFERENČNI DOKUMENT",null,"DDV",null,null,"FUNKCIJA RAČUNA ",null,null,"VRSTA DOKUMENTA",null,null,"KODA NAMENA",null,null,"DRŽAVE",null,null,"POPUST / PRIBITEK",null,"DDV PO DRŽAVAH",null,null,null,"DDV za izbrano državo",null,null,"ZAVEZANEC ZA DDV",null,"POSLOVNI PROCESI"]
[null,"Opis","Koda",null,null,"Opis","Vrednost",null,null,"Opis",null,"Opis kode","Koda",null,"Opis kode","Koda",null,"Opis kode","Koda",null,"Opis kode","Koda",null,"Opis kode","Koda",null,"Opis",null,"Država","Opis kode","Koda",null,"Opis kode","Koda",null,"Opis",null,"Opis"]
[null,"Račun je potrebno plačati",0,null,null,"Današnji dan",{"$f":"TODAY()","v":"2021-04-23"},null,null,"Dobavnica",null,22,22,null,"ORIGINAL",null,null,"Račun",380,null,"Upravljanje denarnih sredstev - znotraj banke","ACCT",null,"Slovenia","SI",null,"Popust",null,"SI",22,22,null,{"$f":"IFERROR(INDEX($AD$3:AD25, SMALL(IF('Podatki o računu'!$C$10=$AC$3:AC25, ROW(Šifranti!$AD$3:AD25)-2,\"\"), ROW()-2)),\"\")","v":22},{"$f":"IFERROR(INDEX($AE$3:AE25, SMALL(IF('Podatki o računu'!$C$10=$AC$3:AC25, ROW(Šifranti!$AE$3:AE25)-2,\"\"), ROW()-2)),\"\")","v":22},null,"DA",null,"P1"]
[null,"Račun bo plačan preko direktne obremenitve in ga ni potrebno plačati",1,null,null,"Začetek datumskega obdobja","1970-01-01",null,null,"Naročilo",null,9.5,9.5,null,"KOPIJA",null,null,"Dobropis",381,null,"Plačilo vnaprej/predplačilo","ADVA",null,"Croatia","HR",null,"Pribitek",null,"SI",9.5,9.5,null,{"$f":"IFERROR(INDEX($AD$3:AD26, SMALL(IF('Podatki o računu'!$C$10=$AC$3:AC26, ROW(Šifranti!$AD$3:AD26)-2,\"\"), ROW()-2)),\"\")","v":9.5},{"$f":"IFERROR(INDEX($AE$3:AE26, SMALL(IF('Podatki o računu'!$C$10=$AC$3:AC26, ROW(Šifranti!$AE$3:AE26)-2,\"\"), ROW()-2)),\"\")","v":9.5},null,"NE",null,"P2"]
[null,"Račun je bil že plačan",2,null,null,null,null,null,null,"Pogodba",null,0,0,null,null,null,null,"Predračun",325,null,"Administrativne storitve","ADMG",null,"Czechia","CZ",null,null,null,"SI",0,0,null,{"$f":"IFERROR(INDEX($AD$3:AD27, SMALL(IF('Podatki o računu'!$C$10=$AC$3:AC27, ROW(Šifranti!$AD$3:AD27)-2,\"\"), ROW()-2)),\"\")","v":0},{"$f":"IFERROR(INDEX($AE$3:AE27, SMALL(IF('Podatki o računu'!$C$10=$AC$3:AC27, ROW(Šifranti!$AE$3:AE27)-2,\"\"), ROW()-2)),\"\")","v":0},null,null,null,"P3"]
[null,"Drugo - ni možnosti plačila",3,null,null,null,null,null,null,"Prodajni nalog",null,"22 (76.a člen)",0,null,null,null,null,"Avansni račun",386,null,"Aktivna politika zaposlovanja","AEMP",null,"Montenegro","ME",null,null,null,"SI","22 (76.a člen)",0,null,{"$f":"IFERROR(INDEX($AD$3:AD28, SMALL(IF('Podatki o računu'!$C$10=$AC$3:AC28, ROW(Šifranti!$AD$3:AD28)-2,\"\"), ROW()-2)),\"\")","v":"22 (76.a člen)"},{"$f":"IFERROR(INDEX($AE$3:AE28, SMALL(IF('Podatki o računu'!$C$10=$AC$3:AC28, ROW(Šifranti!$AE$3:AE28)-2,\"\"), ROW()-2)),\"\")","v":0},null,null,null,"P4"]
[null,null,null,null,null,null,null,null,null,"Prevzemnica",null,"9,5 (76.a člen)",0,null,null,null,null,null,null,null,"Plačilo v kmetijstvu","AGRT",null,"Austria","AT",null,null,null,"SI","9,5 (76.a člen)",0,null,{"$f":"IFERROR(INDEX($AD$3:AD26, SMALL(IF('Podatki o računu'!$C$10=$AC$3:AC26, ROW(Šifranti!$AD$3:AD26)-2,\"\"), ROW()-2)),\"\")","v":"9,5 (76.a člen)"},{"$f":"IFERROR(INDEX($AE$3:AE26, SMALL(IF('Podatki o računu'!$C$10=$AC$3:AC26, ROW(Šifranti!$AE$3:AE26)-2,\"\"), ROW()-2)),\"\")","v":0},null,null,null,"P5"]
[null,null,null,null,null,null,null,null,null,"Projekt",null,null,null,null,null,null,null,null,null,null,"Zračni prevoz","AIRB",null,"United Kingdom of Great Britain and Northern Ireland (the)","GB",null,null,null,"HR",25,25,null,{"$f":"IFERROR(INDEX($AD$3:AD27, SMALL(IF('Podatki o računu'!$C$10=$AC$3:AC27, ROW(Šifranti!$AD$3:AD27)-2,\"\"), ROW()-2)),\"\")","v":""},null,null,null,null,"P6"]
[null,null,null,null,null,null,null,null,null,"Eksterni objekt",null,null,null,null,null,null,null,null,null,null,"Preživnina","ALMY",null,"Albania","AL",null,null,null,"HR",13,13,null,null,null,null,null,null,"P7"]
[null,null,null,null,null,null,null,null,null,null,null,null,null,null,null,null,null,null,null,null,"Plačilo obroka kredita/zavarovanja","ANNI",null,"Algeria","DZ",null,null,null,"HR",5,5,null,null,null,null,null,null,"P8"]
[null,null,null,null,null,null,null,null,null,null,null,null,null,null,null,null,null,null,null,null,"Storitve anestezije","ANTS",null,"American Samoa","AS",null,null,null,"HR",0,0,null,null,null,null,null,null,"P9"]
[null,null,null,null,null,null,null,null,null,null,null,null,null,null,null,null,null,null,null,null,"Vnos/vpis terjatev","AREN",null,"Andorra","AD",null,null,null,"ME",21,21,null,null,null,null,null,null,"P10"]
[null,null,null,null,null,null,null,null,null,null,null,null,null,null,null,null,null,null,null,null,"Otroški dodatek","BECH",null,"Angola","AO",null,null,null,"ME",7,7,null,null,null,null,null,null,"P11"]
[null,null,null,null,null,null,null,null,null,null,null,null,null,null,null,null,null,null,null,null,"Podpora za brezposelne/invalide","BENE",null,"Anguilla","AI",null,null,null,"ME",0,0,null,null,null,null,null,null,"P12"]
[null,null,null,null,null,null,null,null,null,null,null,null,null,null,null,null,null,null,null,null,"Poslovni izdatki","BEXP",null,"Antarctica","AQ",null,null,null,"CZ",21,21]
[null,null,null,null,null,null,null,null,null,null,null,null,null,null,null,null,null,null,null,null,"Vnos/vpis konverzije v zaledju","BOCE",null,"Antigua and Barbuda","AG",null,null,null,"CZ",15,15]
[null,null,null,null,null,null,null,null,null,null,null,null,null,null,null,null,null,null,null,null,"Bonus plačilo","BONU",null,"Argentina","AR",null,null,null,"CZ",10,10]
[null,null,null,null,null,null,null,null,null,null,null,null,null,null,null,null,null,null,null,null,"Vzdrževanje zgradb","BLDM",null,"Armenia","AM",null,null,null,"CZ",0,0]
[null,null,null,null,null,null,null,null,null,null,null,null,null,null,null,null,null,null,null,null,"Avtobusni transport","BUSB",null,"Aruba","AW",null,null,null,"AT",20,20]
[null,null,null,null,null,null,null,null,null,null,null,null,null,null,null,null,null,null,null,null,"Upravljanje denarnih sredstev - med bankami","CASH",null,"Australia","AU",null,null,null,"AT",13,13]
[null,null,null,null,null,null,null,null,null,null,null,null,null,null,null,null,null,null,null,null,"Pokojninski skladi, varčevanje","CBFF",null,"Åland Islands","AX",null,null,null,"AT",10,10]
[null,null,null,null,null,null,null,null,null,null,null,null,null,null,null,null,null,null,null,null,"Račun za kabelsko TV","CBTV",null,"Azerbaijan","AZ",null,null,null,"AT",0,0]
[null,null,null,null,null,null,null,null,null,null,null,null,null,null,null,null,null,null,null,null,"Plačilo s kreditno kartico","CCRD ",null,"Bahamas (the)","BS",null,null,null,"GB",20,20]
[null,null,null,null,null,null,null,null,null,null,null,null,null,null,null,null,null,null,null,null,"Plačilo računa za kreditno kartico","CDBL",null,"Bahrain","BH",null,null,null,"GB",5,5]
[null,null,null,null,null,null,null,null,null,null,null,null,null,null,null,null,null,null,null,null,"Kartična plačila z gotovinskim vračilom","CDCB",null,"Bangladesh","BD",null,null,null,"GB",0,0]
[null,null,null,null,null,null,null,null,null,null,null,null,null,null,null,null,null,null,null,null,"Kartično izplačilo ","CDCD",null,"Barbados","BB"]
[null,null,null,null,null,null,null,null,null,null,null,null,null,null,null,null,null,null,null,null,"Kartično izplačilo z dodatnimi stroški","CDCS",null,"Belarus","BY"]
[null,null,null,null,null,null,null,null,null,null,null,null,null,null,null,null,null,null,null,null,"Originalna odobritev","CDOC",null,"Belgium","BE"]
[null,null,null,null,null,null,null,null,null,null,null,null,null,null,null,null,null,null,null,null,"Navidezna  gotovina","CDQC",null,"Belize","BZ"]
[null,null,null,null,null,null,null,null,null,null,null,null,null,null,null,null,null,null,null,null,"Stroški preklica","CFEE",null,"Benin","BJ"]
[null,null,null,null,null,null,null,null,null,null,null,null,null,null,null,null,null,null,null,null,"Dobrodelno plačilo","CHAR",null,"Bermuda","BM"]
[null,null,null,null,null,null,null,null,null,null,null,null,null,null,null,null,null,null,null,null,"Plačilo avtomobilskega kredita","CLPR",null,"Bhutan","BT"]
[null,null,null,null,null,null,null,null,null,null,null,null,null,null,null,null,null,null,null,null,"Plačilo blaga","CMDT",null,"Bolivia (Plurinational State of)","BO"]
[null,null,null,null,null,null,null,null,null,null,null,null,null,null,null,null,null,null,null,null,"Nalog za izvršitev plačila","COLL",null,"Bonaire, Sint Eustatius and Saba","BQ"]
[null,null,null,null,null,null,null,null,null,null,null,null,null,null,null,null,null,null,null,null,"Komercialno plačilo","COMC",null,"Bosnia and Herzegovina","BA"]
[null,null,null,null,null,null,null,null,null,null,null,null,null,null,null,null,null,null,null,null,"Plačilo provizije","COMM",null,"Botswana","BW"]
[null,null,null,null,null,null,null,null,null,null,null,null,null,null,null,null,null,null,null,null,"Konsolidirano plačilo tretje stranke za potrošnika","COMT",null,"Bouvet Island","BV"]
[null,null,null,null,null,null,null,null,null,null,null,null,null,null,null,null,null,null,null,null,"Stroški","COST",null,"Brazil","BR"]
[null,null,null,null,null,null,null,null,null,null,null,null,null,null,null,null,null,null,null,null,"Avtorska pravica","CPYR",null,"British Indian Ocean Territory (the)","IO"]
[null,null,null,null,null,null,null,null,null,null,null,null,null,null,null,null,null,null,null,null,"Denarno izplačilo","CSDB",null,"Brunei Darussalam","BN"]
[null,null,null,null,null,null,null,null,null,null,null,null,null,null,null,null,null,null,null,null,"Plačilo socialnega posojila banki","CSLP",null,"Bulgaria","BG"]
[null,null,null,null,null,null,null,null,null,null,null,null,null,null,null,null,null,null,null,null,"Pripomočki za okrevajoče","CVCF",null,"Burkina Faso","BF"]
[null,null,null,null,null,null,null,null,null,null,null,null,null,null,null,null,null,null,null,null,"Debetno plačilo","DBTC",null,"Burundi","BI"]
[null,null,null,null,null,null,null,null,null,null,null,null,null,null,null,null,null,null,null,null,"Plačilo z debetno kartico","DCRD",null,"Cabo Verde","CV"]
[null,null,null,null,null,null,null,null,null,null,null,null,null,null,null,null,null,null,null,null,"Depozit","DEPT",null,"Cambodia","KH"]
[null,null,null,null,null,null,null,null,null,null,null,null,null,null,null,null,null,null,null,null,"Derivativi","DERI",null,"Cameroon","CM"]
[null,null,null,null,null,null,null,null,null,null,null,null,null,null,null,null,null,null,null,null,"Dividenda","DIVD",null,"Canada","CA"]
[null,null,null,null,null,null,null,null,null,null,null,null,null,null,null,null,null,null,null,null,"Medicinska oprema","DMEQ",null,"Cayman Islands (the)","KY"]
[null,null,null,null,null,null,null,null,null,null,null,null,null,null,null,null,null,null,null,null,"Zobozdravstvene storitve","DNTS",null,"Central African Republic (the)","CF"]
[null,null,null,null,null,null,null,null,null,null,null,null,null,null,null,null,null,null,null,null,"Račun za elektriko","ELEC",null,"Chad","TD"]
[null,null,null,null,null,null,null,null,null,null,null,null,null,null,null,null,null,null,null,null,"Energetika","ENRG",null,"Chile","CL"]
[null,null,null,null,null,null,null,null,null,null,null,null,null,null,null,null,null,null,null,null,"Davek na nepremičnine","ESTX",null,"China","CN"]
[null,null,null,null,null,null,null,null,null,null,null,null,null,null,null,null,null,null,null,null,"E - denarnica","ETUP",null,"Christmas Island","CX"]
[null,null,null,null,null,null,null,null,null,null,null,null,null,null,null,null,null,null,null,null,"Finančna pomoč državnih organov in lokalnih skupnosti za odpravo posledic naravnih nesreč","FAND",null,"Cocos (Keeling) Islands (the)","CC"]
[null,null,null,null,null,null,null,null,null,null,null,null,null,null,null,null,null,null,null,null,"Ladijski prevoz","FERB",null,"Colombia","CO"]
[null,null,null,null,null,null,null,null,null,null,null,null,null,null,null,null,null,null,null,null,"Devizno poslovanje","FREX",null,"Comoros (the)","KM"]
[null,null,null,null,null,null,null,null,null,null,null,null,null,null,null,null,null,null,null,null,"Račun za plin","GASB",null,"Congo (the Democratic Republic of the)","CD"]
[null,null,null,null,null,null,null,null,null,null,null,null,null,null,null,null,null,null,null,null,"Kupoprodaja blaga","GDDS",null,"Congo (the)","CG"]
[null,null,null,null,null,null,null,null,null,null,null,null,null,null,null,null,null,null,null,null,"Kupoprodaja blaga in storitev","GDSV",null,"Cook Islands (the)","CK"]
[null,null,null,null,null,null,null,null,null,null,null,null,null,null,null,null,null,null,null,null,"Plačila iz naslova insolventnosti","GFRP",null,"Costa Rica","CR"]
[null,null,null,null,null,null,null,null,null,null,null,null,null,null,null,null,null,null,null,null,"Državno zavarovanje","GOVI",null,"Côte d'Ivoire","CI"]
[null,null,null,null,null,null,null,null,null,null,null,null,null,null,null,null,null,null,null,null,"Plačilo v dobro/breme državnega  organa","GOVT",null,"Cuba","CU"]
[null,null,null,null,null,null,null,null,null,null,null,null,null,null,null,null,null,null,null,null,"Kupoprodaja blaga in storitev z gotovino","GSCB",null,"Curaçao","CW"]
[null,null,null,null,null,null,null,null,null,null,null,null,null,null,null,null,null,null,null,null,"Avstrijski vladni uslužbenci kategorije A","GVEA",null,"Cyprus","CY"]
[null,null,null,null,null,null,null,null,null,null,null,null,null,null,null,null,null,null,null,null,"Avstrijski vladni uslužbenci kategorije B","GVEB",null,"Czechia","CZ"]
[null,null,null,null,null,null,null,null,null,null,null,null,null,null,null,null,null,null,null,null,"Avstrijski vladni uslužbenci kategorije C","GVEC",null,"Denmark","DK"]
[null,null,null,null,null,null,null,null,null,null,null,null,null,null,null,null,null,null,null,null,"Avstrijski vladni uslužbenci kategorije D","GVED",null,"Djibouti","DJ"]
[null,null,null,null,null,null,null,null,null,null,null,null,null,null,null,null,null,null,null,null,"Nakazila po vojnih zakonih","GWLT",null,"Dominica","DM"]
[null,null,null,null,null,null,null,null,null,null,null,null,null,null,null,null,null,null,null,null,"Zaščita pred tveganji","HEDG",null,"Dominican Republic (the)","DO"]
[null,null,null,null,null,null,null,null,null,null,null,null,null,null,null,null,null,null,null,null,"Plačilo stanovanjskega posojila","HLRP",null,"Ecuador","EC"]
[null,null,null,null,null,null,null,null,null,null,null,null,null,null,null,null,null,null,null,null,"Zdravstvena oskrba na domu","HLTC",null,"Egypt","EG"]
[null,null,null,null,null,null,null,null,null,null,null,null,null,null,null,null,null,null,null,null,"Zdravstveno zavarovanje","HLTI",null,"El Salvador","SV"]
[null,null,null,null,null,null,null,null,null,null,null,null,null,null,null,null,null,null,null,null,"Bolnišnična oskrba","HSPC",null,"Equatorial Guinea","GQ"]
[null,null,null,null,null,null,null,null,null,null,null,null,null,null,null,null,null,null,null,null,"Stanovanjski davek","HSTX",null,"Eritrea","ER"]
[null,null,null,null,null,null,null,null,null,null,null,null,null,null,null,null,null,null,null,null,"Nepreklicno plačilo s kreditno kartico","ICCP",null,"Estonia","EE"]
[null,null,null,null,null,null,null,null,null,null,null,null,null,null,null,null,null,null,null,null,"Prva/nujna pomoč","ICRF",null,"Eswatini","SZ"]
[null,null,null,null,null,null,null,null,null,null,null,null,null,null,null,null,null,null,null,null,"Nepreklicno plačilo z debetno kartico","IDCP",null,"Ethiopia","ET"]
[null,null,null,null,null,null,null,null,null,null,null,null,null,null,null,null,null,null,null,null,"Plačilo obroka najemnine/nakupa","IHRP",null,"Falkland Islands (the) [Malvinas]","FK"]
[null,null,null,null,null,null,null,null,null,null,null,null,null,null,null,null,null,null,null,null,"Premija avtomobilskega zavarovanja","INPC",null,"Faroe Islands (the)","FO"]
[null,null,null,null,null,null,null,null,null,null,null,null,null,null,null,null,null,null,null,null,"Plačilo obroka","INSM",null,"Fiji","FJ"]
[null,null,null,null,null,null,null,null,null,null,null,null,null,null,null,null,null,null,null,null,"Zavarovalna premija","INSU",null,"Finland","FI"]
[null,null,null,null,null,null,null,null,null,null,null,null,null,null,null,null,null,null,null,null,"Interno plačilo","INTC",null,"France","FR"]
[null,null,null,null,null,null,null,null,null,null,null,null,null,null,null,null,null,null,null,null,"Obresti","INTE",null,"French Guiana","GF"]
[null,null,null,null,null,null,null,null,null,null,null,null,null,null,null,null,null,null,null,null,"Davek na dobiček","INTX",null,"French Polynesia","PF"]
[null,null,null,null,null,null,null,null,null,null,null,null,null,null,null,null,null,null,null,null,"Delovno zavarovanje","LBRI",null,"French Southern Territories (the)","TF"]
[null,null,null,null,null,null,null,null,null,null,null,null,null,null,null,null,null,null,null,null,"Licenčna provizija/licenčnina","LICF",null,"Gabon","GA"]
[null,null,null,null,null,null,null,null,null,null,null,null,null,null,null,null,null,null,null,null,"Življenjsko zavarovanje","LIFI",null,"Gambia (the)","GM"]
[null,null,null,null,null,null,null,null,null,null,null,null,null,null,null,null,null,null,null,null,"Upravljanje likvidnosti","LIMA",null,"Georgia","GE"]
[null,null,null,null,null,null,null,null,null,null,null,null,null,null,null,null,null,null,null,null,"Posojilo","LOAN",null,"Germany","DE"]
[null,null,null,null,null,null,null,null,null,null,null,null,null,null,null,null,null,null,null,null,"Odplačilo posojila","LOAR",null,"Ghana","GH"]
[null,null,null,null,null,null,null,null,null,null,null,null,null,null,null,null,null,null,null,null,"Dolgotrajna zdravstvena oskrba","LTCF",null,"Gibraltar","GI"]
[null,null,null,null,null,null,null,null,null,null,null,null,null,null,null,null,null,null,null,null,"Zdravstvene storitve","MDCS",null,"Greece","GR"]
[null,null,null,null,null,null,null,null,null,null,null,null,null,null,null,null,null,null,null,null,"Večnamenske storitve","MSVC",null,"Greenland","GL"]
[null,null,null,null,null,null,null,null,null,null,null,null,null,null,null,null,null,null,null,null,"Polnjenje mobi računa","MTUP",null,"Grenada","GD"]
[null,null,null,null,null,null,null,null,null,null,null,null,null,null,null,null,null,null,null,null,"Neto izravnava","NETT",null,"Guadeloupe","GP"]
[null,null,null,null,null,null,null,null,null,null,null,null,null,null,null,null,null,null,null,null,"Davek na čisti dobiček","NITX",null,"Guam","GU"]
[null,null,null,null,null,null,null,null,null,null,null,null,null,null,null,null,null,null,null,null,"Ni opredeljeno drugod.","NOWS",null,"Guatemala","GT"]
[null,null,null,null,null,null,null,null,null,null,null,null,null,null,null,null,null,null,null,null,"Omrežnina","NWCH",null,"Guernsey","GG"]
[null,null,null,null,null,null,null,null,null,null,null,null,null,null,null,null,null,null,null,null,"Plačilo komunikacijskega omrežja","NWCM",null,"Guinea","GN"]
[null,null,null,null,null,null,null,null,null,null,null,null,null,null,null,null,null,null,null,null,"Otvoritvena provizija","OFEE",null,"Guinea-Bissau","GW"]
[null,null,null,null,null,null,null,null,null,null,null,null,null,null,null,null,null,null,null,null,"Drugo","OTHR",null,"Guyana","GY"]
[null,null,null,null,null,null,null,null,null,null,null,null,null,null,null,null,null,null,null,null,"Drugi računi - telekomunikacije","OTLC",null,"Haiti","HT"]
[null,null,null,null,null,null,null,null,null,null,null,null,null,null,null,null,null,null,null,null,"Vnaprej odobrena obremenitev","PADD",null,"Heard Island and McDonald Islands","HM"]
[null,null,null,null,null,null,null,null,null,null,null,null,null,null,null,null,null,null,null,null,"Plačilna lista","PAYR",null,"Holy See (the)","VA"]
[null,null,null,null,null,null,null,null,null,null,null,null,null,null,null,null,null,null,null,null,"Plačilo po vseh sklepih o izvršbah, razen sodnih za preživnine","PENO",null,"Honduras","HN"]
[null,null,null,null,null,null,null,null,null,null,null,null,null,null,null,null,null,null,null,null,"Pokojnina","PENS",null,"Hong Kong","HK"]
[null,null,null,null,null,null,null,null,null,null,null,null,null,null,null,null,null,null,null,null,"Račun za telefon","PHON",null,"Hungary","HU"]
[null,null,null,null,null,null,null,null,null,null,null,null,null,null,null,null,null,null,null,null,"Vnos/vpis prodajnega mesta","POPE",null,"Iceland","IS"]
[null,null,null,null,null,null,null,null,null,null,null,null,null,null,null,null,null,null,null,null,"Zavarovanje lastnine","PPTI",null,"India","IN"]
[null,null,null,null,null,null,null,null,null,null,null,null,null,null,null,null,null,null,null,null,"Plačilo izdatkov","PRCP",null,"Indonesia","ID"]
[null,null,null,null,null,null,null,null,null,null,null,null,null,null,null,null,null,null,null,null,"Plemenite kovine","PRME",null,"Iran (Islamic Republic of)","IR"]
[null,null,null,null,null,null,null,null,null,null,null,null,null,null,null,null,null,null,null,null,"Plačilni pogoji","PTSP",null,"Iraq","IQ"]
[null,null,null,null,null,null,null,null,null,null,null,null,null,null,null,null,null,null,null,null,"Plačilo za ponovno unovčitev čeka","RCKE",null,"Ireland","IE"]
[null,null,null,null,null,null,null,null,null,null,null,null,null,null,null,null,null,null,null,null,"Plačilo za  izdajo potrdila ","RCPT",null,"Isle of Man","IM"]
[null,null,null,null,null,null,null,null,null,null,null,null,null,null,null,null,null,null,null,null,"Vračilo denarnih sredstev","REFU",null,"Israel","IL"]
[null,null,null,null,null,null,null,null,null,null,null,null,null,null,null,null,null,null,null,null,"Najemnina","RENT",null,"Italy","IT"]
[null,null,null,null,null,null,null,null,null,null,null,null,null,null,null,null,null,null,null,null,"Rehabilitacija invalidov","RHBS",null,"Jamaica","JM"]
[null,null,null,null,null,null,null,null,null,null,null,null,null,null,null,null,null,null,null,null,"Obročna plačila","RINP",null,"Japan","JP"]
[null,null,null,null,null,null,null,null,null,null,null,null,null,null,null,null,null,null,null,null,"Železniški prevoz","RLWY",null,"Jersey","JE"]
[null,null,null,null,null,null,null,null,null,null,null,null,null,null,null,null,null,null,null,null,"Plačilo iz naslova avtorskih pravic","ROYA",null,"Jordan","JO"]
[null,null,null,null,null,null,null,null,null,null,null,null,null,null,null,null,null,null,null,null,"Plača","SALA",null,"Kazakhstan","KZ"]
[null,null,null,null,null,null,null,null,null,null,null,null,null,null,null,null,null,null,null,null,"Varčevanje","SAVG",null,"Kenya","KE"]
[null,null,null,null,null,null,null,null,null,null,null,null,null,null,null,null,null,null,null,null,"Kupoprodaja storitev","SCVE",null,"Kiribati","KI"]
[null,null,null,null,null,null,null,null,null,null,null,null,null,null,null,null,null,null,null,null,"Vrednostni papirji","SECU",null,"Korea (the Democratic People's Republic of)","KP"]
[null,null,null,null,null,null,null,null,null,null,null,null,null,null,null,null,null,null,null,null,"Socialna podpora","SSBE",null,"Korea (the Republic of)","KR"]
[null,null,null,null,null,null,null,null,null,null,null,null,null,null,null,null,null,null,null,null,"Študij","STDY",null,"Kuwait","KW"]
[null,null,null,null,null,null,null,null,null,null,null,null,null,null,null,null,null,null,null,null,"Naročnina","SUBS",null,"Kyrgyzstan","KG"]
[null,null,null,null,null,null,null,null,null,null,null,null,null,null,null,null,null,null,null,null,"Plačilo dobaviteljem","SUPP",null,"Lao People's Democratic Republic (the)","LA"]
[null,null,null,null,null,null,null,null,null,null,null,null,null,null,null,null,null,null,null,null,"Vračilo davka ","TAXR",null,"Latvia","LV"]
[null,null,null,null,null,null,null,null,null,null,null,null,null,null,null,null,null,null,null,null,"Plačilo davkov ","TAXS",null,"Lebanon","LB"]
[null,null,null,null,null,null,null,null,null,null,null,null,null,null,null,null,null,null,null,null,"Telefonsko izvedena transakcija","TELI",null,"Lesotho","LS"]
[null,null,null,null,null,null,null,null,null,null,null,null,null,null,null,null,null,null,null,null,"Trgovinske storitve","TRAD",null,"Liberia","LR"]
[null,null,null,null,null,null,null,null,null,null,null,null,null,null,null,null,null,null,null,null,"Zakladniško plačilo","TREA",null,"Libya","LY"]
[null,null,null,null,null,null,null,null,null,null,null,null,null,null,null,null,null,null,null,null,"Skrbniški sklad","TRFD",null,"Liechtenstein","LI"]
[null,null,null,null,null,null,null,null,null,null,null,null,null,null,null,null,null,null,null,null,"Plačilo davka na dodano vrednost","VATX",null,"Lithuania","LT"]
[null,null,null,null,null,null,null,null,null,null,null,null,null,null,null,null,null,null,null,null,"Oskrba vida","VIEW",null,"Luxembourg","LU"]
[null,null,null,null,null,null,null,null,null,null,null,null,null,null,null,null,null,null,null,null,"Internetno izvedena transakcija","WEBI",null,"Macao","MO"]
[null,null,null,null,null,null,null,null,null,null,null,null,null,null,null,null,null,null,null,null,"Davek po odbitku","WHLD",null,"Madagascar","MG"]
[null,null,null,null,null,null,null,null,null,null,null,null,null,null,null,null,null,null,null,null,"Račun za vodo/vodarina","WTER",null,"Malawi","MW"]
[null,null,null,null,null,null,null,null,null,null,null,null,null,null,null,null,null,null,null,null,null,null,null,"Malaysia","MY"]
[null,null,null,null,null,null,null,null,null,null,null,null,null,null,null,null,null,null,null,null,null,null,null,"Maldives","MV"]
[null,null,null,null,null,null,null,null,null,null,null,null,null,null,null,null,null,null,null,null,null,null,null,"Mali","ML"]
[null,null,null,null,null,null,null,null,null,null,null,null,null,null,null,null,null,null,null,null,null,null,null,"Malta","MT"]
[null,null,null,null,null,null,null,null,null,null,null,null,null,null,null,null,null,null,null,null,null,null,null,"Marshall Islands (the)","MH"]
[null,null,null,null,null,null,null,null,null,null,null,null,null,null,null,null,null,null,null,null,null,null,null,"Martinique","MQ"]
[null,null,null,null,null,null,null,null,null,null,null,null,null,null,null,null,null,null,null,null,null,null,null,"Mauritania","MR"]
[null,null,null,null,null,null,null,null,null,null,null,null,null,null,null,null,null,null,null,null,null,null,null,"Mauritius","MU"]
[null,null,null,null,null,null,null,null,null,null,null,null,null,null,null,null,null,null,null,null,null,null,null,"Mayotte","YT"]
[null,null,null,null,null,null,null,null,null,null,null,null,null,null,null,null,null,null,null,null,null,null,null,"Mexico","MX"]
[null,null,null,null,null,null,null,null,null,null,null,null,null,null,null,null,null,null,null,null,null,null,null,"Micronesia (Federated States of)","FM"]
[null,null,null,null,null,null,null,null,null,null,null,null,null,null,null,null,null,null,null,null,null,null,null,"Moldova (the Republic of)","MD"]
[null,null,null,null,null,null,null,null,null,null,null,null,null,null,null,null,null,null,null,null,null,null,null,"Monaco","MC"]
[null,null,null,null,null,null,null,null,null,null,null,null,null,null,null,null,null,null,null,null,null,null,null,"Mongolia","MN"]
[null,null,null,null,null,null,null,null,null,null,null,null,null,null,null,null,null,null,null,null,null,null,null,"Afganistan","AF"]
[null,null,null,null,null,null,null,null,null,null,null,null,null,null,null,null,null,null,null,null,null,null,null,"Montserrat","MS"]
[null,null,null,null,null,null,null,null,null,null,null,null,null,null,null,null,null,null,null,null,null,null,null,"Morocco","MA"]
[null,null,null,null,null,null,null,null,null,null,null,null,null,null,null,null,null,null,null,null,null,null,null,"Mozambique","MZ"]
[null,null,null,null,null,null,null,null,null,null,null,null,null,null,null,null,null,null,null,null,null,null,null,"Myanmar","MM"]
[null,null,null,null,null,null,null,null,null,null,null,null,null,null,null,null,null,null,null,null,null,null,null,"Namibia","NA"]
[null,null,null,null,null,null,null,null,null,null,null,null,null,null,null,null,null,null,null,null,null,null,null,"Nauru","NR"]
[null,null,null,null,null,null,null,null,null,null,null,null,null,null,null,null,null,null,null,null,null,null,null,"Nepal","NP"]
[null,null,null,null,null,null,null,null,null,null,null,null,null,null,null,null,null,null,null,null,null,null,null,"Netherlands (the)","NL"]
[null,null,null,null,null,null,null,null,null,null,null,null,null,null,null,null,null,null,null,null,null,null,null,"New Caledonia","NC"]
[null,null,null,null,null,null,null,null,null,null,null,null,null,null,null,null,null,null,null,null,null,null,null,"New Zealand","NZ"]
[null,null,null,null,null,null,null,null,null,null,null,null,null,null,null,null,null,null,null,null,null,null,null,"Nicaragua","NI"]
[null,null,null,null,null,null,null,null,null,null,null,null,null,null,null,null,null,null,null,null,null,null,null,"Niger (the)","NE"]
[null,null,null,null,null,null,null,null,null,null,null,null,null,null,null,null,null,null,null,null,null,null,null,"Nigeria","NG"]
[null,null,null,null,null,null,null,null,null,null,null,null,null,null,null,null,null,null,null,null,null,null,null,"Niue","NU"]
[null,null,null,null,null,null,null,null,null,null,null,null,null,null,null,null,null,null,null,null,null,null,null,"Norfolk Island","NF"]
[null,null,null,null,null,null,null,null,null,null,null,null,null,null,null,null,null,null,null,null,null,null,null,"North Macedonia","MK"]
[null,null,null,null,null,null,null,null,null,null,null,null,null,null,null,null,null,null,null,null,null,null,null,"Northern Mariana Islands (the)","MP"]
[null,null,null,null,null,null,null,null,null,null,null,null,null,null,null,null,null,null,null,null,null,null,null,"Norway","NO"]
[null,null,null,null,null,null,null,null,null,null,null,null,null,null,null,null,null,null,null,null,null,null,null,"Oman","OM"]
[null,"ENOTA MERE",null,null,null,null,null,null,null,null,null,null,null,null,null,null,null,null,null,null,null,null,null,"Pakistan","PK"]
[null,"Opis kode",null,null,null,null,null,null,null,null,null,null,null,null,null,null,null,null,null,null,null,null,null,"Palau","PW"]
[null,"%","P1",null,null,null,null,null,null,null,null,null,null,null,null,null,null,null,null,null,null,null,null,"Palestine, State of","PS"]
[null,"beseda","D68",null,null,null,null,null,null,null,null,null,null,null,null,null,null,null,null,null,null,null,null,"Panama","PA"]
[null,"cm","CMT",null,null,null,null,null,null,null,null,null,null,null,null,null,null,null,null,null,null,null,null,"Papua New Guinea","PG"]
[null,"cm2","CMK",null,null,null,null,null,null,null,null,null,null,null,null,null,null,null,null,null,null,null,null,"Paraguay","PY"]
[null,"četrtletje","QAN",null,null,null,null,null,null,null,null,null,null,null,null,null,null,null,null,null,null,null,null,"Peru","PE"]
[null,"dan","DAY",null,null,null,null,null,null,null,null,null,null,null,null,null,null,null,null,null,null,null,null,"Philippines (the)","PH"]
[null,"dm","DMT",null,null,null,null,null,null,null,null,null,null,null,null,null,null,null,null,null,null,null,null,"Pitcairn","PN"]
[null,"g","GRM",null,null,null,null,null,null,null,null,null,null,null,null,null,null,null,null,null,null,null,null,"Poland","PL"]
[null,"GJ","GV",null,null,null,null,null,null,null,null,null,null,null,null,null,null,null,null,null,null,null,null,"Portugal","PT"]
[null,"GW/h","GWH",null,null,null,null,null,null,null,null,null,null,null,null,null,null,null,null,null,null,null,null,"Puerto Rico","PR"]
[null,"hl","HLT",null,null,null,null,null,null,null,null,null,null,null,null,null,null,null,null,null,null,null,null,"Qatar","QA"]
[null,"J","JOU",null,null,null,null,null,null,null,null,null,null,null,null,null,null,null,null,null,null,null,null,"Réunion","RE"]
[null,"K","KEL",null,null,null,null,null,null,null,null,null,null,null,null,null,null,null,null,null,null,null,null,"Romania","RO"]
[null,"Kbar","KBA",null,null,null,null,null,null,null,null,null,null,null,null,null,null,null,null,null,null,null,null,"Russian Federation (the)","RU"]
[null,"Kg","KGM",null,null,null,null,null,null,null,null,null,null,null,null,null,null,null,null,null,null,null,null,"Rwanda","RW"]
[null,"KHz","KHZ",null,null,null,null,null,null,null,null,null,null,null,null,null,null,null,null,null,null,null,null,"Saint Barthélemy","BL"]
[null,"KJ","KJO",null,null,null,null,null,null,null,null,null,null,null,null,null,null,null,null,null,null,null,null,"Saint Helena, Ascension and Tristan da Cunha","SH"]
[null,"klic","C0",null,null,null,null,null,null,null,null,null,null,null,null,null,null,null,null,null,null,null,null,"Saint Kitts and Nevis","KN"]
[null,"Km","KMT",null,null,null,null,null,null,null,null,null,null,null,null,null,null,null,null,null,null,null,null,"Saint Lucia","LC"]
[null,"kos","C62",null,null,null,null,null,null,null,null,null,null,null,null,null,null,null,null,null,null,null,null,"Saint Martin (French part)","MF"]
[null,"kosi/milijon",59,null,null,null,null,null,null,null,null,null,null,null,null,null,null,null,null,null,null,null,null,"Saint Pierre and Miquelon","PM"]
[null,"KV","KVT",null,null,null,null,null,null,null,null,null,null,null,null,null,null,null,null,null,null,null,null,"Saint Vincent and the Grenadines","VC"]
[null,"KW","KWT",null,null,null,null,null,null,null,null,null,null,null,null,null,null,null,null,null,null,null,null,"Samoa","WS"]
[null,"KW/h","KWH",null,null,null,null,null,null,null,null,null,null,null,null,null,null,null,null,null,null,null,null,"San Marino","SM"]
[null,"list","ST",null,null,null,null,null,null,null,null,null,null,null,null,null,null,null,null,null,null,null,null,"Sao Tome and Principe","ST"]
[null,"liter","LTR",null,null,null,null,null,null,null,null,null,null,null,null,null,null,null,null,null,null,null,null,"Saudi Arabia","SA"]
[null,"m","MTR",null,null,null,null,null,null,null,null,null,null,null,null,null,null,null,null,null,null,null,null,"Senegal","SN"]
[null,"m2","MTK",null,null,null,null,null,null,null,null,null,null,null,null,null,null,null,null,null,null,null,null,"Serbia","RS"]
[null,"m3","MTQ",null,null,null,null,null,null,null,null,null,null,null,null,null,null,null,null,null,null,null,null,"Seychelles","SC"]
[null,"mesec","MON",null,null,null,null,null,null,null,null,null,null,null,null,null,null,null,null,null,null,null,null,"Sierra Leone","SL"]
[null,"mg","MGM",null,null,null,null,null,null,null,null,null,null,null,null,null,null,null,null,null,null,null,null,"Singapore","SG"]
[null,"MHz","MHZ",null,null,null,null,null,null,null,null,null,null,null,null,null,null,null,null,null,null,null,null,"Sint Maarten (Dutch part)","SX"]
[null,"min","MIN",null,null,null,null,null,null,null,null,null,null,null,null,null,null,null,null,null,null,null,null,"Slovakia","SK"]
[null,"Ml","MAL",null,null,null,null,null,null,null,null,null,null,null,null,null,null,null,null,null,null,null,null,"Solomon Islands","SB"]
[null,"ml","MLT",null,null,null,null,null,null,null,null,null,null,null,null,null,null,null,null,null,null,null,null,"Somalia","SO"]
[null,"mm","MMT",null,null,null,null,null,null,null,null,null,null,null,null,null,null,null,null,null,null,null,null,"South Africa","ZA"]
[null,"MW","MAW",null,null,null,null,null,null,null,null,null,null,null,null,null,null,null,null,null,null,null,null,"South Georgia and the South Sandwich Islands","GS"]
[null,"MW/h","MWH",null,null,null,null,null,null,null,null,null,null,null,null,null,null,null,null,null,null,null,null,"South Sudan","SS"]
[null,"obrok","PTN",null,null,null,null,null,null,null,null,null,null,null,null,null,null,null,null,null,null,null,null,"Spain","ES"]
[null,"sekunda","SEC",null,null,null,null,null,null,null,null,null,null,null,null,null,null,null,null,null,null,null,null,"Sri Lanka","LK"]
[null,"stopinja celzija","CEL",null,null,null,null,null,null,null,null,null,null,null,null,null,null,null,null,null,null,null,null,"Sudan (the)","SD"]
[null,"stran","ZP",null,null,null,null,null,null,null,null,null,null,null,null,null,null,null,null,null,null,null,null,"Suriname","SR"]
[null,"št. tiskanih vrstic","N2",null,null,null,null,null,null,null,null,null,null,null,null,null,null,null,null,null,null,null,null,"Svalbard and Jan Mayen","SJ"]
[null,"število katalogov","NRL",null,null,null,null,null,null,null,null,null,null,null,null,null,null,null,null,null,null,null,null,"Sweden","SE"]
[null,"število paragrafov","NAR",null,null,null,null,null,null,null,null,null,null,null,null,null,null,null,null,null,null,null,null,"Switzerland","CH"]
[null,"t","TNE",null,null,null,null,null,null,null,null,null,null,null,null,null,null,null,null,null,null,null,null,"Syrian Arab Republic (the)","SY"]
[null,"ura","HUR",null,null,null,null,null,null,null,null,null,null,null,null,null,null,null,null,null,null,null,null,"Taiwan (Province of China)","TW"]
[null,"V","VLT",null,null,null,null,null,null,null,null,null,null,null,null,null,null,null,null,null,null,null,null,"Tajikistan","TJ"]
[null,"vsak","EA",null,null,null,null,null,null,null,null,null,null,null,null,null,null,null,null,null,null,null,null,"Tanzania, the United Republic of","TZ"]
[null,"W","WTT",null,null,null,null,null,null,null,null,null,null,null,null,null,null,null,null,null,null,null,null,"Thailand","TH"]
[null,"W/h","WHR",null,null,null,null,null,null,null,null,null,null,null,null,null,null,null,null,null,null,null,null,"Timor-Leste","TL"]
[null,"znesek","M4",null,null,null,null,null,null,null,null,null,null,null,null,null,null,null,null,null,null,null,null,"Togo","TG"]
[null,null,null,null,null,null,null,null,null,null,null,null,null,null,null,null,null,null,null,null,null,null,null,"Tokelau","TK"]
[null,null,null,null,null,null,null,null,null,null,null,null,null,null,null,null,null,null,null,null,null,null,null,"Tonga","TO"]
[null,"BIC KODA",null,null,null,null,null,null,null,null,null,null,null,null,null,null,null,null,null,null,null,null,null,"Trinidad and Tobago","TT"]
[null,"Opis kode","Koda",null,null,null,null,null,null,null,null,null,null,null,null,null,null,null,null,null,null,null,null,"Tunisia","TN"]
[null,"ABANKA VIPA D.D.","ABANSI2X",null,null,null,null,null,null,null,null,null,null,null,null,null,null,null,null,null,null,null,null,"Turkey","TR"]
[null,"BANKA CELJE D.D.","SBCESI2X",null,null,null,null,null,null,null,null,null,null,null,null,null,null,null,null,null,null,null,null,"Turkmenistan","TM"]
[null,"BANKA KOPER D.D.","BAKOSI2X",null,null,null,null,null,null,null,null,null,null,null,null,null,null,null,null,null,null,null,null,"Turks and Caicos Islands (the)","TC"]
[null,"BANKA SLOVENIJE","BSLJSI2X",null,null,null,null,null,null,null,null,null,null,null,null,null,null,null,null,null,null,null,null,"Tuvalu","TV"]
[null,"BANKA SPARKASSE D.D.","KSPKSI22",null,null,null,null,null,null,null,null,null,null,null,null,null,null,null,null,null,null,null,null,"Uganda","UG"]
[null,"BKS BANK AG, BANČNA PODRUŽNICA","BFKKSI22",null,null,null,null,null,null,null,null,null,null,null,null,null,null,null,null,null,null,null,null,"Ukraine","UA"]
[null,"DELAVSKA HRANILNICA D.D.","HDELSI22",null,null,null,null,null,null,null,null,null,null,null,null,null,null,null,null,null,null,null,null,"United Arab Emirates (the)","AE"]
[null,"DEŽELNA BANKA SLOVENIJE D.D.","SZKBSI2X",null,null,null,null,null,null,null,null,null,null,null,null,null,null,null,null,null,null,null,null,"United States Minor Outlying Islands (the)","UM"]
[null,"FACTOR BANKA D.D.","FCTBSI2X",null,null,null,null,null,null,null,null,null,null,null,null,null,null,null,null,null,null,null,null,"United States of America (the)","US"]
[null,"GORENJSKA BANKA D.D., KRANJ","GORESI2X",null,null,null,null,null,null,null,null,null,null,null,null,null,null,null,null,null,null,null,null,"Uruguay","UY"]
[null,"HRANILNICA IN POSOJILNICA","HKVISI22",null,null,null,null,null,null,null,null,null,null,null,null,null,null,null,null,null,null,null,null,"Uzbekistan","UZ"]
[null,"HRANILNICA LON D.D., KRANJ","HLONSI22",null,null,null,null,null,null,null,null,null,null,null,null,null,null,null,null,null,null,null,null,"Vanuatu","VU"]
[null,"HYPO-ALPE-ADRIA BANK D.D.","HAABSI22",null,null,null,null,null,null,null,null,null,null,null,null,null,null,null,null,null,null,null,null,"Venezuela (Bolivarian Republic of)","VE"]
[null,"NOVA KREDITNA BANKA MARIBOR D.D.","KBMASI2X",null,null,null,null,null,null,null,null,null,null,null,null,null,null,null,null,null,null,null,null,"Viet Nam","VN"]
[null,"NOVA LJUBLJANSKA BANKA D.D.","LJBASI2X",null,null,null,null,null,null,null,null,null,null,null,null,null,null,null,null,null,null,null,null,"Virgin Islands (British)","VG"]
[null,"POŠTNA BANKA SLOVENIJE D.D.","PBSLSI22",null,null,null,null,null,null,null,null,null,null,null,null,null,null,null,null,null,null,null,null,"Virgin Islands (U.S.)","VI"]
[null,"PROBANKA D.D.","PROBSI2X",null,null,null,null,null,null,null,null,null,null,null,null,null,null,null,null,null,null,null,null,"Wallis and Futuna","WF"]
[null,"RAIFFEISEN BANKA D.D.","KREKSI22",null,null,null,null,null,null,null,null,null,null,null,null,null,null,null,null,null,null,null,null,"Western Sahara*","EH"]
[null,"SBERBANK BANKA D.D.","SABRSI2X",null,null,null,null,null,null,null,null,null,null,null,null,null,null,null,null,null,null,null,null,"Yemen","YE"]
[null,"SID - Slovenska izvozna in razvojna banka, D.D., Ljubljana","SIDRSI22",null,null,null,null,null,null,null,null,null,null,null,null,null,null,null,null,null,null,null,null,"Zambia","ZM"]
[null,"SKB BANKA D.D.","SKBASI2X",null,null,null,null,null,null,null,null,null,null,null,null,null,null,null,null,null,null,null,null,"Zimbabwe","ZW"]
[null,"UNICREDIT BANKA SLOVENIJA D.D.","BACXSI22"]
[null,"ZVEZA BANK, PODRUŽNICA LJUBLJANA","VSGKSI22"]
[null,"KDD - KLIRINŠKO DEPOTNA  DRUŽBA D.D.                    ","KDDSSI22"]
[]
[]
[null,"VALUTA"]
[null,"Opis kode","Koda"]
[null,"Euro","EUR"]
[null,"Kuna","HRK"]
[null,"Pound Sterling","GBP"]
[null,"US Dollar","USD"]
[null,"UAE Dirham","AED"]
[null,"Afghani","AFN"]
[null,"Lek","ALL"]
[null,"Armenian Dram","AMD"]
[null,"Netherlands Antillean Guilder","ANG"]
[null,"Kwanza","AOA"]
[null,"Argentine Peso","ARS"]
[null,"Australian Dollar","AUD"]
[null,"Aruban Florin","AWG"]
[null,"Azerbaijan Manat","AZN"]
[null,"Convertible Mark","BAM"]
[null,"Barbados Dollar","BBD"]
[null,"Taka","BDT"]
[null,"Bulgarian Lev","BGN"]
[null,"Bahraini Dinar","BHD"]
[null,"Burundi Franc","BIF"]
[null,"Bermudian Dollar","BMD"]
[null,"Brunei Dollar","BND"]
[null,"Boliviano","BOB"]
[null,"Mvdol","BOV"]
[null,"Brazilian Real","BRL"]
[null,"Bahamian Dollar","BSD"]
[null,"Ngultrum","BTN"]
[null,"Pula","BWP"]
[null,"Belarusian Ruble","BYN"]
[null,"Belize Dollar","BZD"]
[null,"Canadian Dollar","CAD"]
[null,"Congolese Franc","CDF"]
[null,"WIR Euro","CHE"]
[null,"Swiss Franc","CHF"]
[null,"WIR Franc","CHW"]
[null,"Unidad de Fomento","CLF"]
[null,"Chilean Peso","CLP"]
[null,"Yuan Renminbi","CNY"]
[null,"Colombian Peso","COP"]
[null,"Unidad de Valor Real","COU"]
[null,"Costa Rican Colon","CRC"]
[null,"Peso Convertible","CUC"]
[null,"Cuban Peso","CUP"]
[null,"Cabo Verde Escudo","CVE"]
[null,"Czech Koruna","CZK"]
[null,"Djibouti Franc","DJF"]
[null,"Danish Krone","DKK"]
[null,"Dominican Peso","DOP"]
[null,"Algerian Dinar","DZD"]
[null,"Egyptian Pound","EGP"]
[null,"Nakfa","ERN"]
[null,"Ethiopian Birr","ETB"]
[null,"Fiji Dollar","FJD"]
[null,"Falkland Islands Pound","FKP"]
[null,"Lari","GEL"]
[null,"Ghana Cedi","GHS"]
[null,"Gibraltar Pound","GIP"]
[null,"Dalasi","GMD"]
[null,"Guinean Franc","GNF"]
[null,"Quetzal","GTQ"]
[null,"Guyana Dollar","GYD"]
[null,"Hong Kong Dollar","HKD"]
[null,"Lempira","HNL"]
[null,"Gourde","HTG"]
[null,"Forint","HUF"]
[null,"Rupiah","IDR"]
[null,"New Israeli Sheqel","ILS"]
[null,"Indian Rupee","INR"]
[null,"Iraqi Dinar","IQD"]
[null,"Iranian Rial","IRR"]
[null,"Iceland Krona","ISK"]
[null,"Jamaican Dollar","JMD"]
[null,"Jordanian Dinar","JOD"]
[null,"Yen","JPY"]
[null,"Kenyan Shilling","KES"]
[null,"Som","KGS"]
[null,"Riel","KHR"]
[null,"Comorian Franc ","KMF"]
[null,"North Korean Won","KPW"]
[null,"Won","KRW"]
[null,"Kuwaiti Dinar","KWD"]
[null,"Cayman Islands Dollar","KYD"]
[null,"Tenge","KZT"]
[null,"Lao Kip","LAK"]
[null,"Lebanese Pound","LBP"]
[null,"Sri Lanka Rupee","LKR"]
[null,"Liberian Dollar","LRD"]
[null,"Loti","LSL"]
[null,"Libyan Dinar","LYD"]
[null,"Moroccan Dirham","MAD"]
[null,"Moldovan Leu","MDL"]
[null,"Malagasy Ariary","MGA"]
[null,"Denar","MKD"]
[null,"Kyat","MMK"]
[null,"Tugrik","MNT"]
[null,"Pataca","MOP"]
[null,"Ouguiya","MRU"]
[null,"Mauritius Rupee","MUR"]
[null,"Rufiyaa","MVR"]
[null,"Malawi Kwacha","MWK"]
[null,"Mexican Peso","MXN"]
[null,"Mexican Unidad de Inversion (UDI)","MXV"]
[null,"Malaysian Ringgit","MYR"]
[null,"Mozambique Metical","MZN"]
[null,"Namibia Dollar","NAD"]
[null,"Naira","NGN"]
[null,"Cordoba Oro","NIO"]
[null,"Norwegian Krone","NOK"]
[null,"Nepalese Rupee","NPR"]
[null,"New Zealand Dollar","NZD"]
[null,"Rial Omani","OMR"]
[null,"Balboa","PAB"]
[null,"Sol","PEN"]
[null,"Kina","PGK"]
[null,"Philippine Peso","PHP"]
[null,"Pakistan Rupee","PKR"]
[null,"Zloty","PLN"]
[null,"Guarani","PYG"]
[null,"Qatari Rial","QAR"]
[null,"Romanian Leu","RON"]
[null,"Serbian Dinar","RSD"]
[null,"Russian Ruble","RUB"]
[null,"Rwanda Franc","RWF"]
[null,"Saudi Riyal","SAR"]
[null,"Solomon Islands Dollar","SBD"]
[null,"Seychelles Rupee","SCR"]
[null,"Sudanese Pound","SDG"]
[null,"Swedish Krona","SEK"]
[null,"Singapore Dollar","SGD"]
[null,"Saint Helena Pound","SHP"]
[null,"Leone","SLL"]
[null,"Somali Shilling","SOS"]
[null,"Surinam Dollar","SRD"]
[null,"South Sudanese Pound","SSP"]
[null,"Dobra","STN"]
[null,"El Salvador Colon","SVC"]
[null,"Syrian Pound","SYP"]
[null,"Lilangeni","SZL"]
[null,"Baht","THB"]
[null,"Somoni","TJS"]
[null,"Turkmenistan New Manat","TMT"]
[null,"Tunisian Dinar","TND"]
[null,"Pa’anga","TOP"]
[null,"Turkish Lira","TRY"]
[null,"Trinidad and Tobago Dollar","TTD"]
[null,"New Taiwan Dollar","TWD"]
[null,"Tanzanian Shilling","TZS"]
[null,"Hryvnia","UAH"]
[null,"Uganda Shilling","UGX"]
[null,"US Dollar (Next day)","USN"]
[null,"Uruguay Peso en Unidades Indexadas (UI)","UYI"]
[null,"Peso Uruguayo","UYU"]
[null,"Unidad Previsional","UYW"]
[null,"Uzbekistan Sum","UZS"]
[null,"Bolívar Soberano","VES"]
[null,"Dong","VND"]
[null,"Vatu","VUV"]
[null,"Tala","WST"]
[null,"CFA Franc BEAC","XAF"]
[null,"Silver","XAG"]
[null,"Gold","XAU"]
[null,"Bond Markets Unit European Composite Unit (EURCO)","XBA"]
[null,"Bond Markets Unit European Monetary Unit (E.M.U.-6)","XBB"]
[null,"Bond Markets Unit European Unit of Account 9 (E.U.A.-9)","XBC"]
[null,"Bond Markets Unit European Unit of Account 17 (E.U.A.-17)","XBD"]
[null,"East Caribbean Dollar","XCD"]
[null,"SDR (Special Drawing Right)","XDR"]
[null,"CFA Franc BCEAO","XOF"]
[null,"Palladium","XPD"]
[null,"CFP Franc","XPF"]
[null,"Platinum","XPT"]
[null,"Sucre","XSU"]
[null,"Codes specifically reserved for testing purposes","XTS"]
[null,"ADB Unit of Account","XUA"]
[null,"The codes assigned for transactions where no currency is involved","XXX"]
[null,"Yemeni Rial","YER"]
[null,"Rand","ZAR"]
[null,"Zambian Kwacha","ZMW"]
[null,"Zimbabwe Dollar","ZWL"]